Workbook

Sheet Kalorienzähler
B2: KALORIENVERBRAUCHSLISTE
B4: =IFERROR(CONCATENATE("NUR ",DATEDIF(StartDatum,EndDatum,"m")," MONATE UND ", DATEDIF(StartDatum,EndDatum,"md"),TagNr),"") -> NUR 3 MONATE UND 15 TAGE | H4: =IF(GewichtsZiel="REDUZIEREN","Es wird nicht empfohlen, dass Sie Ihre Kalorienzufuhr um mehr als 1.000 Kalorien unter Ihren täglichen Kalorienbedarf senken oder weniger als " & IF(Geschlecht="WEIBLICH","1.200 Kalorien pro Tag zu sich nehmen.","1.800 Kalorien pro Tag zu sich nehmen."),"") -> Es wird nicht empfohlen, dass Sie Ihre Kalorienzufuhr um mehr als 1.000 Kalorien unter Ihren täglichen Kalorienbedarf senken oder weniger als 1.200 Kalorien pro Tag zu sich nehmen.
B5: =IF(UngültigesZiel,"UNGÜLTIGES ZIELGEWICHT. ÜBERPRÜFEN SIE DIE EINGABEN.",IF(OR(Verwalten,UngültigesZiel),""," BIS SIE IHR ZIEL ERREICHEN")) -> BIS SIE IHR ZIEL ERREICHEN | H5: =IF(OR(Verwalten,UngültigesZiel),"",CONCATENATE("Das Zieldatum basiert auf dem empfohlenen durchschnittlichen Gewichts",IF(GewichtsZiel="REDUZIEREN","verlust von ","zunahme von "),IF(Maßeinheit="BRITISCH","1 Pfund pro Woche.",".45 k pro Woche."))) -> Das Zieldatum basiert auf dem empfohlenen durchschnittlichen Gewichtsverlust von 1 Pfund pro Woche.
B6: AKTIVITÄTSSTUFE | H6: MAßEINHEIT | J6: AKTUELLES GEWICHT | L6: ALTER
B7: MODERATE AKTIVITÄT | E7: =VLOOKUP(Grad,Bewegungsarten[],2,FALSE) -> ÜBUNGEN 3–5 TAGE/WOCHE | H7: BRITISCH | J7: 150.0 | L7: 34
B8: ICH MÖCHTE MEIN GEWICHT | H8: =IF(Standard,"GRÖSSE IN FT","GRÖSSE IN M") -> GRÖSSE IN FT | I8: =IF(Standard,"ZOLL","ZENTIMETER") -> ZOLL | J8: ZIELGEWICHT | L8: GESCHLECHT
B9: REDUZIEREN | H9: 5 | I9: 5.0 | J9: 135.0 | L9: WEIBLICH
B10: ZIELSTARTDATUM | E10: ZIELENDDATUM | H10: ANFÄNGLICHER KALORIEBEDARF PRO TAG | J10: ANFÄNGLICHE KALORIENZUFUHR PRO TAG | L10: =IF(GewichtsZiel="Erhöhen","ÜBERSCHUSS AN BENÖTIGTEN KALORIEN","ZU VERBRENNENDE KALORIEN") -> ZU VERBRENNENDE KALORIEN
B11: =TODAY()-5 -> 2024-04-06 | E11: =IF(GewichtsZiel="Verwalten","",IF(AND(AlleKomplett,B14<>""),MAX(B13:B1000),"Das Zieldatum kann nicht kleiner sein als das Startdatum. Überprüfen Sie die Einträge.")) -> 2024-07-21 | H11: =IF(AlleKomplett,GU*AktivitätsFaktor,"") -> 2252 | J11: =IF(AlleKomplett,GU*AktivitätsFaktor+IF(GewichtsZiel="Verwalten",0,IF(GewichtsZiel="REDUZIEREN",-500,IF(GewichtsZiel="Erhöhen",500))),"") -> 1752 | L11: =IF(OR(Verwalten,UngültigesZiel),"",(ZielGewichtsVerlust)*IF(Standard,1,2.2)*3500) -> 52500
B12: DATUM | C12: WOCHE | D12: TAG | E12: GEWICHT | F12: GU | G12: VERBRAUCHTE KALORIEN | H12: VERBRANNTE KALORIEN | I12: =IF(GewichtsZiel="Erhöhen", "ZUSÄTZLICHE KCAL","KALORIENDEFIZIT") -> KALORIENDEFIZIT | J12: VERBLEIBENDE KALORIEN | K12: =IF(Maßeinheit="Britisch","VERBLEIBENDE PFUNDE","VERBLEIBENDE KILOS") -> VERBLEIBENDE PFUNDE | L12: =IF(GewichtsZiel="Erhöhen","ZUNAHME","VERLUST") -> VERLUST | M12: % DES ZIELS
B13: =IFERROR(IF(OR(Verwalten,UngültigesZiel),"",StartDatum), "") -> 2024-04-06 | C13: =IFERROR(IF(OR(Verwalten,UngültigesZiel),"",1), "") -> 1 | D13: =IFERROR(IF(AND(ISNUMBER(J13),J13>0),1,""), "") -> 1 | E13: =IFERROR(IF(OR(Verwalten,UngültigesZiel),"",Gewicht), "") -> 150.0 | F13: =IFERROR(IF(OR(Verwalten,UngültigesZiel),"",IF(E13>0,LaufenderGU,"")), "") -> 1453 | G13: =IFERROR(IF(OR(Verwalten,UngültigesZiel),"",AnfänglicheKalorienZufuhr), "") -> 1752 | H13: =IFERROR(F13*(AktivitätsFaktor),"") -> 2252 | I13: =IFERROR(IF(GewichtsZiel="Erhöhen",G13-H13,H13-G13),"") -> 500 | J13: =IFERROR(L11, "") -> 52500 | K13: =IFERROR(IF(Standard,J13/KalorienProGramm,J13/KalorienProGramm/2.2),"") -> 15.0 | L13: =IFERROR(ZielGewichtsVerlust-K13,"") -> 0.00 | M13: =IFERROR(IF(OR(Verwalten,UngültigesZiel),"",0%), "") -> 0%
B14: =IFERROR(IF(K13>0,B13+1,""),"") -> 2024-04-07 | C14: =IFERROR(IF(D14<>"",IF(MOD(D14,7)=1,(D13/7)+1,""),""),"") ->  | D14: =IFERROR(IF(K13>0,D13+1,""),"") -> 2 | E14: =IFERROR(IF($D14<>"",E13+(I13/KalorienProGramm)*IF(GewichtsZiel="INCREASE",1,-1),""),"") -> 149.9 | F14: =IFERROR(LaufenderGU,"") -> 1453 | G14: =IFERROR(IF(K13>0,F13*AktivitätsFaktor+IF(GewichtsZiel="Verwalten",0,IF(GewichtsZiel="REDUZIEREN",-500,IF(GewichtsZiel="Erhöhen",500))),""),"") -> 1752 | H14: =IFERROR(F14*(AktivitätsFaktor),"") -> 2251 | I14: =IFERROR(IF(GewichtsZiel="Erhöhen",G14-H14,H14-G14),"") -> 499 | J14: =IFERROR(J13-I14,"") -> 52001 | K14: =IFERROR(IF(Standard,J14/KalorienProGramm,J14/KalorienProGramm/2.2),"") -> 14.9 | L14: =IFERROR(ZielGewichtsVerlust-K14,"") -> 0.14 | M14: =IFERROR(IF(B13<>"",L14/(ZielGewichtsVerlust),""),"") -> 1%
B15: 2024-04-08 | C15: =IFERROR(IF(D15<>"",IF(MOD(D15,7)=1,(D14/7)+1,""),""),"") ->  | D15: 3 | E15: =IFERROR(IF($D15<>"",E14+(I14/KalorienProGramm)*IF(GewichtsZiel="INCREASE",1,-1),""),"") -> 149.7 | F15: =IFERROR(LaufenderGU,"") -> 1452 | G15: =IFERROR(IF(K14>0,F14*AktivitätsFaktor+IF(GewichtsZiel="Verwalten",0,IF(GewichtsZiel="REDUZIEREN",-500,IF(GewichtsZiel="Erhöhen",500))),""),"") -> 1751 | H15: =IFERROR(F15*(AktivitätsFaktor),"") -> 2251 | I15: =IFERROR(IF(GewichtsZiel="Erhöhen",G15-H15,H15-G15),"") -> 499 | J15: =IFERROR(J14-I15,"") -> 51502 | K15: =IFERROR(IF(Standard,J15/KalorienProGramm,J15/KalorienProGramm/2.2),"") -> 14.7 | L15: =IFERROR(ZielGewichtsVerlust-K15,"") -> 0.29 | M15: =IFERROR(IF(B14<>"",L15/(ZielGewichtsVerlust),""),"") -> 2%
B16: 2024-04-09 | D16: 4 | E16: =IFERROR(IF($D16<>"",E15+(I15/KalorienProGramm)*IF(GewichtsZiel="INCREASE",1,-1),""),"") -> 149.6 | F16: =IFERROR(LaufenderGU,"") -> 1451 | G16: =IFERROR(IF(K15>0,F15*AktivitätsFaktor+IF(GewichtsZiel="Verwalten",0,IF(GewichtsZiel="REDUZIEREN",-500,IF(GewichtsZiel="Erhöhen",500))),""),"") -> 1751 | H16: =IFERROR(F16*(AktivitätsFaktor),"") -> 2250 | I16: =IFERROR(IF(GewichtsZiel="Erhöhen",G16-H16,H16-G16),"") -> 499 | J16: 51003 | K16: =IFERROR(IF(Standard,J16/KalorienProGramm,J16/KalorienProGramm/2.2),"") -> 14.6 | L16: =IFERROR(ZielGewichtsVerlust-K16,"") -> 0.43 | M16: =IFERROR(IF(B15<>"",L16/(ZielGewichtsVerlust),""),"") -> 3%
B17: 2024-04-10 | D17: 5 | E17: =IFERROR(IF($D17<>"",E16+(I16/KalorienProGramm)*IF(GewichtsZiel="INCREASE",1,-1),""),"") -> 149.4 | F17: =IFERROR(LaufenderGU,"") -> 1451 | G17: =IFERROR(IF(K16>0,F16*AktivitätsFaktor+IF(GewichtsZiel="Verwalten",0,IF(GewichtsZiel="REDUZIEREN",-500,IF(GewichtsZiel="Erhöhen",500))),""),"") -> 1750 | H17: =IFERROR(F17*(AktivitätsFaktor),"") -> 2249 | I17: =IFERROR(IF(GewichtsZiel="Erhöhen",G17-H17,H17-G17),"") -> 499 | J17: 50504 | K17: =IFERROR(IF(Standard,J17/KalorienProGramm,J17/KalorienProGramm/2.2),"") -> 14.4 | L17: =IFERROR(ZielGewichtsVerlust-K17,"") -> 0.57 | M17: =IFERROR(IF(B16<>"",L17/(ZielGewichtsVerlust),""),"") -> 4%
B18: 2024-04-11 | D18: 6 | E18: =IFERROR(IF($D18<>"",E17+(I17/KalorienProGramm)*IF(GewichtsZiel="INCREASE",1,-1),""),"") -> 149.3 | F18: =IFERROR(LaufenderGU,"") -> 1450 | G18: =IFERROR(IF(K17>0,F17*AktivitätsFaktor+IF(GewichtsZiel="Verwalten",0,IF(GewichtsZiel="REDUZIEREN",-500,IF(GewichtsZiel="Erhöhen",500))),""),"") -> 1749 | H18: =IFERROR(F18*(AktivitätsFaktor),"") -> 2248 | I18: =IFERROR(IF(GewichtsZiel="Erhöhen",G18-H18,H18-G18),"") -> 499 | J18: 50005 | K18: =IFERROR(IF(Standard,J18/KalorienProGramm,J18/KalorienProGramm/2.2),"") -> 14.3 | L18: =IFERROR(ZielGewichtsVerlust-K18,"") -> 0.71 | M18: =IFERROR(IF(B17<>"",L18/(ZielGewichtsVerlust),""),"") -> 5%
B19: 2024-04-12 | D19: 7 | E19: =IFERROR(IF($D19<>"",E18+(I18/KalorienProGramm)*IF(GewichtsZiel="INCREASE",1,-1),""),"") -> 149.1 | F19: =IFERROR(LaufenderGU,"") -> 1449 | G19: =IFERROR(IF(K18>0,F18*AktivitätsFaktor+IF(GewichtsZiel="Verwalten",0,IF(GewichtsZiel="REDUZIEREN",-500,IF(GewichtsZiel="Erhöhen",500))),""),"") -> 1748 | H19: =IFERROR(F19*(AktivitätsFaktor),"") -> 2247 | I19: =IFERROR(IF(GewichtsZiel="Erhöhen",G19-H19,H19-G19),"") -> 499 | J19: 49506 | K19: =IFERROR(IF(Standard,J19/KalorienProGramm,J19/KalorienProGramm/2.2),"") -> 14.1 | L19: =IFERROR(ZielGewichtsVerlust-K19,"") -> 0.86 | M19: =IFERROR(IF(B18<>"",L19/(ZielGewichtsVerlust),""),"") -> 6%
B20: 2024-04-13 | C20: 2 | D20: 8 | E20: =IFERROR(IF($D20<>"",E19+(I19/KalorienProGramm)*IF(GewichtsZiel="INCREASE",1,-1),""),"") -> 149.0 | F20: =IFERROR(LaufenderGU,"") -> 1449 | G20: =IFERROR(IF(K19>0,F19*AktivitätsFaktor+IF(GewichtsZiel="Verwalten",0,IF(GewichtsZiel="REDUZIEREN",-500,IF(GewichtsZiel="Erhöhen",500))),""),"") -> 1747 | H20: =IFERROR(F20*(AktivitätsFaktor),"") -> 2246 | I20: =IFERROR(IF(GewichtsZiel="Erhöhen",G20-H20,H20-G20),"") -> 499 | J20: 49007 | K20: =IFERROR(IF(Standard,J20/KalorienProGramm,J20/KalorienProGramm/2.2),"") -> 14.0 | L20: =IFERROR(ZielGewichtsVerlust-K20,"") -> 1.00 | M20: =IFERROR(IF(B19<>"",L20/(ZielGewichtsVerlust),""),"") -> 7%
B21: 2024-04-14 | D21: 9 | E21: =IFERROR(IF($D21<>"",E20+(I20/KalorienProGramm)*IF(GewichtsZiel="INCREASE",1,-1),""),"") -> 148.9 | F21: =IFERROR(LaufenderGU,"") -> 1448 | G21: =IFERROR(IF(K20>0,F20*AktivitätsFaktor+IF(GewichtsZiel="Verwalten",0,IF(GewichtsZiel="REDUZIEREN",-500,IF(GewichtsZiel="Erhöhen",500))),""),"") -> 1746 | H21: =IFERROR(F21*(AktivitätsFaktor),"") -> 2245 | I21: =IFERROR(IF(GewichtsZiel="Erhöhen",G21-H21,H21-G21),"") -> 499 | J21: 48508 | K21: =IFERROR(IF(Standard,J21/KalorienProGramm,J21/KalorienProGramm/2.2),"") -> 13.9 | L21: =IFERROR(ZielGewichtsVerlust-K21,"") -> 1.14 | M21: =IFERROR(IF(B20<>"",L21/(ZielGewichtsVerlust),""),"") -> 8%
B22: 2024-04-15 | D22: 10 | E22: =IFERROR(IF($D22<>"",E21+(I21/KalorienProGramm)*IF(GewichtsZiel="INCREASE",1,-1),""),"") -> 148.7 | F22: =IFERROR(LaufenderGU,"") -> 1448 | G22: =IFERROR(IF(K21>0,F21*AktivitätsFaktor+IF(GewichtsZiel="Verwalten",0,IF(GewichtsZiel="REDUZIEREN",-500,IF(GewichtsZiel="Erhöhen",500))),""),"") -> 1745 | H22: =IFERROR(F22*(AktivitätsFaktor),"") -> 2244 | I22: =IFERROR(IF(GewichtsZiel="Erhöhen",G22-H22,H22-G22),"") -> 499 | J22: 48009 | K22: =IFERROR(IF(Standard,J22/KalorienProGramm,J22/KalorienProGramm/2.2),"") -> 13.7 | L22: =IFERROR(ZielGewichtsVerlust-K22,"") -> 1.28 | M22: =IFERROR(IF(B21<>"",L22/(ZielGewichtsVerlust),""),"") -> 9%
B23: 2024-04-16 | D23: 11 | E23: =IFERROR(IF($D23<>"",E22+(I22/KalorienProGramm)*IF(GewichtsZiel="INCREASE",1,-1),""),"") -> 148.6 | F23: =IFERROR(LaufenderGU,"") -> 1447 | G23: =IFERROR(IF(K22>0,F22*AktivitätsFaktor+IF(GewichtsZiel="Verwalten",0,IF(GewichtsZiel="REDUZIEREN",-500,IF(GewichtsZiel="Erhöhen",500))),""),"") -> 1744 | H23: =IFERROR(F23*(AktivitätsFaktor),"") -> 2243 | I23: =IFERROR(IF(GewichtsZiel="Erhöhen",G23-H23,H23-G23),"") -> 499 | J23: 47510 | K23: =IFERROR(IF(Standard,J23/KalorienProGramm,J23/KalorienProGramm/2.2),"") -> 13.6 | L23: =IFERROR(ZielGewichtsVerlust-K23,"") -> 1.43 | M23: =IFERROR(IF(B22<>"",L23/(ZielGewichtsVerlust),""),"") -> 10%
B24: 2024-04-17 | D24: 12 | E24: =IFERROR(IF($D24<>"",E23+(I23/KalorienProGramm)*IF(GewichtsZiel="INCREASE",1,-1),""),"") -> 148.4 | F24: =IFERROR(LaufenderGU,"") -> 1446 | G24: =IFERROR(IF(K23>0,F23*AktivitätsFaktor+IF(GewichtsZiel="Verwalten",0,IF(GewichtsZiel="REDUZIEREN",-500,IF(GewichtsZiel="Erhöhen",500))),""),"") -> 1743 | H24: =IFERROR(F24*(AktivitätsFaktor),"") -> 2242 | I24: =IFERROR(IF(GewichtsZiel="Erhöhen",G24-H24,H24-G24),"") -> 499 | J24: 47011 | K24: =IFERROR(IF(Standard,J24/KalorienProGramm,J24/KalorienProGramm/2.2),"") -> 13.4 | L24: =IFERROR(ZielGewichtsVerlust-K24,"") -> 1.57 | M24: =IFERROR(IF(B23<>"",L24/(ZielGewichtsVerlust),""),"") -> 10%
B25: 2024-04-18 | D25: 13 | E25: =IFERROR(IF($D25<>"",E24+(I24/KalorienProGramm)*IF(GewichtsZiel="INCREASE",1,-1),""),"") -> 148.3 | F25: =IFERROR(LaufenderGU,"") -> 1446 | G25: =IFERROR(IF(K24>0,F24*AktivitätsFaktor+IF(GewichtsZiel="Verwalten",0,IF(GewichtsZiel="REDUZIEREN",-500,IF(GewichtsZiel="Erhöhen",500))),""),"") -> 1742 | H25: =IFERROR(F25*(AktivitätsFaktor),"") -> 2241 | I25: =IFERROR(IF(GewichtsZiel="Erhöhen",G25-H25,H25-G25),"") -> 499 | J25: 46512 | K25: =IFERROR(IF(Standard,J25/KalorienProGramm,J25/KalorienProGramm/2.2),"") -> 13.3 | L25: =IFERROR(ZielGewichtsVerlust-K25,"") -> 1.71 | M25: =IFERROR(IF(B24<>"",L25/(ZielGewichtsVerlust),""),"") -> 11%
B26: 2024-04-19 | D26: 14 | E26: =IFERROR(IF($D26<>"",E25+(I25/KalorienProGramm)*IF(GewichtsZiel="INCREASE",1,-1),""),"") -> 148.1 | F26: =IFERROR(LaufenderGU,"") -> 1445 | G26: =IFERROR(IF(K25>0,F25*AktivitätsFaktor+IF(GewichtsZiel="Verwalten",0,IF(GewichtsZiel="REDUZIEREN",-500,IF(GewichtsZiel="Erhöhen",500))),""),"") -> 1741 | H26: =IFERROR(F26*(AktivitätsFaktor),"") -> 2240 | I26: =IFERROR(IF(GewichtsZiel="Erhöhen",G26-H26,H26-G26),"") -> 499 | J26: 46012 | K26: =IFERROR(IF(Standard,J26/KalorienProGramm,J26/KalorienProGramm/2.2),"") -> 13.1 | L26: =IFERROR(ZielGewichtsVerlust-K26,"") -> 1.85 | M26: =IFERROR(IF(B25<>"",L26/(ZielGewichtsVerlust),""),"") -> 12%
B27: 2024-04-20 | C27: 3 | D27: 15 | E27: =IFERROR(IF($D27<>"",E26+(I26/KalorienProGramm)*IF(GewichtsZiel="INCREASE",1,-1),""),"") -> 148.0 | F27: =IFERROR(LaufenderGU,"") -> 1445 | G27: =IFERROR(IF(K26>0,F26*AktivitätsFaktor+IF(GewichtsZiel="Verwalten",0,IF(GewichtsZiel="REDUZIEREN",-500,IF(GewichtsZiel="Erhöhen",500))),""),"") -> 1740 | H27: =IFERROR(F27*(AktivitätsFaktor),"") -> 2239 | I27: =IFERROR(IF(GewichtsZiel="Erhöhen",G27-H27,H27-G27),"") -> 499 | J27: 45513 | K27: =IFERROR(IF(Standard,J27/KalorienProGramm,J27/KalorienProGramm/2.2),"") -> 13.0 | L27: =IFERROR(ZielGewichtsVerlust-K27,"") -> 2.00 | M27: =IFERROR(IF(B26<>"",L27/(ZielGewichtsVerlust),""),"") -> 13%
B28: 2024-04-21 | D28: 16 | E28: =IFERROR(IF($D28<>"",E27+(I27/KalorienProGramm)*IF(GewichtsZiel="INCREASE",1,-1),""),"") -> 147.9 | F28: =IFERROR(LaufenderGU,"") -> 1444 | G28: =IFERROR(IF(K27>0,F27*AktivitätsFaktor+IF(GewichtsZiel="Verwalten",0,IF(GewichtsZiel="REDUZIEREN",-500,IF(GewichtsZiel="Erhöhen",500))),""),"") -> 1739 | H28: =IFERROR(F28*(AktivitätsFaktor),"") -> 2238 | I28: =IFERROR(IF(GewichtsZiel="Erhöhen",G28-H28,H28-G28),"") -> 499 | J28: 45014 | K28: =IFERROR(IF(Standard,J28/KalorienProGramm,J28/KalorienProGramm/2.2),"") -> 12.9 | L28: =IFERROR(ZielGewichtsVerlust-K28,"") -> 2.14 | M28: =IFERROR(IF(B27<>"",L28/(ZielGewichtsVerlust),""),"") -> 14%
B29: 2024-04-22 | D29: 17 | E29: =IFERROR(IF($D29<>"",E28+(I28/KalorienProGramm)*IF(GewichtsZiel="INCREASE",1,-1),""),"") -> 147.7 | F29: =IFERROR(LaufenderGU,"") -> 1443 | G29: =IFERROR(IF(K28>0,F28*AktivitätsFaktor+IF(GewichtsZiel="Verwalten",0,IF(GewichtsZiel="REDUZIEREN",-500,IF(GewichtsZiel="Erhöhen",500))),""),"") -> 1738 | H29: =IFERROR(F29*(AktivitätsFaktor),"") -> 2237 | I29: =IFERROR(IF(GewichtsZiel="Erhöhen",G29-H29,H29-G29),"") -> 499 | J29: 44515 | K29: =IFERROR(IF(Standard,J29/KalorienProGramm,J29/KalorienProGramm/2.2),"") -> 12.7 | L29: =IFERROR(ZielGewichtsVerlust-K29,"") -> 2.28 | M29: =IFERROR(IF(B28<>"",L29/(ZielGewichtsVerlust),""),"") -> 15%
B30: 2024-04-23 | D30: 18 | E30: =IFERROR(IF($D30<>"",E29+(I29/KalorienProGramm)*IF(GewichtsZiel="INCREASE",1,-1),""),"") -> 147.6 | F30: =IFERROR(LaufenderGU,"") -> 1443 | G30: =IFERROR(IF(K29>0,F29*AktivitätsFaktor+IF(GewichtsZiel="Verwalten",0,IF(GewichtsZiel="REDUZIEREN",-500,IF(GewichtsZiel="Erhöhen",500))),""),"") -> 1737 | H30: =IFERROR(F30*(AktivitätsFaktor),"") -> 2236 | I30: =IFERROR(IF(GewichtsZiel="Erhöhen",G30-H30,H30-G30),"") -> 499 | J30: 44016 | K30: =IFERROR(IF(Standard,J30/KalorienProGramm,J30/KalorienProGramm/2.2),"") -> 12.6 | L30: =IFERROR(ZielGewichtsVerlust-K30,"") -> 2.42 | M30: =IFERROR(IF(B29<>"",L30/(ZielGewichtsVerlust),""),"") -> 16%
B31: 2024-04-24 | D31: 19 | E31: =IFERROR(IF($D31<>"",E30+(I30/KalorienProGramm)*IF(GewichtsZiel="INCREASE",1,-1),""),"") -> 147.4 | F31: =IFERROR(LaufenderGU,"") -> 1442 | G31: =IFERROR(IF(K30>0,F30*AktivitätsFaktor+IF(GewichtsZiel="Verwalten",0,IF(GewichtsZiel="REDUZIEREN",-500,IF(GewichtsZiel="Erhöhen",500))),""),"") -> 1736 | H31: =IFERROR(F31*(AktivitätsFaktor),"") -> 2235 | I31: =IFERROR(IF(GewichtsZiel="Erhöhen",G31-H31,H31-G31),"") -> 499 | J31: 43517 | K31: =IFERROR(IF(Standard,J31/KalorienProGramm,J31/KalorienProGramm/2.2),"") -> 12.4 | L31: =IFERROR(ZielGewichtsVerlust-K31,"") -> 2.57 | M31: =IFERROR(IF(B30<>"",L31/(ZielGewichtsVerlust),""),"") -> 17%
B32: 2024-04-25 | D32: 20 | E32: =IFERROR(IF($D32<>"",E31+(I31/KalorienProGramm)*IF(GewichtsZiel="INCREASE",1,-1),""),"") -> 147.3 | F32: =IFERROR(LaufenderGU,"") -> 1441 | G32: =IFERROR(IF(K31>0,F31*AktivitätsFaktor+IF(GewichtsZiel="Verwalten",0,IF(GewichtsZiel="REDUZIEREN",-500,IF(GewichtsZiel="Erhöhen",500))),""),"") -> 1735 | H32: =IFERROR(F32*(AktivitätsFaktor),"") -> 2234 | I32: =IFERROR(IF(GewichtsZiel="Erhöhen",G32-H32,H32-G32),"") -> 499 | J32: 43018 | K32: =IFERROR(IF(Standard,J32/KalorienProGramm,J32/KalorienProGramm/2.2),"") -> 12.3 | L32: =IFERROR(ZielGewichtsVerlust-K32,"") -> 2.71 | M32: =IFERROR(IF(B31<>"",L32/(ZielGewichtsVerlust),""),"") -> 18%
B33: 2024-04-26 | D33: 21 | E33: =IFERROR(IF($D33<>"",E32+(I32/KalorienProGramm)*IF(GewichtsZiel="INCREASE",1,-1),""),"") -> 147.1 | F33: =IFERROR(LaufenderGU,"") -> 1441 | G33: =IFERROR(IF(K32>0,F32*AktivitätsFaktor+IF(GewichtsZiel="Verwalten",0,IF(GewichtsZiel="REDUZIEREN",-500,IF(GewichtsZiel="Erhöhen",500))),""),"") -> 1734 | H33: =IFERROR(F33*(AktivitätsFaktor),"") -> 2233 | I33: =IFERROR(IF(GewichtsZiel="Erhöhen",G33-H33,H33-G33),"") -> 499 | J33: 42519 | K33: =IFERROR(IF(Standard,J33/KalorienProGramm,J33/KalorienProGramm/2.2),"") -> 12.1 | L33: =IFERROR(ZielGewichtsVerlust-K33,"") -> 2.85 | M33: =IFERROR(IF(B32<>"",L33/(ZielGewichtsVerlust),""),"") -> 19%
B34: 2024-04-27 | C34: 4 | D34: 22 | E34: =IFERROR(IF($D34<>"",E33+(I33/KalorienProGramm)*IF(GewichtsZiel="INCREASE",1,-1),""),"") -> 147.0 | F34: =IFERROR(LaufenderGU,"") -> 1440 | G34: =IFERROR(IF(K33>0,F33*AktivitätsFaktor+IF(GewichtsZiel="Verwalten",0,IF(GewichtsZiel="REDUZIEREN",-500,IF(GewichtsZiel="Erhöhen",500))),""),"") -> 1733 | H34: =IFERROR(F34*(AktivitätsFaktor),"") -> 2232 | I34: =IFERROR(IF(GewichtsZiel="Erhöhen",G34-H34,H34-G34),"") -> 499 | J34: 42020 | K34: =IFERROR(IF(Standard,J34/KalorienProGramm,J34/KalorienProGramm/2.2),"") -> 12.0 | L34: =IFERROR(ZielGewichtsVerlust-K34,"") -> 2.99 | M34: =IFERROR(IF(B33<>"",L34/(ZielGewichtsVerlust),""),"") -> 20%
B35: 2024-04-28 | D35: 23 | E35: =IFERROR(IF($D35<>"",E34+(I34/KalorienProGramm)*IF(GewichtsZiel="INCREASE",1,-1),""),"") -> 146.9 | F35: =IFERROR(LaufenderGU,"") -> 1440 | G35: =IFERROR(IF(K34>0,F34*AktivitätsFaktor+IF(GewichtsZiel="Verwalten",0,IF(GewichtsZiel="REDUZIEREN",-500,IF(GewichtsZiel="Erhöhen",500))),""),"") -> 1732 | H35: =IFERROR(F35*(AktivitätsFaktor),"") -> 2231 | I35: =IFERROR(IF(GewichtsZiel="Erhöhen",G35-H35,H35-G35),"") -> 499 | J35: 41521 | K35: =IFERROR(IF(Standard,J35/KalorienProGramm,J35/KalorienProGramm/2.2),"") -> 11.9 | L35: =IFERROR(ZielGewichtsVerlust-K35,"") -> 3.14 | M35: =IFERROR(IF(B34<>"",L35/(ZielGewichtsVerlust),""),"") -> 21%
B36: 2024-04-29 | D36: 24 | E36: =IFERROR(IF($D36<>"",E35+(I35/KalorienProGramm)*IF(GewichtsZiel="INCREASE",1,-1),""),"") -> 146.7 | F36: =IFERROR(LaufenderGU,"") -> 1439 | G36: =IFERROR(IF(K35>0,F35*AktivitätsFaktor+IF(GewichtsZiel="Verwalten",0,IF(GewichtsZiel="REDUZIEREN",-500,IF(GewichtsZiel="Erhöhen",500))),""),"") -> 1731 | H36: =IFERROR(F36*(AktivitätsFaktor),"") -> 2230 | I36: =IFERROR(IF(GewichtsZiel="Erhöhen",G36-H36,H36-G36),"") -> 499 | J36: 41022 | K36: =IFERROR(IF(Standard,J36/KalorienProGramm,J36/KalorienProGramm/2.2),"") -> 11.7 | L36: =IFERROR(ZielGewichtsVerlust-K36,"") -> 3.28 | M36: =IFERROR(IF(B35<>"",L36/(ZielGewichtsVerlust),""),"") -> 22%
B37: 2024-04-30 | D37: 25 | E37: =IFERROR(IF($D37<>"",E36+(I36/KalorienProGramm)*IF(GewichtsZiel="INCREASE",1,-1),""),"") -> 146.6 | F37: =IFERROR(LaufenderGU,"") -> 1438 | G37: =IFERROR(IF(K36>0,F36*AktivitätsFaktor+IF(GewichtsZiel="Verwalten",0,IF(GewichtsZiel="REDUZIEREN",-500,IF(GewichtsZiel="Erhöhen",500))),""),"") -> 1730 | H37: =IFERROR(F37*(AktivitätsFaktor),"") -> 2229 | I37: =IFERROR(IF(GewichtsZiel="Erhöhen",G37-H37,H37-G37),"") -> 499 | J37: 40523 | K37: =IFERROR(IF(Standard,J37/KalorienProGramm,J37/KalorienProGramm/2.2),"") -> 11.6 | L37: =IFERROR(ZielGewichtsVerlust-K37,"") -> 3.42 | M37: =IFERROR(IF(B36<>"",L37/(ZielGewichtsVerlust),""),"") -> 23%
B38: 2024-05-01 | D38: 26 | E38: =IFERROR(IF($D38<>"",E37+(I37/KalorienProGramm)*IF(GewichtsZiel="INCREASE",1,-1),""),"") -> 146.4 | F38: =IFERROR(LaufenderGU,"") -> 1438 | G38: =IFERROR(IF(K37>0,F37*AktivitätsFaktor+IF(GewichtsZiel="Verwalten",0,IF(GewichtsZiel="REDUZIEREN",-500,IF(GewichtsZiel="Erhöhen",500))),""),"") -> 1729 | H38: =IFERROR(F38*(AktivitätsFaktor),"") -> 2228 | I38: =IFERROR(IF(GewichtsZiel="Erhöhen",G38-H38,H38-G38),"") -> 499 | J38: 40024 | K38: =IFERROR(IF(Standard,J38/KalorienProGramm,J38/KalorienProGramm/2.2),"") -> 11.4 | L38: =IFERROR(ZielGewichtsVerlust-K38,"") -> 3.56 | M38: =IFERROR(IF(B37<>"",L38/(ZielGewichtsVerlust),""),"") -> 24%
B39: 2024-05-02 | D39: 27 | E39: =IFERROR(IF($D39<>"",E38+(I38/KalorienProGramm)*IF(GewichtsZiel="INCREASE",1,-1),""),"") -> 146.3 | F39: =IFERROR(LaufenderGU,"") -> 1437 | G39: =IFERROR(IF(K38>0,F38*AktivitätsFaktor+IF(GewichtsZiel="Verwalten",0,IF(GewichtsZiel="REDUZIEREN",-500,IF(GewichtsZiel="Erhöhen",500))),""),"") -> 1728 | H39: =IFERROR(F39*(AktivitätsFaktor),"") -> 2227 | I39: =IFERROR(IF(GewichtsZiel="Erhöhen",G39-H39,H39-G39),"") -> 499 | J39: 39525 | K39: =IFERROR(IF(Standard,J39/KalorienProGramm,J39/KalorienProGramm/2.2),"") -> 11.3 | L39: =IFERROR(ZielGewichtsVerlust-K39,"") -> 3.71 | M39: =IFERROR(IF(B38<>"",L39/(ZielGewichtsVerlust),""),"") -> 25%
B40: 2024-05-03 | D40: 28 | E40: =IFERROR(IF($D40<>"",E39+(I39/KalorienProGramm)*IF(GewichtsZiel="INCREASE",1,-1),""),"") -> 146.1 | F40: =IFERROR(LaufenderGU,"") -> 1436 | G40: =IFERROR(IF(K39>0,F39*AktivitätsFaktor+IF(GewichtsZiel="Verwalten",0,IF(GewichtsZiel="REDUZIEREN",-500,IF(GewichtsZiel="Erhöhen",500))),""),"") -> 1727 | H40: =IFERROR(F40*(AktivitätsFaktor),"") -> 2227 | I40: =IFERROR(IF(GewichtsZiel="Erhöhen",G40-H40,H40-G40),"") -> 499 | J40: 39026 | K40: =IFERROR(IF(Standard,J40/KalorienProGramm,J40/KalorienProGramm/2.2),"") -> 11.2 | L40: =IFERROR(ZielGewichtsVerlust-K40,"") -> 3.85 | M40: =IFERROR(IF(B39<>"",L40/(ZielGewichtsVerlust),""),"") -> 26%
B41: 2024-05-04 | C41: 5 | D41: 29 | E41: =IFERROR(IF($D41<>"",E40+(I40/KalorienProGramm)*IF(GewichtsZiel="INCREASE",1,-1),""),"") -> 146.0 | F41: =IFERROR(LaufenderGU,"") -> 1436 | G41: =IFERROR(IF(K40>0,F40*AktivitätsFaktor+IF(GewichtsZiel="Verwalten",0,IF(GewichtsZiel="REDUZIEREN",-500,IF(GewichtsZiel="Erhöhen",500))),""),"") -> 1727 | H41: =IFERROR(F41*(AktivitätsFaktor),"") -> 2226 | I41: =IFERROR(IF(GewichtsZiel="Erhöhen",G41-H41,H41-G41),"") -> 499 | J41: 38527 | K41: =IFERROR(IF(Standard,J41/KalorienProGramm,J41/KalorienProGramm/2.2),"") -> 11.0 | L41: =IFERROR(ZielGewichtsVerlust-K41,"") -> 3.99 | M41: =IFERROR(IF(B40<>"",L41/(ZielGewichtsVerlust),""),"") -> 27%
B42: 2024-05-05 | D42: 30 | E42: =IFERROR(IF($D42<>"",E41+(I41/KalorienProGramm)*IF(GewichtsZiel="INCREASE",1,-1),""),"") -> 145.9 | F42: =IFERROR(LaufenderGU,"") -> 1435 | G42: =IFERROR(IF(K41>0,F41*AktivitätsFaktor+IF(GewichtsZiel="Verwalten",0,IF(GewichtsZiel="REDUZIEREN",-500,IF(GewichtsZiel="Erhöhen",500))),""),"") -> 1726 | H42: =IFERROR(F42*(AktivitätsFaktor),"") -> 2225 | I42: =IFERROR(IF(GewichtsZiel="Erhöhen",G42-H42,H42-G42),"") -> 499 | J42: 38028 | K42: =IFERROR(IF(Standard,J42/KalorienProGramm,J42/KalorienProGramm/2.2),"") -> 10.9 | L42: =IFERROR(ZielGewichtsVerlust-K42,"") -> 4.13 | M42: =IFERROR(IF(B41<>"",L42/(ZielGewichtsVerlust),""),"") -> 28%
B43: 2024-05-06 | D43: 31 | E43: =IFERROR(IF($D43<>"",E42+(I42/KalorienProGramm)*IF(GewichtsZiel="INCREASE",1,-1),""),"") -> 145.7 | F43: =IFERROR(LaufenderGU,"") -> 1435 | G43: =IFERROR(IF(K42>0,F42*AktivitätsFaktor+IF(GewichtsZiel="Verwalten",0,IF(GewichtsZiel="REDUZIEREN",-500,IF(GewichtsZiel="Erhöhen",500))),""),"") -> 1725 | H43: =IFERROR(F43*(AktivitätsFaktor),"") -> 2224 | I43: =IFERROR(IF(GewichtsZiel="Erhöhen",G43-H43,H43-G43),"") -> 499 | J43: 37529 | K43: =IFERROR(IF(Standard,J43/KalorienProGramm,J43/KalorienProGramm/2.2),"") -> 10.7 | L43: =IFERROR(ZielGewichtsVerlust-K43,"") -> 4.28 | M43: =IFERROR(IF(B42<>"",L43/(ZielGewichtsVerlust),""),"") -> 29%
B44: 2024-05-07 | D44: 32 | E44: =IFERROR(IF($D44<>"",E43+(I43/KalorienProGramm)*IF(GewichtsZiel="INCREASE",1,-1),""),"") -> 145.6 | F44: =IFERROR(LaufenderGU,"") -> 1434 | G44: =IFERROR(IF(K43>0,F43*AktivitätsFaktor+IF(GewichtsZiel="Verwalten",0,IF(GewichtsZiel="REDUZIEREN",-500,IF(GewichtsZiel="Erhöhen",500))),""),"") -> 1724 | H44: =IFERROR(F44*(AktivitätsFaktor),"") -> 2223 | I44: =IFERROR(IF(GewichtsZiel="Erhöhen",G44-H44,H44-G44),"") -> 499 | J44: 37030 | K44: =IFERROR(IF(Standard,J44/KalorienProGramm,J44/KalorienProGramm/2.2),"") -> 10.6 | L44: =IFERROR(ZielGewichtsVerlust-K44,"") -> 4.42 | M44: =IFERROR(IF(B43<>"",L44/(ZielGewichtsVerlust),""),"") -> 29%
B45: 2024-05-08 | D45: 33 | E45: =IFERROR(IF($D45<>"",E44+(I44/KalorienProGramm)*IF(GewichtsZiel="INCREASE",1,-1),""),"") -> 145.4 | F45: =IFERROR(LaufenderGU,"") -> 1433 | G45: =IFERROR(IF(K44>0,F44*AktivitätsFaktor+IF(GewichtsZiel="Verwalten",0,IF(GewichtsZiel="REDUZIEREN",-500,IF(GewichtsZiel="Erhöhen",500))),""),"") -> 1723 | H45: =IFERROR(F45*(AktivitätsFaktor),"") -> 2222 | I45: =IFERROR(IF(GewichtsZiel="Erhöhen",G45-H45,H45-G45),"") -> 499 | J45: 36531 | K45: =IFERROR(IF(Standard,J45/KalorienProGramm,J45/KalorienProGramm/2.2),"") -> 10.4 | L45: =IFERROR(ZielGewichtsVerlust-K45,"") -> 4.56 | M45: =IFERROR(IF(B44<>"",L45/(ZielGewichtsVerlust),""),"") -> 30%
B46: 2024-05-09 | D46: 34 | E46: =IFERROR(IF($D46<>"",E45+(I45/KalorienProGramm)*IF(GewichtsZiel="INCREASE",1,-1),""),"") -> 145.3 | F46: =IFERROR(LaufenderGU,"") -> 1433 | G46: =IFERROR(IF(K45>0,F45*AktivitätsFaktor+IF(GewichtsZiel="Verwalten",0,IF(GewichtsZiel="REDUZIEREN",-500,IF(GewichtsZiel="Erhöhen",500))),""),"") -> 1722 | H46: =IFERROR(F46*(AktivitätsFaktor),"") -> 2221 | I46: =IFERROR(IF(GewichtsZiel="Erhöhen",G46-H46,H46-G46),"") -> 499 | J46: 36032 | K46: =IFERROR(IF(Standard,J46/KalorienProGramm,J46/KalorienProGramm/2.2),"") -> 10.3 | L46: =IFERROR(ZielGewichtsVerlust-K46,"") -> 4.71 | M46: =IFERROR(IF(B45<>"",L46/(ZielGewichtsVerlust),""),"") -> 31%
B47: 2024-05-10 | D47: 35 | E47: =IFERROR(IF($D47<>"",E46+(I46/KalorienProGramm)*IF(GewichtsZiel="INCREASE",1,-1),""),"") -> 145.2 | F47: =IFERROR(LaufenderGU,"") -> 1432 | G47: =IFERROR(IF(K46>0,F46*AktivitätsFaktor+IF(GewichtsZiel="Verwalten",0,IF(GewichtsZiel="REDUZIEREN",-500,IF(GewichtsZiel="Erhöhen",500))),""),"") -> 1721 | H47: =IFERROR(F47*(AktivitätsFaktor),"") -> 2220 | I47: =IFERROR(IF(GewichtsZiel="Erhöhen",G47-H47,H47-G47),"") -> 499 | J47: 35533 | K47: =IFERROR(IF(Standard,J47/KalorienProGramm,J47/KalorienProGramm/2.2),"") -> 10.2 | L47: =IFERROR(ZielGewichtsVerlust-K47,"") -> 4.85 | M47: =IFERROR(IF(B46<>"",L47/(ZielGewichtsVerlust),""),"") -> 32%
B48: 2024-05-11 | C48: 6 | D48: 36 | E48: =IFERROR(IF($D48<>"",E47+(I47/KalorienProGramm)*IF(GewichtsZiel="INCREASE",1,-1),""),"") -> 145.0 | F48: =IFERROR(LaufenderGU,"") -> 1431 | G48: =IFERROR(IF(K47>0,F47*AktivitätsFaktor+IF(GewichtsZiel="Verwalten",0,IF(GewichtsZiel="REDUZIEREN",-500,IF(GewichtsZiel="Erhöhen",500))),""),"") -> 1720 | H48: =IFERROR(F48*(AktivitätsFaktor),"") -> 2219 | I48: =IFERROR(IF(GewichtsZiel="Erhöhen",G48-H48,H48-G48),"") -> 499 | J48: 35034 | K48: =IFERROR(IF(Standard,J48/KalorienProGramm,J48/KalorienProGramm/2.2),"") -> 10.0 | L48: =IFERROR(ZielGewichtsVerlust-K48,"") -> 4.99 | M48: =IFERROR(IF(B47<>"",L48/(ZielGewichtsVerlust),""),"") -> 33%
B49: 2024-05-12 | D49: 37 | E49: =IFERROR(IF($D49<>"",E48+(I48/KalorienProGramm)*IF(GewichtsZiel="INCREASE",1,-1),""),"") -> 144.9 | F49: =IFERROR(LaufenderGU,"") -> 1431 | G49: =IFERROR(IF(K48>0,F48*AktivitätsFaktor+IF(GewichtsZiel="Verwalten",0,IF(GewichtsZiel="REDUZIEREN",-500,IF(GewichtsZiel="Erhöhen",500))),""),"") -> 1719 | H49: =IFERROR(F49*(AktivitätsFaktor),"") -> 2218 | I49: =IFERROR(IF(GewichtsZiel="Erhöhen",G49-H49,H49-G49),"") -> 499 | J49: 34535 | K49: =IFERROR(IF(Standard,J49/KalorienProGramm,J49/KalorienProGramm/2.2),"") -> 9.9 | L49: =IFERROR(ZielGewichtsVerlust-K49,"") -> 5.13 | M49: =IFERROR(IF(B48<>"",L49/(ZielGewichtsVerlust),""),"") -> 34%
B50: 2024-05-13 | D50: 38 | E50: =IFERROR(IF($D50<>"",E49+(I49/KalorienProGramm)*IF(GewichtsZiel="INCREASE",1,-1),""),"") -> 144.7 | F50: =IFERROR(LaufenderGU,"") -> 1430 | G50: =IFERROR(IF(K49>0,F49*AktivitätsFaktor+IF(GewichtsZiel="Verwalten",0,IF(GewichtsZiel="REDUZIEREN",-500,IF(GewichtsZiel="Erhöhen",500))),""),"") -> 1718 | H50: =IFERROR(F50*(AktivitätsFaktor),"") -> 2217 | I50: =IFERROR(IF(GewichtsZiel="Erhöhen",G50-H50,H50-G50),"") -> 499 | J50: 34036 | K50: =IFERROR(IF(Standard,J50/KalorienProGramm,J50/KalorienProGramm/2.2),"") -> 9.7 | L50: =IFERROR(ZielGewichtsVerlust-K50,"") -> 5.28 | M50: =IFERROR(IF(B49<>"",L50/(ZielGewichtsVerlust),""),"") -> 35%
B51: 2024-05-14 | D51: 39 | E51: =IFERROR(IF($D51<>"",E50+(I50/KalorienProGramm)*IF(GewichtsZiel="INCREASE",1,-1),""),"") -> 144.6 | F51: =IFERROR(LaufenderGU,"") -> 1430 | G51: =IFERROR(IF(K50>0,F50*AktivitätsFaktor+IF(GewichtsZiel="Verwalten",0,IF(GewichtsZiel="REDUZIEREN",-500,IF(GewichtsZiel="Erhöhen",500))),""),"") -> 1717 | H51: =IFERROR(F51*(AktivitätsFaktor),"") -> 2216 | I51: =IFERROR(IF(GewichtsZiel="Erhöhen",G51-H51,H51-G51),"") -> 499 | J51: 33537 | K51: =IFERROR(IF(Standard,J51/KalorienProGramm,J51/KalorienProGramm/2.2),"") -> 9.6 | L51: =IFERROR(ZielGewichtsVerlust-K51,"") -> 5.42 | M51: =IFERROR(IF(B50<>"",L51/(ZielGewichtsVerlust),""),"") -> 36%
B52: 2024-05-15 | D52: 40 | E52: =IFERROR(IF($D52<>"",E51+(I51/KalorienProGramm)*IF(GewichtsZiel="INCREASE",1,-1),""),"") -> 144.4 | F52: =IFERROR(LaufenderGU,"") -> 1429 | G52: =IFERROR(IF(K51>0,F51*AktivitätsFaktor+IF(GewichtsZiel="Verwalten",0,IF(GewichtsZiel="REDUZIEREN",-500,IF(GewichtsZiel="Erhöhen",500))),""),"") -> 1716 | H52: =IFERROR(F52*(AktivitätsFaktor),"") -> 2215 | I52: =IFERROR(IF(GewichtsZiel="Erhöhen",G52-H52,H52-G52),"") -> 499 | J52: 33037 | K52: =IFERROR(IF(Standard,J52/KalorienProGramm,J52/KalorienProGramm/2.2),"") -> 9.4 | L52: =IFERROR(ZielGewichtsVerlust-K52,"") -> 5.56 | M52: =IFERROR(IF(B51<>"",L52/(ZielGewichtsVerlust),""),"") -> 37%
B53: 2024-05-16 | D53: 41 | E53: =IFERROR(IF($D53<>"",E52+(I52/KalorienProGramm)*IF(GewichtsZiel="INCREASE",1,-1),""),"") -> 144.3 | F53: =IFERROR(LaufenderGU,"") -> 1428 | G53: =IFERROR(IF(K52>0,F52*AktivitätsFaktor+IF(GewichtsZiel="Verwalten",0,IF(GewichtsZiel="REDUZIEREN",-500,IF(GewichtsZiel="Erhöhen",500))),""),"") -> 1715 | H53: =IFERROR(F53*(AktivitätsFaktor),"") -> 2214 | I53: =IFERROR(IF(GewichtsZiel="Erhöhen",G53-H53,H53-G53),"") -> 499 | J53: 32538 | K53: =IFERROR(IF(Standard,J53/KalorienProGramm,J53/KalorienProGramm/2.2),"") -> 9.3 | L53: =IFERROR(ZielGewichtsVerlust-K53,"") -> 5.70 | M53: =IFERROR(IF(B52<>"",L53/(ZielGewichtsVerlust),""),"") -> 38%
B54: 2024-05-17 | D54: 42 | E54: =IFERROR(IF($D54<>"",E53+(I53/KalorienProGramm)*IF(GewichtsZiel="INCREASE",1,-1),""),"") -> 144.2 | F54: =IFERROR(LaufenderGU,"") -> 1428 | G54: =IFERROR(IF(K53>0,F53*AktivitätsFaktor+IF(GewichtsZiel="Verwalten",0,IF(GewichtsZiel="REDUZIEREN",-500,IF(GewichtsZiel="Erhöhen",500))),""),"") -> 1714 | H54: =IFERROR(F54*(AktivitätsFaktor),"") -> 2213 | I54: =IFERROR(IF(GewichtsZiel="Erhöhen",G54-H54,H54-G54),"") -> 499 | J54: 32039 | K54: =IFERROR(IF(Standard,J54/KalorienProGramm,J54/KalorienProGramm/2.2),"") -> 9.2 | L54: =IFERROR(ZielGewichtsVerlust-K54,"") -> 5.85 | M54: =IFERROR(IF(B53<>"",L54/(ZielGewichtsVerlust),""),"") -> 39%
B55: 2024-05-18 | C55: 7 | D55: 43 | E55: =IFERROR(IF($D55<>"",E54+(I54/KalorienProGramm)*IF(GewichtsZiel="INCREASE",1,-1),""),"") -> 144.0 | F55: =IFERROR(LaufenderGU,"") -> 1427 | G55: =IFERROR(IF(K54>0,F54*AktivitätsFaktor+IF(GewichtsZiel="Verwalten",0,IF(GewichtsZiel="REDUZIEREN",-500,IF(GewichtsZiel="Erhöhen",500))),""),"") -> 1713 | H55: =IFERROR(F55*(AktivitätsFaktor),"") -> 2212 | I55: =IFERROR(IF(GewichtsZiel="Erhöhen",G55-H55,H55-G55),"") -> 499 | J55: 31540 | K55: =IFERROR(IF(Standard,J55/KalorienProGramm,J55/KalorienProGramm/2.2),"") -> 9.0 | L55: =IFERROR(ZielGewichtsVerlust-K55,"") -> 5.99 | M55: =IFERROR(IF(B54<>"",L55/(ZielGewichtsVerlust),""),"") -> 40%
B56: 2024-05-19 | D56: 44 | E56: =IFERROR(IF($D56<>"",E55+(I55/KalorienProGramm)*IF(GewichtsZiel="INCREASE",1,-1),""),"") -> 143.9 | F56: =IFERROR(LaufenderGU,"") -> 1427 | G56: =IFERROR(IF(K55>0,F55*AktivitätsFaktor+IF(GewichtsZiel="Verwalten",0,IF(GewichtsZiel="REDUZIEREN",-500,IF(GewichtsZiel="Erhöhen",500))),""),"") -> 1712 | H56: =IFERROR(F56*(AktivitätsFaktor),"") -> 2211 | I56: =IFERROR(IF(GewichtsZiel="Erhöhen",G56-H56,H56-G56),"") -> 499 | J56: 31041 | K56: =IFERROR(IF(Standard,J56/KalorienProGramm,J56/KalorienProGramm/2.2),"") -> 8.9 | L56: =IFERROR(ZielGewichtsVerlust-K56,"") -> 6.13 | M56: =IFERROR(IF(B55<>"",L56/(ZielGewichtsVerlust),""),"") -> 41%
B57: 2024-05-20 | D57: 45 | E57: =IFERROR(IF($D57<>"",E56+(I56/KalorienProGramm)*IF(GewichtsZiel="INCREASE",1,-1),""),"") -> 143.7 | F57: =IFERROR(LaufenderGU,"") -> 1426 | G57: =IFERROR(IF(K56>0,F56*AktivitätsFaktor+IF(GewichtsZiel="Verwalten",0,IF(GewichtsZiel="REDUZIEREN",-500,IF(GewichtsZiel="Erhöhen",500))),""),"") -> 1711 | H57: =IFERROR(F57*(AktivitätsFaktor),"") -> 2210 | I57: =IFERROR(IF(GewichtsZiel="Erhöhen",G57-H57,H57-G57),"") -> 499 | J57: 30542 | K57: =IFERROR(IF(Standard,J57/KalorienProGramm,J57/KalorienProGramm/2.2),"") -> 8.7 | L57: =IFERROR(ZielGewichtsVerlust-K57,"") -> 6.27 | M57: =IFERROR(IF(B56<>"",L57/(ZielGewichtsVerlust),""),"") -> 42%
B58: 2024-05-21 | D58: 46 | E58: =IFERROR(IF($D58<>"",E57+(I57/KalorienProGramm)*IF(GewichtsZiel="INCREASE",1,-1),""),"") -> 143.6 | F58: =IFERROR(LaufenderGU,"") -> 1425 | G58: =IFERROR(IF(K57>0,F57*AktivitätsFaktor+IF(GewichtsZiel="Verwalten",0,IF(GewichtsZiel="REDUZIEREN",-500,IF(GewichtsZiel="Erhöhen",500))),""),"") -> 1710 | H58: =IFERROR(F58*(AktivitätsFaktor),"") -> 2209 | I58: =IFERROR(IF(GewichtsZiel="Erhöhen",G58-H58,H58-G58),"") -> 499 | J58: 30043 | K58: =IFERROR(IF(Standard,J58/KalorienProGramm,J58/KalorienProGramm/2.2),"") -> 8.6 | L58: =IFERROR(ZielGewichtsVerlust-K58,"") -> 6.42 | M58: =IFERROR(IF(B57<>"",L58/(ZielGewichtsVerlust),""),"") -> 43%
B59: 2024-05-22 | D59: 47 | E59: =IFERROR(IF($D59<>"",E58+(I58/KalorienProGramm)*IF(GewichtsZiel="INCREASE",1,-1),""),"") -> 143.4 | F59: =IFERROR(LaufenderGU,"") -> 1425 | G59: =IFERROR(IF(K58>0,F58*AktivitätsFaktor+IF(GewichtsZiel="Verwalten",0,IF(GewichtsZiel="REDUZIEREN",-500,IF(GewichtsZiel="Erhöhen",500))),""),"") -> 1709 | H59: =IFERROR(F59*(AktivitätsFaktor),"") -> 2208 | I59: =IFERROR(IF(GewichtsZiel="Erhöhen",G59-H59,H59-G59),"") -> 499 | J59: 29544 | K59: =IFERROR(IF(Standard,J59/KalorienProGramm,J59/KalorienProGramm/2.2),"") -> 8.4 | L59: =IFERROR(ZielGewichtsVerlust-K59,"") -> 6.56 | M59: =IFERROR(IF(B58<>"",L59/(ZielGewichtsVerlust),""),"") -> 44%
B60: 2024-05-23 | D60: 48 | E60: =IFERROR(IF($D60<>"",E59+(I59/KalorienProGramm)*IF(GewichtsZiel="INCREASE",1,-1),""),"") -> 143.3 | F60: =IFERROR(LaufenderGU,"") -> 1424 | G60: =IFERROR(IF(K59>0,F59*AktivitätsFaktor+IF(GewichtsZiel="Verwalten",0,IF(GewichtsZiel="REDUZIEREN",-500,IF(GewichtsZiel="Erhöhen",500))),""),"") -> 1708 | H60: =IFERROR(F60*(AktivitätsFaktor),"") -> 2207 | I60: =IFERROR(IF(GewichtsZiel="Erhöhen",G60-H60,H60-G60),"") -> 499 | J60: 29045 | K60: =IFERROR(IF(Standard,J60/KalorienProGramm,J60/KalorienProGramm/2.2),"") -> 8.3 | L60: =IFERROR(ZielGewichtsVerlust-K60,"") -> 6.70 | M60: =IFERROR(IF(B59<>"",L60/(ZielGewichtsVerlust),""),"") -> 45%
B61: 2024-05-24 | D61: 49 | E61: =IFERROR(IF($D61<>"",E60+(I60/KalorienProGramm)*IF(GewichtsZiel="INCREASE",1,-1),""),"") -> 143.2 | F61: =IFERROR(LaufenderGU,"") -> 1423 | G61: =IFERROR(IF(K60>0,F60*AktivitätsFaktor+IF(GewichtsZiel="Verwalten",0,IF(GewichtsZiel="REDUZIEREN",-500,IF(GewichtsZiel="Erhöhen",500))),""),"") -> 1707 | H61: =IFERROR(F61*(AktivitätsFaktor),"") -> 2206 | I61: =IFERROR(IF(GewichtsZiel="Erhöhen",G61-H61,H61-G61),"") -> 499 | J61: 28546 | K61: =IFERROR(IF(Standard,J61/KalorienProGramm,J61/KalorienProGramm/2.2),"") -> 8.2 | L61: =IFERROR(ZielGewichtsVerlust-K61,"") -> 6.84 | M61: =IFERROR(IF(B60<>"",L61/(ZielGewichtsVerlust),""),"") -> 46%
B62: 2024-05-25 | C62: 8 | D62: 50 | E62: =IFERROR(IF($D62<>"",E61+(I61/KalorienProGramm)*IF(GewichtsZiel="INCREASE",1,-1),""),"") -> 143.0 | F62: =IFERROR(LaufenderGU,"") -> 1423 | G62: =IFERROR(IF(K61>0,F61*AktivitätsFaktor+IF(GewichtsZiel="Verwalten",0,IF(GewichtsZiel="REDUZIEREN",-500,IF(GewichtsZiel="Erhöhen",500))),""),"") -> 1706 | H62: =IFERROR(F62*(AktivitätsFaktor),"") -> 2205 | I62: =IFERROR(IF(GewichtsZiel="Erhöhen",G62-H62,H62-G62),"") -> 499 | J62: 28047 | K62: =IFERROR(IF(Standard,J62/KalorienProGramm,J62/KalorienProGramm/2.2),"") -> 8.0 | L62: =IFERROR(ZielGewichtsVerlust-K62,"") -> 6.99 | M62: =IFERROR(IF(B61<>"",L62/(ZielGewichtsVerlust),""),"") -> 47%
B63: 2024-05-26 | D63: 51 | E63: =IFERROR(IF($D63<>"",E62+(I62/KalorienProGramm)*IF(GewichtsZiel="INCREASE",1,-1),""),"") -> 142.9 | F63: =IFERROR(LaufenderGU,"") -> 1422 | G63: =IFERROR(IF(K62>0,F62*AktivitätsFaktor+IF(GewichtsZiel="Verwalten",0,IF(GewichtsZiel="REDUZIEREN",-500,IF(GewichtsZiel="Erhöhen",500))),""),"") -> 1705 | H63: =IFERROR(F63*(AktivitätsFaktor),"") -> 2204 | I63: =IFERROR(IF(GewichtsZiel="Erhöhen",G63-H63,H63-G63),"") -> 499 | J63: 27548 | K63: =IFERROR(IF(Standard,J63/KalorienProGramm,J63/KalorienProGramm/2.2),"") -> 7.9 | L63: =IFERROR(ZielGewichtsVerlust-K63,"") -> 7.13 | M63: =IFERROR(IF(B62<>"",L63/(ZielGewichtsVerlust),""),"") -> 48%
B64: 2024-05-27 | D64: 52 | E64: =IFERROR(IF($D64<>"",E63+(I63/KalorienProGramm)*IF(GewichtsZiel="INCREASE",1,-1),""),"") -> 142.7 | F64: =IFERROR(LaufenderGU,"") -> 1422 | G64: =IFERROR(IF(K63>0,F63*AktivitätsFaktor+IF(GewichtsZiel="Verwalten",0,IF(GewichtsZiel="REDUZIEREN",-500,IF(GewichtsZiel="Erhöhen",500))),""),"") -> 1704 | H64: =IFERROR(F64*(AktivitätsFaktor),"") -> 2203 | I64: =IFERROR(IF(GewichtsZiel="Erhöhen",G64-H64,H64-G64),"") -> 499 | J64: 27049 | K64: =IFERROR(IF(Standard,J64/KalorienProGramm,J64/KalorienProGramm/2.2),"") -> 7.7 | L64: =IFERROR(ZielGewichtsVerlust-K64,"") -> 7.27 | M64: =IFERROR(IF(B63<>"",L64/(ZielGewichtsVerlust),""),"") -> 48%
B65: 2024-05-28 | D65: 53 | E65: =IFERROR(IF($D65<>"",E64+(I64/KalorienProGramm)*IF(GewichtsZiel="INCREASE",1,-1),""),"") -> 142.6 | F65: =IFERROR(LaufenderGU,"") -> 1421 | G65: =IFERROR(IF(K64>0,F64*AktivitätsFaktor+IF(GewichtsZiel="Verwalten",0,IF(GewichtsZiel="REDUZIEREN",-500,IF(GewichtsZiel="Erhöhen",500))),""),"") -> 1703 | H65: =IFERROR(F65*(AktivitätsFaktor),"") -> 2202 | I65: =IFERROR(IF(GewichtsZiel="Erhöhen",G65-H65,H65-G65),"") -> 499 | J65: 26550 | K65: =IFERROR(IF(Standard,J65/KalorienProGramm,J65/KalorienProGramm/2.2),"") -> 7.6 | L65: =IFERROR(ZielGewichtsVerlust-K65,"") -> 7.41 | M65: =IFERROR(IF(B64<>"",L65/(ZielGewichtsVerlust),""),"") -> 49%
B66: 2024-05-29 | D66: 54 | E66: =IFERROR(IF($D66<>"",E65+(I65/KalorienProGramm)*IF(GewichtsZiel="INCREASE",1,-1),""),"") -> 142.4 | F66: =IFERROR(LaufenderGU,"") -> 1420 | G66: =IFERROR(IF(K65>0,F65*AktivitätsFaktor+IF(GewichtsZiel="Verwalten",0,IF(GewichtsZiel="REDUZIEREN",-500,IF(GewichtsZiel="Erhöhen",500))),""),"") -> 1702 | H66: =IFERROR(F66*(AktivitätsFaktor),"") -> 2202 | I66: =IFERROR(IF(GewichtsZiel="Erhöhen",G66-H66,H66-G66),"") -> 499 | J66: 26051 | K66: =IFERROR(IF(Standard,J66/KalorienProGramm,J66/KalorienProGramm/2.2),"") -> 7.4 | L66: =IFERROR(ZielGewichtsVerlust-K66,"") -> 7.56 | M66: =IFERROR(IF(B65<>"",L66/(ZielGewichtsVerlust),""),"") -> 50%
B67: 2024-05-30 | D67: 55 | E67: =IFERROR(IF($D67<>"",E66+(I66/KalorienProGramm)*IF(GewichtsZiel="INCREASE",1,-1),""),"") -> 142.3 | F67: =IFERROR(LaufenderGU,"") -> 1420 | G67: =IFERROR(IF(K66>0,F66*AktivitätsFaktor+IF(GewichtsZiel="Verwalten",0,IF(GewichtsZiel="REDUZIEREN",-500,IF(GewichtsZiel="Erhöhen",500))),""),"") -> 1702 | H67: =IFERROR(F67*(AktivitätsFaktor),"") -> 2201 | I67: =IFERROR(IF(GewichtsZiel="Erhöhen",G67-H67,H67-G67),"") -> 499 | J67: 25552 | K67: =IFERROR(IF(Standard,J67/KalorienProGramm,J67/KalorienProGramm/2.2),"") -> 7.3 | L67: =IFERROR(ZielGewichtsVerlust-K67,"") -> 7.70 | M67: =IFERROR(IF(B66<>"",L67/(ZielGewichtsVerlust),""),"") -> 51%
B68: 2024-05-31 | D68: 56 | E68: =IFERROR(IF($D68<>"",E67+(I67/KalorienProGramm)*IF(GewichtsZiel="INCREASE",1,-1),""),"") -> 142.2 | F68: =IFERROR(LaufenderGU,"") -> 1419 | G68: =IFERROR(IF(K67>0,F67*AktivitätsFaktor+IF(GewichtsZiel="Verwalten",0,IF(GewichtsZiel="REDUZIEREN",-500,IF(GewichtsZiel="Erhöhen",500))),""),"") -> 1701 | H68: =IFERROR(F68*(AktivitätsFaktor),"") -> 2200 | I68: =IFERROR(IF(GewichtsZiel="Erhöhen",G68-H68,H68-G68),"") -> 499 | J68: 25053 | K68: =IFERROR(IF(Standard,J68/KalorienProGramm,J68/KalorienProGramm/2.2),"") -> 7.2 | L68: =IFERROR(ZielGewichtsVerlust-K68,"") -> 7.84 | M68: =IFERROR(IF(B67<>"",L68/(ZielGewichtsVerlust),""),"") -> 52%
B69: 2024-06-01 | C69: 9 | D69: 57 | E69: =IFERROR(IF($D69<>"",E68+(I68/KalorienProGramm)*IF(GewichtsZiel="INCREASE",1,-1),""),"") -> 142.0 | F69: =IFERROR(LaufenderGU,"") -> 1418 | G69: =IFERROR(IF(K68>0,F68*AktivitätsFaktor+IF(GewichtsZiel="Verwalten",0,IF(GewichtsZiel="REDUZIEREN",-500,IF(GewichtsZiel="Erhöhen",500))),""),"") -> 1700 | H69: =IFERROR(F69*(AktivitätsFaktor),"") -> 2199 | I69: =IFERROR(IF(GewichtsZiel="Erhöhen",G69-H69,H69-G69),"") -> 499 | J69: 24554 | K69: =IFERROR(IF(Standard,J69/KalorienProGramm,J69/KalorienProGramm/2.2),"") -> 7.0 | L69: =IFERROR(ZielGewichtsVerlust-K69,"") -> 7.98 | M69: =IFERROR(IF(B68<>"",L69/(ZielGewichtsVerlust),""),"") -> 53%
B70: 2024-06-02 | D70: 58 | E70: =IFERROR(IF($D70<>"",E69+(I69/KalorienProGramm)*IF(GewichtsZiel="INCREASE",1,-1),""),"") -> 141.9 | F70: =IFERROR(LaufenderGU,"") -> 1418 | G70: =IFERROR(IF(K69>0,F69*AktivitätsFaktor+IF(GewichtsZiel="Verwalten",0,IF(GewichtsZiel="REDUZIEREN",-500,IF(GewichtsZiel="Erhöhen",500))),""),"") -> 1699 | H70: =IFERROR(F70*(AktivitätsFaktor),"") -> 2198 | I70: =IFERROR(IF(GewichtsZiel="Erhöhen",G70-H70,H70-G70),"") -> 499 | J70: 24055 | K70: =IFERROR(IF(Standard,J70/KalorienProGramm,J70/KalorienProGramm/2.2),"") -> 6.9 | L70: =IFERROR(ZielGewichtsVerlust-K70,"") -> 8.13 | M70: =IFERROR(IF(B69<>"",L70/(ZielGewichtsVerlust),""),"") -> 54%
B71: 2024-06-03 | D71: 59 | E71: =IFERROR(IF($D71<>"",E70+(I70/KalorienProGramm)*IF(GewichtsZiel="INCREASE",1,-1),""),"") -> 141.7 | F71: =IFERROR(LaufenderGU,"") -> 1417 | G71: =IFERROR(IF(K70>0,F70*AktivitätsFaktor+IF(GewichtsZiel="Verwalten",0,IF(GewichtsZiel="REDUZIEREN",-500,IF(GewichtsZiel="Erhöhen",500))),""),"") -> 1698 | H71: =IFERROR(F71*(AktivitätsFaktor),"") -> 2197 | I71: =IFERROR(IF(GewichtsZiel="Erhöhen",G71-H71,H71-G71),"") -> 499 | J71: 23556 | K71: =IFERROR(IF(Standard,J71/KalorienProGramm,J71/KalorienProGramm/2.2),"") -> 6.7 | L71: =IFERROR(ZielGewichtsVerlust-K71,"") -> 8.27 | M71: =IFERROR(IF(B70<>"",L71/(ZielGewichtsVerlust),""),"") -> 55%
B72: 2024-06-04 | D72: 60 | E72: =IFERROR(IF($D72<>"",E71+(I71/KalorienProGramm)*IF(GewichtsZiel="INCREASE",1,-1),""),"") -> 141.6 | F72: =IFERROR(LaufenderGU,"") -> 1417 | G72: =IFERROR(IF(K71>0,F71*AktivitätsFaktor+IF(GewichtsZiel="Verwalten",0,IF(GewichtsZiel="REDUZIEREN",-500,IF(GewichtsZiel="Erhöhen",500))),""),"") -> 1697 | H72: =IFERROR(F72*(AktivitätsFaktor),"") -> 2196 | I72: =IFERROR(IF(GewichtsZiel="Erhöhen",G72-H72,H72-G72),"") -> 499 | J72: 23057 | K72: =IFERROR(IF(Standard,J72/KalorienProGramm,J72/KalorienProGramm/2.2),"") -> 6.6 | L72: =IFERROR(ZielGewichtsVerlust-K72,"") -> 8.41 | M72: =IFERROR(IF(B71<>"",L72/(ZielGewichtsVerlust),""),"") -> 56%
B73: 2024-06-05 | D73: 61 | E73: =IFERROR(IF($D73<>"",E72+(I72/KalorienProGramm)*IF(GewichtsZiel="INCREASE",1,-1),""),"") -> 141.4 | F73: =IFERROR(LaufenderGU,"") -> 1416 | G73: =IFERROR(IF(K72>0,F72*AktivitätsFaktor+IF(GewichtsZiel="Verwalten",0,IF(GewichtsZiel="REDUZIEREN",-500,IF(GewichtsZiel="Erhöhen",500))),""),"") -> 1696 | H73: =IFERROR(F73*(AktivitätsFaktor),"") -> 2195 | I73: =IFERROR(IF(GewichtsZiel="Erhöhen",G73-H73,H73-G73),"") -> 499 | J73: 22558 | K73: =IFERROR(IF(Standard,J73/KalorienProGramm,J73/KalorienProGramm/2.2),"") -> 6.4 | L73: =IFERROR(ZielGewichtsVerlust-K73,"") -> 8.55 | M73: =IFERROR(IF(B72<>"",L73/(ZielGewichtsVerlust),""),"") -> 57%
B74: 2024-06-06 | D74: 62 | E74: =IFERROR(IF($D74<>"",E73+(I73/KalorienProGramm)*IF(GewichtsZiel="INCREASE",1,-1),""),"") -> 141.3 | F74: =IFERROR(LaufenderGU,"") -> 1415 | G74: =IFERROR(IF(K73>0,F73*AktivitätsFaktor+IF(GewichtsZiel="Verwalten",0,IF(GewichtsZiel="REDUZIEREN",-500,IF(GewichtsZiel="Erhöhen",500))),""),"") -> 1695 | H74: =IFERROR(F74*(AktivitätsFaktor),"") -> 2194 | I74: =IFERROR(IF(GewichtsZiel="Erhöhen",G74-H74,H74-G74),"") -> 499 | J74: 22059 | K74: =IFERROR(IF(Standard,J74/KalorienProGramm,J74/KalorienProGramm/2.2),"") -> 6.3 | L74: =IFERROR(ZielGewichtsVerlust-K74,"") -> 8.70 | M74: =IFERROR(IF(B73<>"",L74/(ZielGewichtsVerlust),""),"") -> 58%
B75: 2024-06-07 | D75: 63 | E75: =IFERROR(IF($D75<>"",E74+(I74/KalorienProGramm)*IF(GewichtsZiel="INCREASE",1,-1),""),"") -> 141.2 | F75: =IFERROR(LaufenderGU,"") -> 1415 | G75: =IFERROR(IF(K74>0,F74*AktivitätsFaktor+IF(GewichtsZiel="Verwalten",0,IF(GewichtsZiel="REDUZIEREN",-500,IF(GewichtsZiel="Erhöhen",500))),""),"") -> 1694 | H75: =IFERROR(F75*(AktivitätsFaktor),"") -> 2193 | I75: =IFERROR(IF(GewichtsZiel="Erhöhen",G75-H75,H75-G75),"") -> 499 | J75: 21560 | K75: =IFERROR(IF(Standard,J75/KalorienProGramm,J75/KalorienProGramm/2.2),"") -> 6.2 | L75: =IFERROR(ZielGewichtsVerlust-K75,"") -> 8.84 | M75: =IFERROR(IF(B74<>"",L75/(ZielGewichtsVerlust),""),"") -> 59%
B76: 2024-06-08 | C76: 10 | D76: 64 | E76: =IFERROR(IF($D76<>"",E75+(I75/KalorienProGramm)*IF(GewichtsZiel="INCREASE",1,-1),""),"") -> 141.0 | F76: =IFERROR(LaufenderGU,"") -> 1414 | G76: =IFERROR(IF(K75>0,F75*AktivitätsFaktor+IF(GewichtsZiel="Verwalten",0,IF(GewichtsZiel="REDUZIEREN",-500,IF(GewichtsZiel="Erhöhen",500))),""),"") -> 1693 | H76: =IFERROR(F76*(AktivitätsFaktor),"") -> 2192 | I76: =IFERROR(IF(GewichtsZiel="Erhöhen",G76-H76,H76-G76),"") -> 499 | J76: 21061 | K76: =IFERROR(IF(Standard,J76/KalorienProGramm,J76/KalorienProGramm/2.2),"") -> 6.0 | L76: =IFERROR(ZielGewichtsVerlust-K76,"") -> 8.98 | M76: =IFERROR(IF(B75<>"",L76/(ZielGewichtsVerlust),""),"") -> 60%
B77: 2024-06-09 | D77: 65 | E77: =IFERROR(IF($D77<>"",E76+(I76/KalorienProGramm)*IF(GewichtsZiel="INCREASE",1,-1),""),"") -> 140.9 | F77: =IFERROR(LaufenderGU,"") -> 1414 | G77: =IFERROR(IF(K76>0,F76*AktivitätsFaktor+IF(GewichtsZiel="Verwalten",0,IF(GewichtsZiel="REDUZIEREN",-500,IF(GewichtsZiel="Erhöhen",500))),""),"") -> 1692 | H77: =IFERROR(F77*(AktivitätsFaktor),"") -> 2191 | I77: =IFERROR(IF(GewichtsZiel="Erhöhen",G77-H77,H77-G77),"") -> 499 | J77: 20562 | K77: =IFERROR(IF(Standard,J77/KalorienProGramm,J77/KalorienProGramm/2.2),"") -> 5.9 | L77: =IFERROR(ZielGewichtsVerlust-K77,"") -> 9.13 | M77: =IFERROR(IF(B76<>"",L77/(ZielGewichtsVerlust),""),"") -> 61%
B78: =IFERROR(IF(K77>0,B77+1,""),"") -> 2024-06-10 | D78: =IFERROR(IF(K77>0,D77+1,""),"") -> 66 | E78: =IFERROR(IF($D78<>"",E77+(I77/KalorienProGramm)*IF(GewichtsZiel="INCREASE",1,-1),""),"") -> 140.7 | F78: =IFERROR(LaufenderGU,"") -> 1413 | G78: =IFERROR(IF(K77>0,F77*AktivitätsFaktor+IF(GewichtsZiel="Verwalten",0,IF(GewichtsZiel="REDUZIEREN",-500,IF(GewichtsZiel="Erhöhen",500))),""),"") -> 1691 | H78: =IFERROR(F78*(AktivitätsFaktor),"") -> 2190 | I78: =IFERROR(IF(GewichtsZiel="Erhöhen",G78-H78,H78-G78),"") -> 499 | J78: 20062 | K78: =IFERROR(IF(Standard,J78/KalorienProGramm,J78/KalorienProGramm/2.2),"") -> 5.7 | L78: =IFERROR(ZielGewichtsVerlust-K78,"") -> 9.27 | M78: =IFERROR(IF(B77<>"",L78/(ZielGewichtsVerlust),""),"") -> 62%
B79: 2024-06-11 | C79: =IFERROR(IF(D79<>"",IF(MOD(D79,7)=1,(D78/7)+1,""),""),"") ->  | D79: 67 | E79: =IFERROR(IF($D79<>"",E78+(I78/KalorienProGramm)*IF(GewichtsZiel="INCREASE",1,-1),""),"") -> 140.6 | F79: =IFERROR(LaufenderGU,"") -> 1412 | G79: =IFERROR(IF(K78>0,F78*AktivitätsFaktor+IF(GewichtsZiel="Verwalten",0,IF(GewichtsZiel="REDUZIEREN",-500,IF(GewichtsZiel="Erhöhen",500))),""),"") -> 1690 | H79: =IFERROR(F79*(AktivitätsFaktor),"") -> 2189 | I79: =IFERROR(IF(GewichtsZiel="Erhöhen",G79-H79,H79-G79),"") -> 499 | J79: =IFERROR(J78-I79,"") -> 19563 | K79: =IFERROR(IF(Standard,J79/KalorienProGramm,J79/KalorienProGramm/2.2),"") -> 5.6 | L79: =IFERROR(ZielGewichtsVerlust-K79,"") -> 9.41 | M79: =IFERROR(IF(B78<>"",L79/(ZielGewichtsVerlust),""),"") -> 63%
B80: 2024-06-12 | D80: 68 | E80: =IFERROR(IF($D80<>"",E79+(I79/KalorienProGramm)*IF(GewichtsZiel="INCREASE",1,-1),""),"") -> 140.4 | F80: =IFERROR(LaufenderGU,"") -> 1412 | G80: =IFERROR(IF(K79>0,F79*AktivitätsFaktor+IF(GewichtsZiel="Verwalten",0,IF(GewichtsZiel="REDUZIEREN",-500,IF(GewichtsZiel="Erhöhen",500))),""),"") -> 1689 | H80: =IFERROR(F80*(AktivitätsFaktor),"") -> 2188 | I80: =IFERROR(IF(GewichtsZiel="Erhöhen",G80-H80,H80-G80),"") -> 499 | J80: 19064 | K80: =IFERROR(IF(Standard,J80/KalorienProGramm,J80/KalorienProGramm/2.2),"") -> 5.4 | L80: =IFERROR(ZielGewichtsVerlust-K80,"") -> 9.55 | M80: =IFERROR(IF(B79<>"",L80/(ZielGewichtsVerlust),""),"") -> 64%
B81: 2024-06-13 | D81: 69 | E81: =IFERROR(IF($D81<>"",E80+(I80/KalorienProGramm)*IF(GewichtsZiel="INCREASE",1,-1),""),"") -> 140.3 | F81: =IFERROR(LaufenderGU,"") -> 1411 | G81: =IFERROR(IF(K80>0,F80*AktivitätsFaktor+IF(GewichtsZiel="Verwalten",0,IF(GewichtsZiel="REDUZIEREN",-500,IF(GewichtsZiel="Erhöhen",500))),""),"") -> 1688 | H81: =IFERROR(F81*(AktivitätsFaktor),"") -> 2187 | I81: =IFERROR(IF(GewichtsZiel="Erhöhen",G81-H81,H81-G81),"") -> 499 | J81: 18565 | K81: =IFERROR(IF(Standard,J81/KalorienProGramm,J81/KalorienProGramm/2.2),"") -> 5.3 | L81: =IFERROR(ZielGewichtsVerlust-K81,"") -> 9.70 | M81: =IFERROR(IF(B80<>"",L81/(ZielGewichtsVerlust),""),"") -> 65%
B82: 2024-06-14 | D82: 70 | E82: =IFERROR(IF($D82<>"",E81+(I81/KalorienProGramm)*IF(GewichtsZiel="INCREASE",1,-1),""),"") -> 140.2 | F82: =IFERROR(LaufenderGU,"") -> 1410 | G82: =IFERROR(IF(K81>0,F81*AktivitätsFaktor+IF(GewichtsZiel="Verwalten",0,IF(GewichtsZiel="REDUZIEREN",-500,IF(GewichtsZiel="Erhöhen",500))),""),"") -> 1687 | H82: =IFERROR(F82*(AktivitätsFaktor),"") -> 2186 | I82: =IFERROR(IF(GewichtsZiel="Erhöhen",G82-H82,H82-G82),"") -> 499 | J82: 18066 | K82: =IFERROR(IF(Standard,J82/KalorienProGramm,J82/KalorienProGramm/2.2),"") -> 5.2 | L82: =IFERROR(ZielGewichtsVerlust-K82,"") -> 9.84 | M82: =IFERROR(IF(B81<>"",L82/(ZielGewichtsVerlust),""),"") -> 66%
B83: 2024-06-15 | C83: 11 | D83: 71 | E83: =IFERROR(IF($D83<>"",E82+(I82/KalorienProGramm)*IF(GewichtsZiel="INCREASE",1,-1),""),"") -> 140.0 | F83: =IFERROR(LaufenderGU,"") -> 1410 | G83: =IFERROR(IF(K82>0,F82*AktivitätsFaktor+IF(GewichtsZiel="Verwalten",0,IF(GewichtsZiel="REDUZIEREN",-500,IF(GewichtsZiel="Erhöhen",500))),""),"") -> 1686 | H83: =IFERROR(F83*(AktivitätsFaktor),"") -> 2185 | I83: =IFERROR(IF(GewichtsZiel="Erhöhen",G83-H83,H83-G83),"") -> 499 | J83: 17567 | K83: =IFERROR(IF(Standard,J83/KalorienProGramm,J83/KalorienProGramm/2.2),"") -> 5.0 | L83: =IFERROR(ZielGewichtsVerlust-K83,"") -> 9.98 | M83: =IFERROR(IF(B82<>"",L83/(ZielGewichtsVerlust),""),"") -> 67%
B84: 2024-06-16 | D84: 72 | E84: =IFERROR(IF($D84<>"",E83+(I83/KalorienProGramm)*IF(GewichtsZiel="INCREASE",1,-1),""),"") -> 139.9 | F84: =IFERROR(LaufenderGU,"") -> 1409 | G84: =IFERROR(IF(K83>0,F83*AktivitätsFaktor+IF(GewichtsZiel="Verwalten",0,IF(GewichtsZiel="REDUZIEREN",-500,IF(GewichtsZiel="Erhöhen",500))),""),"") -> 1685 | H84: =IFERROR(F84*(AktivitätsFaktor),"") -> 2184 | I84: =IFERROR(IF(GewichtsZiel="Erhöhen",G84-H84,H84-G84),"") -> 499 | J84: 17068 | K84: =IFERROR(IF(Standard,J84/KalorienProGramm,J84/KalorienProGramm/2.2),"") -> 4.9 | L84: =IFERROR(ZielGewichtsVerlust-K84,"") -> 10.12 | M84: =IFERROR(IF(B83<>"",L84/(ZielGewichtsVerlust),""),"") -> 67%
B85: 2024-06-17 | D85: 73 | E85: =IFERROR(IF($D85<>"",E84+(I84/KalorienProGramm)*IF(GewichtsZiel="INCREASE",1,-1),""),"") -> 139.7 | F85: =IFERROR(LaufenderGU,"") -> 1409 | G85: =IFERROR(IF(K84>0,F84*AktivitätsFaktor+IF(GewichtsZiel="Verwalten",0,IF(GewichtsZiel="REDUZIEREN",-500,IF(GewichtsZiel="Erhöhen",500))),""),"") -> 1684 | H85: =IFERROR(F85*(AktivitätsFaktor),"") -> 2183 | I85: =IFERROR(IF(GewichtsZiel="Erhöhen",G85-H85,H85-G85),"") -> 499 | J85: 16569 | K85: =IFERROR(IF(Standard,J85/KalorienProGramm,J85/KalorienProGramm/2.2),"") -> 4.7 | L85: =IFERROR(ZielGewichtsVerlust-K85,"") -> 10.27 | M85: =IFERROR(IF(B84<>"",L85/(ZielGewichtsVerlust),""),"") -> 68%
B86: 2024-06-18 | D86: 74 | E86: =IFERROR(IF($D86<>"",E85+(I85/KalorienProGramm)*IF(GewichtsZiel="INCREASE",1,-1),""),"") -> 139.6 | F86: =IFERROR(LaufenderGU,"") -> 1408 | G86: =IFERROR(IF(K85>0,F85*AktivitätsFaktor+IF(GewichtsZiel="Verwalten",0,IF(GewichtsZiel="REDUZIEREN",-500,IF(GewichtsZiel="Erhöhen",500))),""),"") -> 1683 | H86: =IFERROR(F86*(AktivitätsFaktor),"") -> 2182 | I86: =IFERROR(IF(GewichtsZiel="Erhöhen",G86-H86,H86-G86),"") -> 499 | J86: 16070 | K86: =IFERROR(IF(Standard,J86/KalorienProGramm,J86/KalorienProGramm/2.2),"") -> 4.6 | L86: =IFERROR(ZielGewichtsVerlust-K86,"") -> 10.41 | M86: =IFERROR(IF(B85<>"",L86/(ZielGewichtsVerlust),""),"") -> 69%
B87: 2024-06-19 | D87: 75 | E87: =IFERROR(IF($D87<>"",E86+(I86/KalorienProGramm)*IF(GewichtsZiel="INCREASE",1,-1),""),"") -> 139.4 | F87: =IFERROR(LaufenderGU,"") -> 1407 | G87: =IFERROR(IF(K86>0,F86*AktivitätsFaktor+IF(GewichtsZiel="Verwalten",0,IF(GewichtsZiel="REDUZIEREN",-500,IF(GewichtsZiel="Erhöhen",500))),""),"") -> 1682 | H87: =IFERROR(F87*(AktivitätsFaktor),"") -> 2181 | I87: =IFERROR(IF(GewichtsZiel="Erhöhen",G87-H87,H87-G87),"") -> 499 | J87: 15571 | K87: =IFERROR(IF(Standard,J87/KalorienProGramm,J87/KalorienProGramm/2.2),"") -> 4.4 | L87: =IFERROR(ZielGewichtsVerlust-K87,"") -> 10.55 | M87: =IFERROR(IF(B86<>"",L87/(ZielGewichtsVerlust),""),"") -> 70%
B88: 2024-06-20 | D88: 76 | E88: =IFERROR(IF($D88<>"",E87+(I87/KalorienProGramm)*IF(GewichtsZiel="INCREASE",1,-1),""),"") -> 139.3 | F88: =IFERROR(LaufenderGU,"") -> 1407 | G88: =IFERROR(IF(K87>0,F87*AktivitätsFaktor+IF(GewichtsZiel="Verwalten",0,IF(GewichtsZiel="REDUZIEREN",-500,IF(GewichtsZiel="Erhöhen",500))),""),"") -> 1681 | H88: =IFERROR(F88*(AktivitätsFaktor),"") -> 2180 | I88: =IFERROR(IF(GewichtsZiel="Erhöhen",G88-H88,H88-G88),"") -> 499 | J88: 15072 | K88: =IFERROR(IF(Standard,J88/KalorienProGramm,J88/KalorienProGramm/2.2),"") -> 4.3 | L88: =IFERROR(ZielGewichtsVerlust-K88,"") -> 10.69 | M88: =IFERROR(IF(B87<>"",L88/(ZielGewichtsVerlust),""),"") -> 71%
B89: 2024-06-21 | D89: 77 | E89: =IFERROR(IF($D89<>"",E88+(I88/KalorienProGramm)*IF(GewichtsZiel="INCREASE",1,-1),""),"") -> 139.2 | F89: =IFERROR(LaufenderGU,"") -> 1406 | G89: =IFERROR(IF(K88>0,F88*AktivitätsFaktor+IF(GewichtsZiel="Verwalten",0,IF(GewichtsZiel="REDUZIEREN",-500,IF(GewichtsZiel="Erhöhen",500))),""),"") -> 1680 | H89: =IFERROR(F89*(AktivitätsFaktor),"") -> 2179 | I89: =IFERROR(IF(GewichtsZiel="Erhöhen",G89-H89,H89-G89),"") -> 499 | J89: 14573 | K89: =IFERROR(IF(Standard,J89/KalorienProGramm,J89/KalorienProGramm/2.2),"") -> 4.2 | L89: =IFERROR(ZielGewichtsVerlust-K89,"") -> 10.84 | M89: =IFERROR(IF(B88<>"",L89/(ZielGewichtsVerlust),""),"") -> 72%
B90: 2024-06-22 | C90: 12 | D90: 78 | E90: =IFERROR(IF($D90<>"",E89+(I89/KalorienProGramm)*IF(GewichtsZiel="INCREASE",1,-1),""),"") -> 139.0 | F90: =IFERROR(LaufenderGU,"") -> 1405 | G90: =IFERROR(IF(K89>0,F89*AktivitätsFaktor+IF(GewichtsZiel="Verwalten",0,IF(GewichtsZiel="REDUZIEREN",-500,IF(GewichtsZiel="Erhöhen",500))),""),"") -> 1679 | H90: =IFERROR(F90*(AktivitätsFaktor),"") -> 2178 | I90: =IFERROR(IF(GewichtsZiel="Erhöhen",G90-H90,H90-G90),"") -> 499 | J90: 14074 | K90: =IFERROR(IF(Standard,J90/KalorienProGramm,J90/KalorienProGramm/2.2),"") -> 4.0 | L90: =IFERROR(ZielGewichtsVerlust-K90,"") -> 10.98 | M90: =IFERROR(IF(B89<>"",L90/(ZielGewichtsVerlust),""),"") -> 73%
B91: 2024-06-23 | D91: 79 | E91: =IFERROR(IF($D91<>"",E90+(I90/KalorienProGramm)*IF(GewichtsZiel="INCREASE",1,-1),""),"") -> 138.9 | F91: =IFERROR(LaufenderGU,"") -> 1405 | G91: =IFERROR(IF(K90>0,F90*AktivitätsFaktor+IF(GewichtsZiel="Verwalten",0,IF(GewichtsZiel="REDUZIEREN",-500,IF(GewichtsZiel="Erhöhen",500))),""),"") -> 1678 | H91: =IFERROR(F91*(AktivitätsFaktor),"") -> 2177 | I91: =IFERROR(IF(GewichtsZiel="Erhöhen",G91-H91,H91-G91),"") -> 499 | J91: 13575 | K91: =IFERROR(IF(Standard,J91/KalorienProGramm,J91/KalorienProGramm/2.2),"") -> 3.9 | L91: =IFERROR(ZielGewichtsVerlust-K91,"") -> 11.12 | M91: =IFERROR(IF(B90<>"",L91/(ZielGewichtsVerlust),""),"") -> 74%
B92: 2024-06-24 | D92: 80 | E92: =IFERROR(IF($D92<>"",E91+(I91/KalorienProGramm)*IF(GewichtsZiel="INCREASE",1,-1),""),"") -> 138.7 | F92: =IFERROR(LaufenderGU,"") -> 1404 | G92: =IFERROR(IF(K91>0,F91*AktivitätsFaktor+IF(GewichtsZiel="Verwalten",0,IF(GewichtsZiel="REDUZIEREN",-500,IF(GewichtsZiel="Erhöhen",500))),""),"") -> 1677 | H92: =IFERROR(F92*(AktivitätsFaktor),"") -> 2177 | I92: =IFERROR(IF(GewichtsZiel="Erhöhen",G92-H92,H92-G92),"") -> 499 | J92: 13076 | K92: =IFERROR(IF(Standard,J92/KalorienProGramm,J92/KalorienProGramm/2.2),"") -> 3.7 | L92: =IFERROR(ZielGewichtsVerlust-K92,"") -> 11.26 | M92: =IFERROR(IF(B91<>"",L92/(ZielGewichtsVerlust),""),"") -> 75%
B93: 2024-06-25 | D93: 81 | E93: =IFERROR(IF($D93<>"",E92+(I92/KalorienProGramm)*IF(GewichtsZiel="INCREASE",1,-1),""),"") -> 138.6 | F93: =IFERROR(LaufenderGU,"") -> 1404 | G93: =IFERROR(IF(K92>0,F92*AktivitätsFaktor+IF(GewichtsZiel="Verwalten",0,IF(GewichtsZiel="REDUZIEREN",-500,IF(GewichtsZiel="Erhöhen",500))),""),"") -> 1677 | H93: =IFERROR(F93*(AktivitätsFaktor),"") -> 2176 | I93: =IFERROR(IF(GewichtsZiel="Erhöhen",G93-H93,H93-G93),"") -> 499 | J93: 12577 | K93: =IFERROR(IF(Standard,J93/KalorienProGramm,J93/KalorienProGramm/2.2),"") -> 3.6 | L93: =IFERROR(ZielGewichtsVerlust-K93,"") -> 11.41 | M93: =IFERROR(IF(B92<>"",L93/(ZielGewichtsVerlust),""),"") -> 76%
B94: 2024-06-26 | D94: 82 | E94: =IFERROR(IF($D94<>"",E93+(I93/KalorienProGramm)*IF(GewichtsZiel="INCREASE",1,-1),""),"") -> 138.5 | F94: =IFERROR(LaufenderGU,"") -> 1403 | G94: =IFERROR(IF(K93>0,F93*AktivitätsFaktor+IF(GewichtsZiel="Verwalten",0,IF(GewichtsZiel="REDUZIEREN",-500,IF(GewichtsZiel="Erhöhen",500))),""),"") -> 1676 | H94: =IFERROR(F94*(AktivitätsFaktor),"") -> 2175 | I94: =IFERROR(IF(GewichtsZiel="Erhöhen",G94-H94,H94-G94),"") -> 499 | J94: 12078 | K94: =IFERROR(IF(Standard,J94/KalorienProGramm,J94/KalorienProGramm/2.2),"") -> 3.5 | L94: =IFERROR(ZielGewichtsVerlust-K94,"") -> 11.55 | M94: =IFERROR(IF(B93<>"",L94/(ZielGewichtsVerlust),""),"") -> 77%
B95: 2024-06-27 | D95: 83 | E95: =IFERROR(IF($D95<>"",E94+(I94/KalorienProGramm)*IF(GewichtsZiel="INCREASE",1,-1),""),"") -> 138.3 | F95: =IFERROR(LaufenderGU,"") -> 1402 | G95: =IFERROR(IF(K94>0,F94*AktivitätsFaktor+IF(GewichtsZiel="Verwalten",0,IF(GewichtsZiel="REDUZIEREN",-500,IF(GewichtsZiel="Erhöhen",500))),""),"") -> 1675 | H95: =IFERROR(F95*(AktivitätsFaktor),"") -> 2174 | I95: =IFERROR(IF(GewichtsZiel="Erhöhen",G95-H95,H95-G95),"") -> 499 | J95: 11579 | K95: =IFERROR(IF(Standard,J95/KalorienProGramm,J95/KalorienProGramm/2.2),"") -> 3.3 | L95: =IFERROR(ZielGewichtsVerlust-K95,"") -> 11.69 | M95: =IFERROR(IF(B94<>"",L95/(ZielGewichtsVerlust),""),"") -> 78%
B96: 2024-06-28 | D96: 84 | E96: =IFERROR(IF($D96<>"",E95+(I95/KalorienProGramm)*IF(GewichtsZiel="INCREASE",1,-1),""),"") -> 138.2 | F96: =IFERROR(LaufenderGU,"") -> 1402 | G96: =IFERROR(IF(K95>0,F95*AktivitätsFaktor+IF(GewichtsZiel="Verwalten",0,IF(GewichtsZiel="REDUZIEREN",-500,IF(GewichtsZiel="Erhöhen",500))),""),"") -> 1674 | H96: =IFERROR(F96*(AktivitätsFaktor),"") -> 2173 | I96: =IFERROR(IF(GewichtsZiel="Erhöhen",G96-H96,H96-G96),"") -> 499 | J96: 11080 | K96: =IFERROR(IF(Standard,J96/KalorienProGramm,J96/KalorienProGramm/2.2),"") -> 3.2 | L96: =IFERROR(ZielGewichtsVerlust-K96,"") -> 11.83 | M96: =IFERROR(IF(B95<>"",L96/(ZielGewichtsVerlust),""),"") -> 79%
B97: 2024-06-29 | C97: 13 | D97: 85 | E97: =IFERROR(IF($D97<>"",E96+(I96/KalorienProGramm)*IF(GewichtsZiel="INCREASE",1,-1),""),"") -> 138.0 | F97: =IFERROR(LaufenderGU,"") -> 1401 | G97: =IFERROR(IF(K96>0,F96*AktivitätsFaktor+IF(GewichtsZiel="Verwalten",0,IF(GewichtsZiel="REDUZIEREN",-500,IF(GewichtsZiel="Erhöhen",500))),""),"") -> 1673 | H97: =IFERROR(F97*(AktivitätsFaktor),"") -> 2172 | I97: =IFERROR(IF(GewichtsZiel="Erhöhen",G97-H97,H97-G97),"") -> 499 | J97: 10581 | K97: =IFERROR(IF(Standard,J97/KalorienProGramm,J97/KalorienProGramm/2.2),"") -> 3.0 | L97: =IFERROR(ZielGewichtsVerlust-K97,"") -> 11.98 | M97: =IFERROR(IF(B96<>"",L97/(ZielGewichtsVerlust),""),"") -> 80%
B98: 2024-06-30 | D98: 86 | E98: =IFERROR(IF($D98<>"",E97+(I97/KalorienProGramm)*IF(GewichtsZiel="INCREASE",1,-1),""),"") -> 137.9 | F98: =IFERROR(LaufenderGU,"") -> 1400 | G98: =IFERROR(IF(K97>0,F97*AktivitätsFaktor+IF(GewichtsZiel="Verwalten",0,IF(GewichtsZiel="REDUZIEREN",-500,IF(GewichtsZiel="Erhöhen",500))),""),"") -> 1672 | H98: =IFERROR(F98*(AktivitätsFaktor),"") -> 2171 | I98: =IFERROR(IF(GewichtsZiel="Erhöhen",G98-H98,H98-G98),"") -> 499 | J98: 10082 | K98: =IFERROR(IF(Standard,J98/KalorienProGramm,J98/KalorienProGramm/2.2),"") -> 2.9 | L98: =IFERROR(ZielGewichtsVerlust-K98,"") -> 12.12 | M98: =IFERROR(IF(B97<>"",L98/(ZielGewichtsVerlust),""),"") -> 81%
B99: 2024-07-01 | D99: 87 | E99: =IFERROR(IF($D99<>"",E98+(I98/KalorienProGramm)*IF(GewichtsZiel="INCREASE",1,-1),""),"") -> 137.7 | F99: =IFERROR(LaufenderGU,"") -> 1400 | G99: =IFERROR(IF(K98>0,F98*AktivitätsFaktor+IF(GewichtsZiel="Verwalten",0,IF(GewichtsZiel="REDUZIEREN",-500,IF(GewichtsZiel="Erhöhen",500))),""),"") -> 1671 | H99: =IFERROR(F99*(AktivitätsFaktor),"") -> 2170 | I99: =IFERROR(IF(GewichtsZiel="Erhöhen",G99-H99,H99-G99),"") -> 499 | J99: 9583 | K99: =IFERROR(IF(Standard,J99/KalorienProGramm,J99/KalorienProGramm/2.2),"") -> 2.7 | L99: =IFERROR(ZielGewichtsVerlust-K99,"") -> 12.26 | M99: =IFERROR(IF(B98<>"",L99/(ZielGewichtsVerlust),""),"") -> 82%
B100: 2024-07-02 | D100: 88 | E100: =IFERROR(IF($D100<>"",E99+(I99/KalorienProGramm)*IF(GewichtsZiel="INCREASE",1,-1),""),"") -> 137.6 | F100: =IFERROR(LaufenderGU,"") -> 1399 | G100: =IFERROR(IF(K99>0,F99*AktivitätsFaktor+IF(GewichtsZiel="Verwalten",0,IF(GewichtsZiel="REDUZIEREN",-500,IF(GewichtsZiel="Erhöhen",500))),""),"") -> 1670 | H100: =IFERROR(F100*(AktivitätsFaktor),"") -> 2169 | I100: =IFERROR(IF(GewichtsZiel="Erhöhen",G100-H100,H100-G100),"") -> 499 | J100: 9084 | K100: =IFERROR(IF(Standard,J100/KalorienProGramm,J100/KalorienProGramm/2.2),"") -> 2.6 | L100: =IFERROR(ZielGewichtsVerlust-K100,"") -> 12.40 | M100: =IFERROR(IF(B99<>"",L100/(ZielGewichtsVerlust),""),"") -> 83%
B101: 2024-07-03 | D101: 89 | E101: =IFERROR(IF($D101<>"",E100+(I100/KalorienProGramm)*IF(GewichtsZiel="INCREASE",1,-1),""),"") -> 137.5 | F101: =IFERROR(LaufenderGU,"") -> 1399 | G101: =IFERROR(IF(K100>0,F100*AktivitätsFaktor+IF(GewichtsZiel="Verwalten",0,IF(GewichtsZiel="REDUZIEREN",-500,IF(GewichtsZiel="Erhöhen",500))),""),"") -> 1669 | H101: =IFERROR(F101*(AktivitätsFaktor),"") -> 2168 | I101: =IFERROR(IF(GewichtsZiel="Erhöhen",G101-H101,H101-G101),"") -> 499 | J101: 8585 | K101: =IFERROR(IF(Standard,J101/KalorienProGramm,J101/KalorienProGramm/2.2),"") -> 2.5 | L101: =IFERROR(ZielGewichtsVerlust-K101,"") -> 12.55 | M101: =IFERROR(IF(B100<>"",L101/(ZielGewichtsVerlust),""),"") -> 84%
B102: 2024-07-04 | D102: 90 | E102: =IFERROR(IF($D102<>"",E101+(I101/KalorienProGramm)*IF(GewichtsZiel="INCREASE",1,-1),""),"") -> 137.3 | F102: =IFERROR(LaufenderGU,"") -> 1398 | G102: =IFERROR(IF(K101>0,F101*AktivitätsFaktor+IF(GewichtsZiel="Verwalten",0,IF(GewichtsZiel="REDUZIEREN",-500,IF(GewichtsZiel="Erhöhen",500))),""),"") -> 1668 | H102: =IFERROR(F102*(AktivitätsFaktor),"") -> 2167 | I102: =IFERROR(IF(GewichtsZiel="Erhöhen",G102-H102,H102-G102),"") -> 499 | J102: 8086 | K102: =IFERROR(IF(Standard,J102/KalorienProGramm,J102/KalorienProGramm/2.2),"") -> 2.3 | L102: =IFERROR(ZielGewichtsVerlust-K102,"") -> 12.69 | M102: =IFERROR(IF(B101<>"",L102/(ZielGewichtsVerlust),""),"") -> 85%
B103: 2024-07-05 | D103: 91 | E103: =IFERROR(IF($D103<>"",E102+(I102/KalorienProGramm)*IF(GewichtsZiel="INCREASE",1,-1),""),"") -> 137.2 | F103: =IFERROR(LaufenderGU,"") -> 1397 | G103: =IFERROR(IF(K102>0,F102*AktivitätsFaktor+IF(GewichtsZiel="Verwalten",0,IF(GewichtsZiel="REDUZIEREN",-500,IF(GewichtsZiel="Erhöhen",500))),""),"") -> 1667 | H103: =IFERROR(F103*(AktivitätsFaktor),"") -> 2166 | I103: =IFERROR(IF(GewichtsZiel="Erhöhen",G103-H103,H103-G103),"") -> 499 | J103: 7587 | K103: =IFERROR(IF(Standard,J103/KalorienProGramm,J103/KalorienProGramm/2.2),"") -> 2.2 | L103: =IFERROR(ZielGewichtsVerlust-K103,"") -> 12.83 | M103: =IFERROR(IF(B102<>"",L103/(ZielGewichtsVerlust),""),"") -> 86%
B104: 2024-07-06 | C104: 14 | D104: 92 | E104: =IFERROR(IF($D104<>"",E103+(I103/KalorienProGramm)*IF(GewichtsZiel="INCREASE",1,-1),""),"") -> 137.0 | F104: =IFERROR(LaufenderGU,"") -> 1397 | G104: =IFERROR(IF(K103>0,F103*AktivitätsFaktor+IF(GewichtsZiel="Verwalten",0,IF(GewichtsZiel="REDUZIEREN",-500,IF(GewichtsZiel="Erhöhen",500))),""),"") -> 1666 | H104: =IFERROR(F104*(AktivitätsFaktor),"") -> 2165 | I104: =IFERROR(IF(GewichtsZiel="Erhöhen",G104-H104,H104-G104),"") -> 499 | J104: 7087 | K104: =IFERROR(IF(Standard,J104/KalorienProGramm,J104/KalorienProGramm/2.2),"") -> 2.0 | L104: =IFERROR(ZielGewichtsVerlust-K104,"") -> 12.98 | M104: =IFERROR(IF(B103<>"",L104/(ZielGewichtsVerlust),""),"") -> 87%
B105: 2024-07-07 | D105: 93 | E105: =IFERROR(IF($D105<>"",E104+(I104/KalorienProGramm)*IF(GewichtsZiel="INCREASE",1,-1),""),"") -> 136.9 | F105: =IFERROR(LaufenderGU,"") -> 1396 | G105: =IFERROR(IF(K104>0,F104*AktivitätsFaktor+IF(GewichtsZiel="Verwalten",0,IF(GewichtsZiel="REDUZIEREN",-500,IF(GewichtsZiel="Erhöhen",500))),""),"") -> 1665 | H105: =IFERROR(F105*(AktivitätsFaktor),"") -> 2164 | I105: =IFERROR(IF(GewichtsZiel="Erhöhen",G105-H105,H105-G105),"") -> 499 | J105: 6588 | K105: =IFERROR(IF(Standard,J105/KalorienProGramm,J105/KalorienProGramm/2.2),"") -> 1.9 | L105: =IFERROR(ZielGewichtsVerlust-K105,"") -> 13.12 | M105: =IFERROR(IF(B104<>"",L105/(ZielGewichtsVerlust),""),"") -> 87%
B106: 2024-07-08 | D106: 94 | E106: =IFERROR(IF($D106<>"",E105+(I105/KalorienProGramm)*IF(GewichtsZiel="INCREASE",1,-1),""),"") -> 136.7 | F106: =IFERROR(LaufenderGU,"") -> 1396 | G106: =IFERROR(IF(K105>0,F105*AktivitätsFaktor+IF(GewichtsZiel="Verwalten",0,IF(GewichtsZiel="REDUZIEREN",-500,IF(GewichtsZiel="Erhöhen",500))),""),"") -> 1664 | H106: =IFERROR(F106*(AktivitätsFaktor),"") -> 2163 | I106: =IFERROR(IF(GewichtsZiel="Erhöhen",G106-H106,H106-G106),"") -> 499 | J106: 6089 | K106: =IFERROR(IF(Standard,J106/KalorienProGramm,J106/KalorienProGramm/2.2),"") -> 1.7 | L106: =IFERROR(ZielGewichtsVerlust-K106,"") -> 13.26 | M106: =IFERROR(IF(B105<>"",L106/(ZielGewichtsVerlust),""),"") -> 88%
B107: 2024-07-09 | D107: 95 | E107: =IFERROR(IF($D107<>"",E106+(I106/KalorienProGramm)*IF(GewichtsZiel="INCREASE",1,-1),""),"") -> 136.6 | F107: =IFERROR(LaufenderGU,"") -> 1395 | G107: =IFERROR(IF(K106>0,F106*AktivitätsFaktor+IF(GewichtsZiel="Verwalten",0,IF(GewichtsZiel="REDUZIEREN",-500,IF(GewichtsZiel="Erhöhen",500))),""),"") -> 1663 | H107: =IFERROR(F107*(AktivitätsFaktor),"") -> 2162 | I107: =IFERROR(IF(GewichtsZiel="Erhöhen",G107-H107,H107-G107),"") -> 499 | J107: 5590 | K107: =IFERROR(IF(Standard,J107/KalorienProGramm,J107/KalorienProGramm/2.2),"") -> 1.6 | L107: =IFERROR(ZielGewichtsVerlust-K107,"") -> 13.40 | M107: =IFERROR(IF(B106<>"",L107/(ZielGewichtsVerlust),""),"") -> 89%
B108: 2024-07-10 | D108: 96 | E108: =IFERROR(IF($D108<>"",E107+(I107/KalorienProGramm)*IF(GewichtsZiel="INCREASE",1,-1),""),"") -> 136.5 | F108: =IFERROR(LaufenderGU,"") -> 1394 | G108: =IFERROR(IF(K107>0,F107*AktivitätsFaktor+IF(GewichtsZiel="Verwalten",0,IF(GewichtsZiel="REDUZIEREN",-500,IF(GewichtsZiel="Erhöhen",500))),""),"") -> 1662 | H108: =IFERROR(F108*(AktivitätsFaktor),"") -> 2161 | I108: =IFERROR(IF(GewichtsZiel="Erhöhen",G108-H108,H108-G108),"") -> 499 | J108: 5091 | K108: =IFERROR(IF(Standard,J108/KalorienProGramm,J108/KalorienProGramm/2.2),"") -> 1.5 | L108: =IFERROR(ZielGewichtsVerlust-K108,"") -> 13.55 | M108: =IFERROR(IF(B107<>"",L108/(ZielGewichtsVerlust),""),"") -> 90%
B109: 2024-07-11 | D109: 97 | E109: =IFERROR(IF($D109<>"",E108+(I108/KalorienProGramm)*IF(GewichtsZiel="INCREASE",1,-1),""),"") -> 136.3 | F109: =IFERROR(LaufenderGU,"") -> 1394 | G109: =IFERROR(IF(K108>0,F108*AktivitätsFaktor+IF(GewichtsZiel="Verwalten",0,IF(GewichtsZiel="REDUZIEREN",-500,IF(GewichtsZiel="Erhöhen",500))),""),"") -> 1661 | H109: =IFERROR(F109*(AktivitätsFaktor),"") -> 2160 | I109: =IFERROR(IF(GewichtsZiel="Erhöhen",G109-H109,H109-G109),"") -> 499 | J109: 4592 | K109: =IFERROR(IF(Standard,J109/KalorienProGramm,J109/KalorienProGramm/2.2),"") -> 1.3 | L109: =IFERROR(ZielGewichtsVerlust-K109,"") -> 13.69 | M109: =IFERROR(IF(B108<>"",L109/(ZielGewichtsVerlust),""),"") -> 91%
B110: 2024-07-12 | D110: 98 | E110: =IFERROR(IF($D110<>"",E109+(I109/KalorienProGramm)*IF(GewichtsZiel="INCREASE",1,-1),""),"") -> 136.2 | F110: =IFERROR(LaufenderGU,"") -> 1393 | G110: =IFERROR(IF(K109>0,F109*AktivitätsFaktor+IF(GewichtsZiel="Verwalten",0,IF(GewichtsZiel="REDUZIEREN",-500,IF(GewichtsZiel="Erhöhen",500))),""),"") -> 1660 | H110: =IFERROR(F110*(AktivitätsFaktor),"") -> 2159 | I110: =IFERROR(IF(GewichtsZiel="Erhöhen",G110-H110,H110-G110),"") -> 499 | J110: 4093 | K110: =IFERROR(IF(Standard,J110/KalorienProGramm,J110/KalorienProGramm/2.2),"") -> 1.2 | L110: =IFERROR(ZielGewichtsVerlust-K110,"") -> 13.83 | M110: =IFERROR(IF(B109<>"",L110/(ZielGewichtsVerlust),""),"") -> 92%
B111: 2024-07-13 | C111: 15 | D111: 99 | E111: =IFERROR(IF($D111<>"",E110+(I110/KalorienProGramm)*IF(GewichtsZiel="INCREASE",1,-1),""),"") -> 136.0 | F111: =IFERROR(LaufenderGU,"") -> 1392 | G111: =IFERROR(IF(K110>0,F110*AktivitätsFaktor+IF(GewichtsZiel="Verwalten",0,IF(GewichtsZiel="REDUZIEREN",-500,IF(GewichtsZiel="Erhöhen",500))),""),"") -> 1659 | H111: =IFERROR(F111*(AktivitätsFaktor),"") -> 2158 | I111: =IFERROR(IF(GewichtsZiel="Erhöhen",G111-H111,H111-G111),"") -> 499 | J111: 3594 | K111: =IFERROR(IF(Standard,J111/KalorienProGramm,J111/KalorienProGramm/2.2),"") -> 1.0 | L111: =IFERROR(ZielGewichtsVerlust-K111,"") -> 13.97 | M111: =IFERROR(IF(B110<>"",L111/(ZielGewichtsVerlust),""),"") -> 93%
B112: 2024-07-14 | D112: 100 | E112: =IFERROR(IF($D112<>"",E111+(I111/KalorienProGramm)*IF(GewichtsZiel="INCREASE",1,-1),""),"") -> 135.9 | F112: =IFERROR(LaufenderGU,"") -> 1392 | G112: =IFERROR(IF(K111>0,F111*AktivitätsFaktor+IF(GewichtsZiel="Verwalten",0,IF(GewichtsZiel="REDUZIEREN",-500,IF(GewichtsZiel="Erhöhen",500))),""),"") -> 1658 | H112: =IFERROR(F112*(AktivitätsFaktor),"") -> 2157 | I112: =IFERROR(IF(GewichtsZiel="Erhöhen",G112-H112,H112-G112),"") -> 499 | J112: 3095 | K112: =IFERROR(IF(Standard,J112/KalorienProGramm,J112/KalorienProGramm/2.2),"") -> 0.9 | L112: =IFERROR(ZielGewichtsVerlust-K112,"") -> 14.12 | M112: =IFERROR(IF(B111<>"",L112/(ZielGewichtsVerlust),""),"") -> 94%
B113: 2024-07-15 | D113: 101 | E113: =IFERROR(IF($D113<>"",E112+(I112/KalorienProGramm)*IF(GewichtsZiel="INCREASE",1,-1),""),"") -> 135.7 | F113: =IFERROR(LaufenderGU,"") -> 1391 | G113: =IFERROR(IF(K112>0,F112*AktivitätsFaktor+IF(GewichtsZiel="Verwalten",0,IF(GewichtsZiel="REDUZIEREN",-500,IF(GewichtsZiel="Erhöhen",500))),""),"") -> 1657 | H113: =IFERROR(F113*(AktivitätsFaktor),"") -> 2156 | I113: =IFERROR(IF(GewichtsZiel="Erhöhen",G113-H113,H113-G113),"") -> 499 | J113: 2596 | K113: =IFERROR(IF(Standard,J113/KalorienProGramm,J113/KalorienProGramm/2.2),"") -> 0.7 | L113: =IFERROR(ZielGewichtsVerlust-K113,"") -> 14.26 | M113: =IFERROR(IF(B112<>"",L113/(ZielGewichtsVerlust),""),"") -> 95%
B114: 2024-07-16 | D114: 102 | E114: =IFERROR(IF($D114<>"",E113+(I113/KalorienProGramm)*IF(GewichtsZiel="INCREASE",1,-1),""),"") -> 135.6 | F114: =IFERROR(LaufenderGU,"") -> 1391 | G114: =IFERROR(IF(K113>0,F113*AktivitätsFaktor+IF(GewichtsZiel="Verwalten",0,IF(GewichtsZiel="REDUZIEREN",-500,IF(GewichtsZiel="Erhöhen",500))),""),"") -> 1656 | H114: =IFERROR(F114*(AktivitätsFaktor),"") -> 2155 | I114: =IFERROR(IF(GewichtsZiel="Erhöhen",G114-H114,H114-G114),"") -> 499 | J114: 2097 | K114: =IFERROR(IF(Standard,J114/KalorienProGramm,J114/KalorienProGramm/2.2),"") -> 0.6 | L114: =IFERROR(ZielGewichtsVerlust-K114,"") -> 14.40 | M114: =IFERROR(IF(B113<>"",L114/(ZielGewichtsVerlust),""),"") -> 96%
B115: 2024-07-17 | D115: 103 | E115: =IFERROR(IF($D115<>"",E114+(I114/KalorienProGramm)*IF(GewichtsZiel="INCREASE",1,-1),""),"") -> 135.5 | F115: =IFERROR(LaufenderGU,"") -> 1390 | G115: =IFERROR(IF(K114>0,F114*AktivitätsFaktor+IF(GewichtsZiel="Verwalten",0,IF(GewichtsZiel="REDUZIEREN",-500,IF(GewichtsZiel="Erhöhen",500))),""),"") -> 1655 | H115: =IFERROR(F115*(AktivitätsFaktor),"") -> 2154 | I115: =IFERROR(IF(GewichtsZiel="Erhöhen",G115-H115,H115-G115),"") -> 499 | J115: 1598 | K115: =IFERROR(IF(Standard,J115/KalorienProGramm,J115/KalorienProGramm/2.2),"") -> 0.5 | L115: =IFERROR(ZielGewichtsVerlust-K115,"") -> 14.54 | M115: =IFERROR(IF(B114<>"",L115/(ZielGewichtsVerlust),""),"") -> 97%
B116: 2024-07-18 | D116: 104 | E116: =IFERROR(IF($D116<>"",E115+(I115/KalorienProGramm)*IF(GewichtsZiel="INCREASE",1,-1),""),"") -> 135.3 | F116: =IFERROR(LaufenderGU,"") -> 1389 | G116: =IFERROR(IF(K115>0,F115*AktivitätsFaktor+IF(GewichtsZiel="Verwalten",0,IF(GewichtsZiel="REDUZIEREN",-500,IF(GewichtsZiel="Erhöhen",500))),""),"") -> 1654 | H116: =IFERROR(F116*(AktivitätsFaktor),"") -> 2153 | I116: =IFERROR(IF(GewichtsZiel="Erhöhen",G116-H116,H116-G116),"") -> 499 | J116: 1099 | K116: =IFERROR(IF(Standard,J116/KalorienProGramm,J116/KalorienProGramm/2.2),"") -> 0.3 | L116: =IFERROR(ZielGewichtsVerlust-K116,"") -> 14.69 | M116: =IFERROR(IF(B115<>"",L116/(ZielGewichtsVerlust),""),"") -> 98%
B117: 2024-07-19 | D117: 105 | E117: =IFERROR(IF($D117<>"",E116+(I116/KalorienProGramm)*IF(GewichtsZiel="INCREASE",1,-1),""),"") -> 135.2 | F117: =IFERROR(LaufenderGU,"") -> 1389 | G117: =IFERROR(IF(K116>0,F116*AktivitätsFaktor+IF(GewichtsZiel="Verwalten",0,IF(GewichtsZiel="REDUZIEREN",-500,IF(GewichtsZiel="Erhöhen",500))),""),"") -> 1653 | H117: =IFERROR(F117*(AktivitätsFaktor),"") -> 2152 | I117: =IFERROR(IF(GewichtsZiel="Erhöhen",G117-H117,H117-G117),"") -> 499 | J117: 600 | K117: =IFERROR(IF(Standard,J117/KalorienProGramm,J117/KalorienProGramm/2.2),"") -> 0.2 | L117: =IFERROR(ZielGewichtsVerlust-K117,"") -> 14.83 | M117: =IFERROR(IF(B116<>"",L117/(ZielGewichtsVerlust),""),"") -> 99%
B118: 2024-07-20 | C118: 16 | D118: 106 | E118: =IFERROR(IF($D118<>"",E117+(I117/KalorienProGramm)*IF(GewichtsZiel="INCREASE",1,-1),""),"") -> 135.0 | F118: =IFERROR(LaufenderGU,"") -> 1388 | G118: =IFERROR(IF(K117>0,F117*AktivitätsFaktor+IF(GewichtsZiel="Verwalten",0,IF(GewichtsZiel="REDUZIEREN",-500,IF(GewichtsZiel="Erhöhen",500))),""),"") -> 1652 | H118: =IFERROR(F118*(AktivitätsFaktor),"") -> 2152 | I118: =IFERROR(IF(GewichtsZiel="Erhöhen",G118-H118,H118-G118),"") -> 499 | J118: 101 | K118: =IFERROR(IF(Standard,J118/KalorienProGramm,J118/KalorienProGramm/2.2),"") -> 0.0 | L118: =IFERROR(ZielGewichtsVerlust-K118,"") -> 14.97 | M118: =IFERROR(IF(B117<>"",L118/(ZielGewichtsVerlust),""),"") -> 100%
B119: 2024-07-21 | D119: 107 | E119: =IFERROR(IF($D119<>"",E118+(I118/KalorienProGramm)*IF(GewichtsZiel="INCREASE",1,-1),""),"") -> 134.9 | F119: =IFERROR(LaufenderGU,"") -> 1387 | G119: =IFERROR(IF(K118>0,F118*AktivitätsFaktor+IF(GewichtsZiel="Verwalten",0,IF(GewichtsZiel="REDUZIEREN",-500,IF(GewichtsZiel="Erhöhen",500))),""),"") -> 1652 | H119: =IFERROR(F119*(AktivitätsFaktor),"") -> 2151 | I119: =IFERROR(IF(GewichtsZiel="Erhöhen",G119-H119,H119-G119),"") -> 499 | J119: -398 | K119: =IFERROR(IF(Standard,J119/KalorienProGramm,J119/KalorienProGramm/2.2),"") -> -0.1 | L119: =IFERROR(ZielGewichtsVerlust-K119,"") -> 15.11 | M119: =IFERROR(IF(B118<>"",L119/(ZielGewichtsVerlust),""),"") -> 101%
E120: =IFERROR(IF($D120<>"",E119+(I119/KalorienProGramm)*IF(GewichtsZiel="INCREASE",1,-1),""),"") ->  | F120: =IFERROR(LaufenderGU,"") ->  | G120: =IFERROR(IF(K119>0,F119*AktivitätsFaktor+IF(GewichtsZiel="Verwalten",0,IF(GewichtsZiel="REDUZIEREN",-500,IF(GewichtsZiel="Erhöhen",500))),""),"") ->  | H120: =IFERROR(F120*(AktivitätsFaktor),"") ->  | I120: =IFERROR(IF(GewichtsZiel="Erhöhen",G120-H120,H120-G120),"") ->  | K120: =IFERROR(IF(Standard,J120/KalorienProGramm,J120/KalorienProGramm/2.2),"") ->  | L120: =IFERROR(ZielGewichtsVerlust-K120,"") ->  | M120: =IFERROR(IF(B119<>"",L120/(ZielGewichtsVerlust),""),"") -> 
E121: =IFERROR(IF($D121<>"",E120+(I120/KalorienProGramm)*IF(GewichtsZiel="INCREASE",1,-1),""),"") ->  | F121: =IFERROR(LaufenderGU,"") ->  | G121: =IFERROR(IF(K120>0,F120*AktivitätsFaktor+IF(GewichtsZiel="Verwalten",0,IF(GewichtsZiel="REDUZIEREN",-500,IF(GewichtsZiel="Erhöhen",500))),""),"") ->  | H121: =IFERROR(F121*(AktivitätsFaktor),"") ->  | I121: =IFERROR(IF(GewichtsZiel="Erhöhen",G121-H121,H121-G121),"") ->  | K121: =IFERROR(IF(Standard,J121/KalorienProGramm,J121/KalorienProGramm/2.2),"") ->  | L121: =IFERROR(ZielGewichtsVerlust-K121,"") ->  | M121: =IFERROR(IF(B120<>"",L121/(ZielGewichtsVerlust),""),"") -> 
E122: =IFERROR(IF($D122<>"",E121+(I121/KalorienProGramm)*IF(GewichtsZiel="INCREASE",1,-1),""),"") ->  | F122: =IFERROR(LaufenderGU,"") ->  | G122: =IFERROR(IF(K121>0,F121*AktivitätsFaktor+IF(GewichtsZiel="Verwalten",0,IF(GewichtsZiel="REDUZIEREN",-500,IF(GewichtsZiel="Erhöhen",500))),""),"") ->  | H122: =IFERROR(F122*(AktivitätsFaktor),"") ->  | I122: =IFERROR(IF(GewichtsZiel="Erhöhen",G122-H122,H122-G122),"") ->  | K122: =IFERROR(IF(Standard,J122/KalorienProGramm,J122/KalorienProGramm/2.2),"") ->  | L122: =IFERROR(ZielGewichtsVerlust-K122,"") ->  | M122: =IFERROR(IF(B121<>"",L122/(ZielGewichtsVerlust),""),"") -> 
E123: =IFERROR(IF($D123<>"",E122+(I122/KalorienProGramm)*IF(GewichtsZiel="INCREASE",1,-1),""),"") ->  | F123: =IFERROR(LaufenderGU,"") ->  | G123: =IFERROR(IF(K122>0,F122*AktivitätsFaktor+IF(GewichtsZiel="Verwalten",0,IF(GewichtsZiel="REDUZIEREN",-500,IF(GewichtsZiel="Erhöhen",500))),""),"") ->  | H123: =IFERROR(F123*(AktivitätsFaktor),"") ->  | I123: =IFERROR(IF(GewichtsZiel="Erhöhen",G123-H123,H123-G123),"") ->  | K123: =IFERROR(IF(Standard,J123/KalorienProGramm,J123/KalorienProGramm/2.2),"") ->  | L123: =IFERROR(ZielGewichtsVerlust-K123,"") ->  | M123: =IFERROR(IF(B122<>"",L123/(ZielGewichtsVerlust),""),"") -> 
E124: =IFERROR(IF($D124<>"",E123+(I123/KalorienProGramm)*IF(GewichtsZiel="INCREASE",1,-1),""),"") ->  | F124: =IFERROR(LaufenderGU,"") ->  | G124: =IFERROR(IF(K123>0,F123*AktivitätsFaktor+IF(GewichtsZiel="Verwalten",0,IF(GewichtsZiel="REDUZIEREN",-500,IF(GewichtsZiel="Erhöhen",500))),""),"") ->  | H124: =IFERROR(F124*(AktivitätsFaktor),"") ->  | I124: =IFERROR(IF(GewichtsZiel="Erhöhen",G124-H124,H124-G124),"") ->  | K124: =IFERROR(IF(Standard,J124/KalorienProGramm,J124/KalorienProGramm/2.2),"") ->  | L124: =IFERROR(ZielGewichtsVerlust-K124,"") ->  | M124: =IFERROR(IF(B123<>"",L124/(ZielGewichtsVerlust),""),"") -> 
E125: =IFERROR(IF($D125<>"",E124+(I124/KalorienProGramm)*IF(GewichtsZiel="INCREASE",1,-1),""),"") ->  | F125: =IFERROR(LaufenderGU,"") ->  | G125: =IFERROR(IF(K124>0,F124*AktivitätsFaktor+IF(GewichtsZiel="Verwalten",0,IF(GewichtsZiel="REDUZIEREN",-500,IF(GewichtsZiel="Erhöhen",500))),""),"") ->  | H125: =IFERROR(F125*(AktivitätsFaktor),"") ->  | I125: =IFERROR(IF(GewichtsZiel="Erhöhen",G125-H125,H125-G125),"") ->  | K125: =IFERROR(IF(Standard,J125/KalorienProGramm,J125/KalorienProGramm/2.2),"") ->  | L125: =IFERROR(ZielGewichtsVerlust-K125,"") ->  | M125: =IFERROR(IF(B124<>"",L125/(ZielGewichtsVerlust),""),"") -> 
E126: =IFERROR(IF($D126<>"",E125+(I125/KalorienProGramm)*IF(GewichtsZiel="INCREASE",1,-1),""),"") ->  | F126: =IFERROR(LaufenderGU,"") ->  | G126: =IFERROR(IF(K125>0,F125*AktivitätsFaktor+IF(GewichtsZiel="Verwalten",0,IF(GewichtsZiel="REDUZIEREN",-500,IF(GewichtsZiel="Erhöhen",500))),""),"") ->  | H126: =IFERROR(F126*(AktivitätsFaktor),"") ->  | I126: =IFERROR(IF(GewichtsZiel="Erhöhen",G126-H126,H126-G126),"") ->  | K126: =IFERROR(IF(Standard,J126/KalorienProGramm,J126/KalorienProGramm/2.2),"") ->  | L126: =IFERROR(ZielGewichtsVerlust-K126,"") ->  | M126: =IFERROR(IF(B125<>"",L126/(ZielGewichtsVerlust),""),"") -> 
E127: =IFERROR(IF($D127<>"",E126+(I126/KalorienProGramm)*IF(GewichtsZiel="INCREASE",1,-1),""),"") ->  | F127: =IFERROR(LaufenderGU,"") ->  | G127: =IFERROR(IF(K126>0,F126*AktivitätsFaktor+IF(GewichtsZiel="Verwalten",0,IF(GewichtsZiel="REDUZIEREN",-500,IF(GewichtsZiel="Erhöhen",500))),""),"") ->  | H127: =IFERROR(F127*(AktivitätsFaktor),"") ->  | I127: =IFERROR(IF(GewichtsZiel="Erhöhen",G127-H127,H127-G127),"") ->  | K127: =IFERROR(IF(Standard,J127/KalorienProGramm,J127/KalorienProGramm/2.2),"") ->  | L127: =IFERROR(ZielGewichtsVerlust-K127,"") ->  | M127: =IFERROR(IF(B126<>"",L127/(ZielGewichtsVerlust),""),"") -> 
E128: =IFERROR(IF($D128<>"",E127+(I127/KalorienProGramm)*IF(GewichtsZiel="INCREASE",1,-1),""),"") ->  | F128: =IFERROR(LaufenderGU,"") ->  | G128: =IFERROR(IF(K127>0,F127*AktivitätsFaktor+IF(GewichtsZiel="Verwalten",0,IF(GewichtsZiel="REDUZIEREN",-500,IF(GewichtsZiel="Erhöhen",500))),""),"") ->  | H128: =IFERROR(F128*(AktivitätsFaktor),"") ->  | I128: =IFERROR(IF(GewichtsZiel="Erhöhen",G128-H128,H128-G128),"") ->  | K128: =IFERROR(IF(Standard,J128/KalorienProGramm,J128/KalorienProGramm/2.2),"") ->  | L128: =IFERROR(ZielGewichtsVerlust-K128,"") ->  | M128: =IFERROR(IF(B127<>"",L128/(ZielGewichtsVerlust),""),"") -> 
E129: =IFERROR(IF($D129<>"",E128+(I128/KalorienProGramm)*IF(GewichtsZiel="INCREASE",1,-1),""),"") ->  | F129: =IFERROR(LaufenderGU,"") ->  | G129: =IFERROR(IF(K128>0,F128*AktivitätsFaktor+IF(GewichtsZiel="Verwalten",0,IF(GewichtsZiel="REDUZIEREN",-500,IF(GewichtsZiel="Erhöhen",500))),""),"") ->  | H129: =IFERROR(F129*(AktivitätsFaktor),"") ->  | I129: =IFERROR(IF(GewichtsZiel="Erhöhen",G129-H129,H129-G129),"") ->  | K129: =IFERROR(IF(Standard,J129/KalorienProGramm,J129/KalorienProGramm/2.2),"") ->  | L129: =IFERROR(ZielGewichtsVerlust-K129,"") ->  | M129: =IFERROR(IF(B128<>"",L129/(ZielGewichtsVerlust),""),"") -> 
E130: =IFERROR(IF($D130<>"",E129+(I129/KalorienProGramm)*IF(GewichtsZiel="INCREASE",1,-1),""),"") ->  | F130: =IFERROR(LaufenderGU,"") ->  | G130: =IFERROR(IF(K129>0,F129*AktivitätsFaktor+IF(GewichtsZiel="Verwalten",0,IF(GewichtsZiel="REDUZIEREN",-500,IF(GewichtsZiel="Erhöhen",500))),""),"") ->  | H130: =IFERROR(F130*(AktivitätsFaktor),"") ->  | I130: =IFERROR(IF(GewichtsZiel="Erhöhen",G130-H130,H130-G130),"") ->  | K130: =IFERROR(IF(Standard,J130/KalorienProGramm,J130/KalorienProGramm/2.2),"") ->  | L130: =IFERROR(ZielGewichtsVerlust-K130,"") ->  | M130: =IFERROR(IF(B129<>"",L130/(ZielGewichtsVerlust),""),"") -> 
E131: =IFERROR(IF($D131<>"",E130+(I130/KalorienProGramm)*IF(GewichtsZiel="INCREASE",1,-1),""),"") ->  | F131: =IFERROR(LaufenderGU,"") ->  | G131: =IFERROR(IF(K130>0,F130*AktivitätsFaktor+IF(GewichtsZiel="Verwalten",0,IF(GewichtsZiel="REDUZIEREN",-500,IF(GewichtsZiel="Erhöhen",500))),""),"") ->  | H131: =IFERROR(F131*(AktivitätsFaktor),"") ->  | I131: =IFERROR(IF(GewichtsZiel="Erhöhen",G131-H131,H131-G131),"") ->  | K131: =IFERROR(IF(Standard,J131/KalorienProGramm,J131/KalorienProGramm/2.2),"") ->  | L131: =IFERROR(ZielGewichtsVerlust-K131,"") ->  | M131: =IFERROR(IF(B130<>"",L131/(ZielGewichtsVerlust),""),"") -> 
E132: =IFERROR(IF($D132<>"",E131+(I131/KalorienProGramm)*IF(GewichtsZiel="INCREASE",1,-1),""),"") ->  | F132: =IFERROR(LaufenderGU,"") ->  | G132: =IFERROR(IF(K131>0,F131*AktivitätsFaktor+IF(GewichtsZiel="Verwalten",0,IF(GewichtsZiel="REDUZIEREN",-500,IF(GewichtsZiel="Erhöhen",500))),""),"") ->  | H132: =IFERROR(F132*(AktivitätsFaktor),"") ->  | I132: =IFERROR(IF(GewichtsZiel="Erhöhen",G132-H132,H132-G132),"") ->  | K132: =IFERROR(IF(Standard,J132/KalorienProGramm,J132/KalorienProGramm/2.2),"") ->  | L132: =IFERROR(ZielGewichtsVerlust-K132,"") ->  | M132: =IFERROR(IF(B131<>"",L132/(ZielGewichtsVerlust),""),"") -> 
E133: =IFERROR(IF($D133<>"",E132+(I132/KalorienProGramm)*IF(GewichtsZiel="INCREASE",1,-1),""),"") ->  | F133: =IFERROR(LaufenderGU,"") ->  | G133: =IFERROR(IF(K132>0,F132*AktivitätsFaktor+IF(GewichtsZiel="Verwalten",0,IF(GewichtsZiel="REDUZIEREN",-500,IF(GewichtsZiel="Erhöhen",500))),""),"") ->  | H133: =IFERROR(F133*(AktivitätsFaktor),"") ->  | I133: =IFERROR(IF(GewichtsZiel="Erhöhen",G133-H133,H133-G133),"") ->  | K133: =IFERROR(IF(Standard,J133/KalorienProGramm,J133/KalorienProGramm/2.2),"") ->  | L133: =IFERROR(ZielGewichtsVerlust-K133,"") ->  | M133: =IFERROR(IF(B132<>"",L133/(ZielGewichtsVerlust),""),"") -> 
E134: =IFERROR(IF($D134<>"",E133+(I133/KalorienProGramm)*IF(GewichtsZiel="INCREASE",1,-1),""),"") ->  | F134: =IFERROR(LaufenderGU,"") ->  | G134: =IFERROR(IF(K133>0,F133*AktivitätsFaktor+IF(GewichtsZiel="Verwalten",0,IF(GewichtsZiel="REDUZIEREN",-500,IF(GewichtsZiel="Erhöhen",500))),""),"") ->  | H134: =IFERROR(F134*(AktivitätsFaktor),"") ->  | I134: =IFERROR(IF(GewichtsZiel="Erhöhen",G134-H134,H134-G134),"") ->  | K134: =IFERROR(IF(Standard,J134/KalorienProGramm,J134/KalorienProGramm/2.2),"") ->  | L134: =IFERROR(ZielGewichtsVerlust-K134,"") ->  | M134: =IFERROR(IF(B133<>"",L134/(ZielGewichtsVerlust),""),"") -> 
E135: =IFERROR(IF($D135<>"",E134+(I134/KalorienProGramm)*IF(GewichtsZiel="INCREASE",1,-1),""),"") ->  | F135: =IFERROR(LaufenderGU,"") ->  | G135: =IFERROR(IF(K134>0,F134*AktivitätsFaktor+IF(GewichtsZiel="Verwalten",0,IF(GewichtsZiel="REDUZIEREN",-500,IF(GewichtsZiel="Erhöhen",500))),""),"") ->  | H135: =IFERROR(F135*(AktivitätsFaktor),"") ->  | I135: =IFERROR(IF(GewichtsZiel="Erhöhen",G135-H135,H135-G135),"") ->  | K135: =IFERROR(IF(Standard,J135/KalorienProGramm,J135/KalorienProGramm/2.2),"") ->  | L135: =IFERROR(ZielGewichtsVerlust-K135,"") ->  | M135: =IFERROR(IF(B134<>"",L135/(ZielGewichtsVerlust),""),"") -> 
E136: =IFERROR(IF($D136<>"",E135+(I135/KalorienProGramm)*IF(GewichtsZiel="INCREASE",1,-1),""),"") ->  | F136: =IFERROR(LaufenderGU,"") ->  | G136: =IFERROR(IF(K135>0,F135*AktivitätsFaktor+IF(GewichtsZiel="Verwalten",0,IF(GewichtsZiel="REDUZIEREN",-500,IF(GewichtsZiel="Erhöhen",500))),""),"") ->  | H136: =IFERROR(F136*(AktivitätsFaktor),"") ->  | I136: =IFERROR(IF(GewichtsZiel="Erhöhen",G136-H136,H136-G136),"") ->  | K136: =IFERROR(IF(Standard,J136/KalorienProGramm,J136/KalorienProGramm/2.2),"") ->  | L136: =IFERROR(ZielGewichtsVerlust-K136,"") ->  | M136: =IFERROR(IF(B135<>"",L136/(ZielGewichtsVerlust),""),"") -> 
E137: =IFERROR(IF($D137<>"",E136+(I136/KalorienProGramm)*IF(GewichtsZiel="INCREASE",1,-1),""),"") ->  | F137: =IFERROR(LaufenderGU,"") ->  | G137: =IFERROR(IF(K136>0,F136*AktivitätsFaktor+IF(GewichtsZiel="Verwalten",0,IF(GewichtsZiel="REDUZIEREN",-500,IF(GewichtsZiel="Erhöhen",500))),""),"") ->  | H137: =IFERROR(F137*(AktivitätsFaktor),"") ->  | I137: =IFERROR(IF(GewichtsZiel="Erhöhen",G137-H137,H137-G137),"") ->  | K137: =IFERROR(IF(Standard,J137/KalorienProGramm,J137/KalorienProGramm/2.2),"") ->  | L137: =IFERROR(ZielGewichtsVerlust-K137,"") ->  | M137: =IFERROR(IF(B136<>"",L137/(ZielGewichtsVerlust),""),"") -> 
E138: =IFERROR(IF($D138<>"",E137+(I137/KalorienProGramm)*IF(GewichtsZiel="INCREASE",1,-1),""),"") ->  | F138: =IFERROR(LaufenderGU,"") ->  | G138: =IFERROR(IF(K137>0,F137*AktivitätsFaktor+IF(GewichtsZiel="Verwalten",0,IF(GewichtsZiel="REDUZIEREN",-500,IF(GewichtsZiel="Erhöhen",500))),""),"") ->  | H138: =IFERROR(F138*(AktivitätsFaktor),"") ->  | I138: =IFERROR(IF(GewichtsZiel="Erhöhen",G138-H138,H138-G138),"") ->  | K138: =IFERROR(IF(Standard,J138/KalorienProGramm,J138/KalorienProGramm/2.2),"") ->  | L138: =IFERROR(ZielGewichtsVerlust-K138,"") ->  | M138: =IFERROR(IF(B137<>"",L138/(ZielGewichtsVerlust),""),"") -> 
E139: =IFERROR(IF($D139<>"",E138+(I138/KalorienProGramm)*IF(GewichtsZiel="INCREASE",1,-1),""),"") ->  | F139: =IFERROR(LaufenderGU,"") ->  | G139: =IFERROR(IF(K138>0,F138*AktivitätsFaktor+IF(GewichtsZiel="Verwalten",0,IF(GewichtsZiel="REDUZIEREN",-500,IF(GewichtsZiel="Erhöhen",500))),""),"") ->  | H139: =IFERROR(F139*(AktivitätsFaktor),"") ->  | I139: =IFERROR(IF(GewichtsZiel="Erhöhen",G139-H139,H139-G139),"") ->  | K139: =IFERROR(IF(Standard,J139/KalorienProGramm,J139/KalorienProGramm/2.2),"") ->  | L139: =IFERROR(ZielGewichtsVerlust-K139,"") ->  | M139: =IFERROR(IF(B138<>"",L139/(ZielGewichtsVerlust),""),"") -> 
E140: =IFERROR(IF($D140<>"",E139+(I139/KalorienProGramm)*IF(GewichtsZiel="INCREASE",1,-1),""),"") ->  | F140: =IFERROR(LaufenderGU,"") ->  | G140: =IFERROR(IF(K139>0,F139*AktivitätsFaktor+IF(GewichtsZiel="Verwalten",0,IF(GewichtsZiel="REDUZIEREN",-500,IF(GewichtsZiel="Erhöhen",500))),""),"") ->  | H140: =IFERROR(F140*(AktivitätsFaktor),"") ->  | I140: =IFERROR(IF(GewichtsZiel="Erhöhen",G140-H140,H140-G140),"") ->  | K140: =IFERROR(IF(Standard,J140/KalorienProGramm,J140/KalorienProGramm/2.2),"") ->  | L140: =IFERROR(ZielGewichtsVerlust-K140,"") ->  | M140: =IFERROR(IF(B139<>"",L140/(ZielGewichtsVerlust),""),"") -> 
E141: =IFERROR(IF($D141<>"",E140+(I140/KalorienProGramm)*IF(GewichtsZiel="INCREASE",1,-1),""),"") ->  | F141: =IFERROR(LaufenderGU,"") ->  | G141: =IFERROR(IF(K140>0,F140*AktivitätsFaktor+IF(GewichtsZiel="Verwalten",0,IF(GewichtsZiel="REDUZIEREN",-500,IF(GewichtsZiel="Erhöhen",500))),""),"") ->  | H141: =IFERROR(F141*(AktivitätsFaktor),"") ->  | I141: =IFERROR(IF(GewichtsZiel="Erhöhen",G141-H141,H141-G141),"") ->  | K141: =IFERROR(IF(Standard,J141/KalorienProGramm,J141/KalorienProGramm/2.2),"") ->  | L141: =IFERROR(ZielGewichtsVerlust-K141,"") ->  | M141: =IFERROR(IF(B140<>"",L141/(ZielGewichtsVerlust),""),"") -> 
B142: =IFERROR(IF(K141>0,B141+1,""),"") ->  | D142: =IFERROR(IF(K141>0,D141+1,""),"") ->  | E142: =IFERROR(IF($D142<>"",E141+(I141/KalorienProGramm)*IF(GewichtsZiel="INCREASE",1,-1),""),"") ->  | F142: =IFERROR(LaufenderGU,"") ->  | G142: =IFERROR(IF(K141>0,F141*AktivitätsFaktor+IF(GewichtsZiel="Verwalten",0,IF(GewichtsZiel="REDUZIEREN",-500,IF(GewichtsZiel="Erhöhen",500))),""),"") ->  | H142: =IFERROR(F142*(AktivitätsFaktor),"") ->  | I142: =IFERROR(IF(GewichtsZiel="Erhöhen",G142-H142,H142-G142),"") ->  | K142: =IFERROR(IF(Standard,J142/KalorienProGramm,J142/KalorienProGramm/2.2),"") ->  | L142: =IFERROR(ZielGewichtsVerlust-K142,"") ->  | M142: =IFERROR(IF(B141<>"",L142/(ZielGewichtsVerlust),""),"") -> 
C143: =IFERROR(IF(D143<>"",IF(MOD(D143,7)=1,(D142/7)+1,""),""),"") ->  | E143: =IFERROR(IF($D143<>"",E142+(I142/KalorienProGramm)*IF(GewichtsZiel="INCREASE",1,-1),""),"") ->  | F143: =IFERROR(LaufenderGU,"") ->  | G143: =IFERROR(IF(K142>0,F142*AktivitätsFaktor+IF(GewichtsZiel="Verwalten",0,IF(GewichtsZiel="REDUZIEREN",-500,IF(GewichtsZiel="Erhöhen",500))),""),"") ->  | H143: =IFERROR(F143*(AktivitätsFaktor),"") ->  | I143: =IFERROR(IF(GewichtsZiel="Erhöhen",G143-H143,H143-G143),"") ->  | J143: =IFERROR(J142-I143,"") ->  | K143: =IFERROR(IF(Standard,J143/KalorienProGramm,J143/KalorienProGramm/2.2),"") ->  | L143: =IFERROR(ZielGewichtsVerlust-K143,"") ->  | M143: =IFERROR(IF(B142<>"",L143/(ZielGewichtsVerlust),""),"") -> 
E144: =IFERROR(IF($D144<>"",E143+(I143/KalorienProGramm)*IF(GewichtsZiel="INCREASE",1,-1),""),"") ->  | F144: =IFERROR(LaufenderGU,"") ->  | G144: =IFERROR(IF(K143>0,F143*AktivitätsFaktor+IF(GewichtsZiel="Verwalten",0,IF(GewichtsZiel="REDUZIEREN",-500,IF(GewichtsZiel="Erhöhen",500))),""),"") ->  | H144: =IFERROR(F144*(AktivitätsFaktor),"") ->  | I144: =IFERROR(IF(GewichtsZiel="Erhöhen",G144-H144,H144-G144),"") ->  | K144: =IFERROR(IF(Standard,J144/KalorienProGramm,J144/KalorienProGramm/2.2),"") ->  | L144: =IFERROR(ZielGewichtsVerlust-K144,"") ->  | M144: =IFERROR(IF(B143<>"",L144/(ZielGewichtsVerlust),""),"") -> 
E145: =IFERROR(IF($D145<>"",E144+(I144/KalorienProGramm)*IF(GewichtsZiel="INCREASE",1,-1),""),"") ->  | F145: =IFERROR(LaufenderGU,"") ->  | G145: =IFERROR(IF(K144>0,F144*AktivitätsFaktor+IF(GewichtsZiel="Verwalten",0,IF(GewichtsZiel="REDUZIEREN",-500,IF(GewichtsZiel="Erhöhen",500))),""),"") ->  | H145: =IFERROR(F145*(AktivitätsFaktor),"") ->  | I145: =IFERROR(IF(GewichtsZiel="Erhöhen",G145-H145,H145-G145),"") ->  | K145: =IFERROR(IF(Standard,J145/KalorienProGramm,J145/KalorienProGramm/2.2),"") ->  | L145: =IFERROR(ZielGewichtsVerlust-K145,"") ->  | M145: =IFERROR(IF(B144<>"",L145/(ZielGewichtsVerlust),""),"") -> 
E146: =IFERROR(IF($D146<>"",E145+(I145/KalorienProGramm)*IF(GewichtsZiel="INCREASE",1,-1),""),"") ->  | F146: =IFERROR(LaufenderGU,"") ->  | G146: =IFERROR(IF(K145>0,F145*AktivitätsFaktor+IF(GewichtsZiel="Verwalten",0,IF(GewichtsZiel="REDUZIEREN",-500,IF(GewichtsZiel="Erhöhen",500))),""),"") ->  | H146: =IFERROR(F146*(AktivitätsFaktor),"") ->  | I146: =IFERROR(IF(GewichtsZiel="Erhöhen",G146-H146,H146-G146),"") ->  | K146: =IFERROR(IF(Standard,J146/KalorienProGramm,J146/KalorienProGramm/2.2),"") ->  | L146: =IFERROR(ZielGewichtsVerlust-K146,"") ->  | M146: =IFERROR(IF(B145<>"",L146/(ZielGewichtsVerlust),""),"") -> 
E147: =IFERROR(IF($D147<>"",E146+(I146/KalorienProGramm)*IF(GewichtsZiel="INCREASE",1,-1),""),"") ->  | F147: =IFERROR(LaufenderGU,"") ->  | G147: =IFERROR(IF(K146>0,F146*AktivitätsFaktor+IF(GewichtsZiel="Verwalten",0,IF(GewichtsZiel="REDUZIEREN",-500,IF(GewichtsZiel="Erhöhen",500))),""),"") ->  | H147: =IFERROR(F147*(AktivitätsFaktor),"") ->  | I147: =IFERROR(IF(GewichtsZiel="Erhöhen",G147-H147,H147-G147),"") ->  | K147: =IFERROR(IF(Standard,J147/KalorienProGramm,J147/KalorienProGramm/2.2),"") ->  | L147: =IFERROR(ZielGewichtsVerlust-K147,"") ->  | M147: =IFERROR(IF(B146<>"",L147/(ZielGewichtsVerlust),""),"") -> 
E148: =IFERROR(IF($D148<>"",E147+(I147/KalorienProGramm)*IF(GewichtsZiel="INCREASE",1,-1),""),"") ->  | F148: =IFERROR(LaufenderGU,"") ->  | G148: =IFERROR(IF(K147>0,F147*AktivitätsFaktor+IF(GewichtsZiel="Verwalten",0,IF(GewichtsZiel="REDUZIEREN",-500,IF(GewichtsZiel="Erhöhen",500))),""),"") ->  | H148: =IFERROR(F148*(AktivitätsFaktor),"") ->  | I148: =IFERROR(IF(GewichtsZiel="Erhöhen",G148-H148,H148-G148),"") ->  | K148: =IFERROR(IF(Standard,J148/KalorienProGramm,J148/KalorienProGramm/2.2),"") ->  | L148: =IFERROR(ZielGewichtsVerlust-K148,"") ->  | M148: =IFERROR(IF(B147<>"",L148/(ZielGewichtsVerlust),""),"") -> 
E149: =IFERROR(IF($D149<>"",E148+(I148/KalorienProGramm)*IF(GewichtsZiel="INCREASE",1,-1),""),"") ->  | F149: =IFERROR(LaufenderGU,"") ->  | G149: =IFERROR(IF(K148>0,F148*AktivitätsFaktor+IF(GewichtsZiel="Verwalten",0,IF(GewichtsZiel="REDUZIEREN",-500,IF(GewichtsZiel="Erhöhen",500))),""),"") ->  | H149: =IFERROR(F149*(AktivitätsFaktor),"") ->  | I149: =IFERROR(IF(GewichtsZiel="Erhöhen",G149-H149,H149-G149),"") ->  | K149: =IFERROR(IF(Standard,J149/KalorienProGramm,J149/KalorienProGramm/2.2),"") ->  | L149: =IFERROR(ZielGewichtsVerlust-K149,"") ->  | M149: =IFERROR(IF(B148<>"",L149/(ZielGewichtsVerlust),""),"") -> 
E150: =IFERROR(IF($D150<>"",E149+(I149/KalorienProGramm)*IF(GewichtsZiel="INCREASE",1,-1),""),"") ->  | F150: =IFERROR(LaufenderGU,"") ->  | G150: =IFERROR(IF(K149>0,F149*AktivitätsFaktor+IF(GewichtsZiel="Verwalten",0,IF(GewichtsZiel="REDUZIEREN",-500,IF(GewichtsZiel="Erhöhen",500))),""),"") ->  | H150: =IFERROR(F150*(AktivitätsFaktor),"") ->  | I150: =IFERROR(IF(GewichtsZiel="Erhöhen",G150-H150,H150-G150),"") ->  | K150: =IFERROR(IF(Standard,J150/KalorienProGramm,J150/KalorienProGramm/2.2),"") ->  | L150: =IFERROR(ZielGewichtsVerlust-K150,"") ->  | M150: =IFERROR(IF(B149<>"",L150/(ZielGewichtsVerlust),""),"") -> 
E151: =IFERROR(IF($D151<>"",E150+(I150/KalorienProGramm)*IF(GewichtsZiel="INCREASE",1,-1),""),"") ->  | F151: =IFERROR(LaufenderGU,"") ->  | G151: =IFERROR(IF(K150>0,F150*AktivitätsFaktor+IF(GewichtsZiel="Verwalten",0,IF(GewichtsZiel="REDUZIEREN",-500,IF(GewichtsZiel="Erhöhen",500))),""),"") ->  | H151: =IFERROR(F151*(AktivitätsFaktor),"") ->  | I151: =IFERROR(IF(GewichtsZiel="Erhöhen",G151-H151,H151-G151),"") ->  | K151: =IFERROR(IF(Standard,J151/KalorienProGramm,J151/KalorienProGramm/2.2),"") ->  | L151: =IFERROR(ZielGewichtsVerlust-K151,"") ->  | M151: =IFERROR(IF(B150<>"",L151/(ZielGewichtsVerlust),""),"") -> 
E152: =IFERROR(IF($D152<>"",E151+(I151/KalorienProGramm)*IF(GewichtsZiel="INCREASE",1,-1),""),"") ->  | F152: =IFERROR(LaufenderGU,"") ->  | G152: =IFERROR(IF(K151>0,F151*AktivitätsFaktor+IF(GewichtsZiel="Verwalten",0,IF(GewichtsZiel="REDUZIEREN",-500,IF(GewichtsZiel="Erhöhen",500))),""),"") ->  | H152: =IFERROR(F152*(AktivitätsFaktor),"") ->  | I152: =IFERROR(IF(GewichtsZiel="Erhöhen",G152-H152,H152-G152),"") ->  | K152: =IFERROR(IF(Standard,J152/KalorienProGramm,J152/KalorienProGramm/2.2),"") ->  | L152: =IFERROR(ZielGewichtsVerlust-K152,"") ->  | M152: =IFERROR(IF(B151<>"",L152/(ZielGewichtsVerlust),""),"") -> 
E153: =IFERROR(IF($D153<>"",E152+(I152/KalorienProGramm)*IF(GewichtsZiel="INCREASE",1,-1),""),"") ->  | F153: =IFERROR(LaufenderGU,"") ->  | G153: =IFERROR(IF(K152>0,F152*AktivitätsFaktor+IF(GewichtsZiel="Verwalten",0,IF(GewichtsZiel="REDUZIEREN",-500,IF(GewichtsZiel="Erhöhen",500))),""),"") ->  | H153: =IFERROR(F153*(AktivitätsFaktor),"") ->  | I153: =IFERROR(IF(GewichtsZiel="Erhöhen",G153-H153,H153-G153),"") ->  | K153: =IFERROR(IF(Standard,J153/KalorienProGramm,J153/KalorienProGramm/2.2),"") ->  | L153: =IFERROR(ZielGewichtsVerlust-K153,"") ->  | M153: =IFERROR(IF(B152<>"",L153/(ZielGewichtsVerlust),""),"") -> 
E154: =IFERROR(IF($D154<>"",E153+(I153/KalorienProGramm)*IF(GewichtsZiel="INCREASE",1,-1),""),"") ->  | F154: =IFERROR(LaufenderGU,"") ->  | G154: =IFERROR(IF(K153>0,F153*AktivitätsFaktor+IF(GewichtsZiel="Verwalten",0,IF(GewichtsZiel="REDUZIEREN",-500,IF(GewichtsZiel="Erhöhen",500))),""),"") ->  | H154: =IFERROR(F154*(AktivitätsFaktor),"") ->  | I154: =IFERROR(IF(GewichtsZiel="Erhöhen",G154-H154,H154-G154),"") ->  | K154: =IFERROR(IF(Standard,J154/KalorienProGramm,J154/KalorienProGramm/2.2),"") ->  | L154: =IFERROR(ZielGewichtsVerlust-K154,"") ->  | M154: =IFERROR(IF(B153<>"",L154/(ZielGewichtsVerlust),""),"") -> 
E155: =IFERROR(IF($D155<>"",E154+(I154/KalorienProGramm)*IF(GewichtsZiel="INCREASE",1,-1),""),"") ->  | F155: =IFERROR(LaufenderGU,"") ->  | G155: =IFERROR(IF(K154>0,F154*AktivitätsFaktor+IF(GewichtsZiel="Verwalten",0,IF(GewichtsZiel="REDUZIEREN",-500,IF(GewichtsZiel="Erhöhen",500))),""),"") ->  | H155: =IFERROR(F155*(AktivitätsFaktor),"") ->  | I155: =IFERROR(IF(GewichtsZiel="Erhöhen",G155-H155,H155-G155),"") ->  | K155: =IFERROR(IF(Standard,J155/KalorienProGramm,J155/KalorienProGramm/2.2),"") ->  | L155: =IFERROR(ZielGewichtsVerlust-K155,"") ->  | M155: =IFERROR(IF(B154<>"",L155/(ZielGewichtsVerlust),""),"") -> 
E156: =IFERROR(IF($D156<>"",E155+(I155/KalorienProGramm)*IF(GewichtsZiel="INCREASE",1,-1),""),"") ->  | F156: =IFERROR(LaufenderGU,"") ->  | G156: =IFERROR(IF(K155>0,F155*AktivitätsFaktor+IF(GewichtsZiel="Verwalten",0,IF(GewichtsZiel="REDUZIEREN",-500,IF(GewichtsZiel="Erhöhen",500))),""),"") ->  | H156: =IFERROR(F156*(AktivitätsFaktor),"") ->  | I156: =IFERROR(IF(GewichtsZiel="Erhöhen",G156-H156,H156-G156),"") ->  | K156: =IFERROR(IF(Standard,J156/KalorienProGramm,J156/KalorienProGramm/2.2),"") ->  | L156: =IFERROR(ZielGewichtsVerlust-K156,"") ->  | M156: =IFERROR(IF(B155<>"",L156/(ZielGewichtsVerlust),""),"") -> 
E157: =IFERROR(IF($D157<>"",E156+(I156/KalorienProGramm)*IF(GewichtsZiel="INCREASE",1,-1),""),"") ->  | F157: =IFERROR(LaufenderGU,"") ->  | G157: =IFERROR(IF(K156>0,F156*AktivitätsFaktor+IF(GewichtsZiel="Verwalten",0,IF(GewichtsZiel="REDUZIEREN",-500,IF(GewichtsZiel="Erhöhen",500))),""),"") ->  | H157: =IFERROR(F157*(AktivitätsFaktor),"") ->  | I157: =IFERROR(IF(GewichtsZiel="Erhöhen",G157-H157,H157-G157),"") ->  | K157: =IFERROR(IF(Standard,J157/KalorienProGramm,J157/KalorienProGramm/2.2),"") ->  | L157: =IFERROR(ZielGewichtsVerlust-K157,"") ->  | M157: =IFERROR(IF(B156<>"",L157/(ZielGewichtsVerlust),""),"") -> 
E158: =IFERROR(IF($D158<>"",E157+(I157/KalorienProGramm)*IF(GewichtsZiel="INCREASE",1,-1),""),"") ->  | F158: =IFERROR(LaufenderGU,"") ->  | G158: =IFERROR(IF(K157>0,F157*AktivitätsFaktor+IF(GewichtsZiel="Verwalten",0,IF(GewichtsZiel="REDUZIEREN",-500,IF(GewichtsZiel="Erhöhen",500))),""),"") ->  | H158: =IFERROR(F158*(AktivitätsFaktor),"") ->  | I158: =IFERROR(IF(GewichtsZiel="Erhöhen",G158-H158,H158-G158),"") ->  | K158: =IFERROR(IF(Standard,J158/KalorienProGramm,J158/KalorienProGramm/2.2),"") ->  | L158: =IFERROR(ZielGewichtsVerlust-K158,"") ->  | M158: =IFERROR(IF(B157<>"",L158/(ZielGewichtsVerlust),""),"") -> 
E159: =IFERROR(IF($D159<>"",E158+(I158/KalorienProGramm)*IF(GewichtsZiel="INCREASE",1,-1),""),"") ->  | F159: =IFERROR(LaufenderGU,"") ->  | G159: =IFERROR(IF(K158>0,F158*AktivitätsFaktor+IF(GewichtsZiel="Verwalten",0,IF(GewichtsZiel="REDUZIEREN",-500,IF(GewichtsZiel="Erhöhen",500))),""),"") ->  | H159: =IFERROR(F159*(AktivitätsFaktor),"") ->  | I159: =IFERROR(IF(GewichtsZiel="Erhöhen",G159-H159,H159-G159),"") ->  | K159: =IFERROR(IF(Standard,J159/KalorienProGramm,J159/KalorienProGramm/2.2),"") ->  | L159: =IFERROR(ZielGewichtsVerlust-K159,"") ->  | M159: =IFERROR(IF(B158<>"",L159/(ZielGewichtsVerlust),""),"") -> 
E160: =IFERROR(IF($D160<>"",E159+(I159/KalorienProGramm)*IF(GewichtsZiel="INCREASE",1,-1),""),"") ->  | F160: =IFERROR(LaufenderGU,"") ->  | G160: =IFERROR(IF(K159>0,F159*AktivitätsFaktor+IF(GewichtsZiel="Verwalten",0,IF(GewichtsZiel="REDUZIEREN",-500,IF(GewichtsZiel="Erhöhen",500))),""),"") ->  | H160: =IFERROR(F160*(AktivitätsFaktor),"") ->  | I160: =IFERROR(IF(GewichtsZiel="Erhöhen",G160-H160,H160-G160),"") ->  | K160: =IFERROR(IF(Standard,J160/KalorienProGramm,J160/KalorienProGramm/2.2),"") ->  | L160: =IFERROR(ZielGewichtsVerlust-K160,"") ->  | M160: =IFERROR(IF(B159<>"",L160/(ZielGewichtsVerlust),""),"") -> 
E161: =IFERROR(IF($D161<>"",E160+(I160/KalorienProGramm)*IF(GewichtsZiel="INCREASE",1,-1),""),"") ->  | F161: =IFERROR(LaufenderGU,"") ->  | G161: =IFERROR(IF(K160>0,F160*AktivitätsFaktor+IF(GewichtsZiel="Verwalten",0,IF(GewichtsZiel="REDUZIEREN",-500,IF(GewichtsZiel="Erhöhen",500))),""),"") ->  | H161: =IFERROR(F161*(AktivitätsFaktor),"") ->  | I161: =IFERROR(IF(GewichtsZiel="Erhöhen",G161-H161,H161-G161),"") ->  | K161: =IFERROR(IF(Standard,J161/KalorienProGramm,J161/KalorienProGramm/2.2),"") ->  | L161: =IFERROR(ZielGewichtsVerlust-K161,"") ->  | M161: =IFERROR(IF(B160<>"",L161/(ZielGewichtsVerlust),""),"") -> 
E162: =IFERROR(IF($D162<>"",E161+(I161/KalorienProGramm)*IF(GewichtsZiel="INCREASE",1,-1),""),"") ->  | F162: =IFERROR(LaufenderGU,"") ->  | G162: =IFERROR(IF(K161>0,F161*AktivitätsFaktor+IF(GewichtsZiel="Verwalten",0,IF(GewichtsZiel="REDUZIEREN",-500,IF(GewichtsZiel="Erhöhen",500))),""),"") ->  | H162: =IFERROR(F162*(AktivitätsFaktor),"") ->  | I162: =IFERROR(IF(GewichtsZiel="Erhöhen",G162-H162,H162-G162),"") ->  | K162: =IFERROR(IF(Standard,J162/KalorienProGramm,J162/KalorienProGramm/2.2),"") ->  | L162: =IFERROR(ZielGewichtsVerlust-K162,"") ->  | M162: =IFERROR(IF(B161<>"",L162/(ZielGewichtsVerlust),""),"") -> 
E163: =IFERROR(IF($D163<>"",E162+(I162/KalorienProGramm)*IF(GewichtsZiel="INCREASE",1,-1),""),"") ->  | F163: =IFERROR(LaufenderGU,"") ->  | G163: =IFERROR(IF(K162>0,F162*AktivitätsFaktor+IF(GewichtsZiel="Verwalten",0,IF(GewichtsZiel="REDUZIEREN",-500,IF(GewichtsZiel="Erhöhen",500))),""),"") ->  | H163: =IFERROR(F163*(AktivitätsFaktor),"") ->  | I163: =IFERROR(IF(GewichtsZiel="Erhöhen",G163-H163,H163-G163),"") ->  | K163: =IFERROR(IF(Standard,J163/KalorienProGramm,J163/KalorienProGramm/2.2),"") ->  | L163: =IFERROR(ZielGewichtsVerlust-K163,"") ->  | M163: =IFERROR(IF(B162<>"",L163/(ZielGewichtsVerlust),""),"") -> 
E164: =IFERROR(IF($D164<>"",E163+(I163/KalorienProGramm)*IF(GewichtsZiel="INCREASE",1,-1),""),"") ->  | F164: =IFERROR(LaufenderGU,"") ->  | G164: =IFERROR(IF(K163>0,F163*AktivitätsFaktor+IF(GewichtsZiel="Verwalten",0,IF(GewichtsZiel="REDUZIEREN",-500,IF(GewichtsZiel="Erhöhen",500))),""),"") ->  | H164: =IFERROR(F164*(AktivitätsFaktor),"") ->  | I164: =IFERROR(IF(GewichtsZiel="Erhöhen",G164-H164,H164-G164),"") ->  | K164: =IFERROR(IF(Standard,J164/KalorienProGramm,J164/KalorienProGramm/2.2),"") ->  | L164: =IFERROR(ZielGewichtsVerlust-K164,"") ->  | M164: =IFERROR(IF(B163<>"",L164/(ZielGewichtsVerlust),""),"") -> 
E165: =IFERROR(IF($D165<>"",E164+(I164/KalorienProGramm)*IF(GewichtsZiel="INCREASE",1,-1),""),"") ->  | F165: =IFERROR(LaufenderGU,"") ->  | G165: =IFERROR(IF(K164>0,F164*AktivitätsFaktor+IF(GewichtsZiel="Verwalten",0,IF(GewichtsZiel="REDUZIEREN",-500,IF(GewichtsZiel="Erhöhen",500))),""),"") ->  | H165: =IFERROR(F165*(AktivitätsFaktor),"") ->  | I165: =IFERROR(IF(GewichtsZiel="Erhöhen",G165-H165,H165-G165),"") ->  | K165: =IFERROR(IF(Standard,J165/KalorienProGramm,J165/KalorienProGramm/2.2),"") ->  | L165: =IFERROR(ZielGewichtsVerlust-K165,"") ->  | M165: =IFERROR(IF(B164<>"",L165/(ZielGewichtsVerlust),""),"") -> 
E166: =IFERROR(IF($D166<>"",E165+(I165/KalorienProGramm)*IF(GewichtsZiel="INCREASE",1,-1),""),"") ->  | F166: =IFERROR(LaufenderGU,"") ->  | G166: =IFERROR(IF(K165>0,F165*AktivitätsFaktor+IF(GewichtsZiel="Verwalten",0,IF(GewichtsZiel="REDUZIEREN",-500,IF(GewichtsZiel="Erhöhen",500))),""),"") ->  | H166: =IFERROR(F166*(AktivitätsFaktor),"") ->  | I166: =IFERROR(IF(GewichtsZiel="Erhöhen",G166-H166,H166-G166),"") ->  | K166: =IFERROR(IF(Standard,J166/KalorienProGramm,J166/KalorienProGramm/2.2),"") ->  | L166: =IFERROR(ZielGewichtsVerlust-K166,"") ->  | M166: =IFERROR(IF(B165<>"",L166/(ZielGewichtsVerlust),""),"") -> 
E167: =IFERROR(IF($D167<>"",E166+(I166/KalorienProGramm)*IF(GewichtsZiel="INCREASE",1,-1),""),"") ->  | F167: =IFERROR(LaufenderGU,"") ->  | G167: =IFERROR(IF(K166>0,F166*AktivitätsFaktor+IF(GewichtsZiel="Verwalten",0,IF(GewichtsZiel="REDUZIEREN",-500,IF(GewichtsZiel="Erhöhen",500))),""),"") ->  | H167: =IFERROR(F167*(AktivitätsFaktor),"") ->  | I167: =IFERROR(IF(GewichtsZiel="Erhöhen",G167-H167,H167-G167),"") ->  | K167: =IFERROR(IF(Standard,J167/KalorienProGramm,J167/KalorienProGramm/2.2),"") ->  | L167: =IFERROR(ZielGewichtsVerlust-K167,"") ->  | M167: =IFERROR(IF(B166<>"",L167/(ZielGewichtsVerlust),""),"") -> 
E168: =IFERROR(IF($D168<>"",E167+(I167/KalorienProGramm)*IF(GewichtsZiel="INCREASE",1,-1),""),"") ->  | F168: =IFERROR(LaufenderGU,"") ->  | G168: =IFERROR(IF(K167>0,F167*AktivitätsFaktor+IF(GewichtsZiel="Verwalten",0,IF(GewichtsZiel="REDUZIEREN",-500,IF(GewichtsZiel="Erhöhen",500))),""),"") ->  | H168: =IFERROR(F168*(AktivitätsFaktor),"") ->  | I168: =IFERROR(IF(GewichtsZiel="Erhöhen",G168-H168,H168-G168),"") ->  | K168: =IFERROR(IF(Standard,J168/KalorienProGramm,J168/KalorienProGramm/2.2),"") ->  | L168: =IFERROR(ZielGewichtsVerlust-K168,"") ->  | M168: =IFERROR(IF(B167<>"",L168/(ZielGewichtsVerlust),""),"") -> 
E169: =IFERROR(IF($D169<>"",E168+(I168/KalorienProGramm)*IF(GewichtsZiel="INCREASE",1,-1),""),"") ->  | F169: =IFERROR(LaufenderGU,"") ->  | G169: =IFERROR(IF(K168>0,F168*AktivitätsFaktor+IF(GewichtsZiel="Verwalten",0,IF(GewichtsZiel="REDUZIEREN",-500,IF(GewichtsZiel="Erhöhen",500))),""),"") ->  | H169: =IFERROR(F169*(AktivitätsFaktor),"") ->  | I169: =IFERROR(IF(GewichtsZiel="Erhöhen",G169-H169,H169-G169),"") ->  | K169: =IFERROR(IF(Standard,J169/KalorienProGramm,J169/KalorienProGramm/2.2),"") ->  | L169: =IFERROR(ZielGewichtsVerlust-K169,"") ->  | M169: =IFERROR(IF(B168<>"",L169/(ZielGewichtsVerlust),""),"") -> 
E170: =IFERROR(IF($D170<>"",E169+(I169/KalorienProGramm)*IF(GewichtsZiel="INCREASE",1,-1),""),"") ->  | F170: =IFERROR(LaufenderGU,"") ->  | G170: =IFERROR(IF(K169>0,F169*AktivitätsFaktor+IF(GewichtsZiel="Verwalten",0,IF(GewichtsZiel="REDUZIEREN",-500,IF(GewichtsZiel="Erhöhen",500))),""),"") ->  | H170: =IFERROR(F170*(AktivitätsFaktor),"") ->  | I170: =IFERROR(IF(GewichtsZiel="Erhöhen",G170-H170,H170-G170),"") ->  | K170: =IFERROR(IF(Standard,J170/KalorienProGramm,J170/KalorienProGramm/2.2),"") ->  | L170: =IFERROR(ZielGewichtsVerlust-K170,"") ->  | M170: =IFERROR(IF(B169<>"",L170/(ZielGewichtsVerlust),""),"") -> 
E171: =IFERROR(IF($D171<>"",E170+(I170/KalorienProGramm)*IF(GewichtsZiel="INCREASE",1,-1),""),"") ->  | F171: =IFERROR(LaufenderGU,"") ->  | G171: =IFERROR(IF(K170>0,F170*AktivitätsFaktor+IF(GewichtsZiel="Verwalten",0,IF(GewichtsZiel="REDUZIEREN",-500,IF(GewichtsZiel="Erhöhen",500))),""),"") ->  | H171: =IFERROR(F171*(AktivitätsFaktor),"") ->  | I171: =IFERROR(IF(GewichtsZiel="Erhöhen",G171-H171,H171-G171),"") ->  | K171: =IFERROR(IF(Standard,J171/KalorienProGramm,J171/KalorienProGramm/2.2),"") ->  | L171: =IFERROR(ZielGewichtsVerlust-K171,"") ->  | M171: =IFERROR(IF(B170<>"",L171/(ZielGewichtsVerlust),""),"") -> 
E172: =IFERROR(IF($D172<>"",E171+(I171/KalorienProGramm)*IF(GewichtsZiel="INCREASE",1,-1),""),"") ->  | F172: =IFERROR(LaufenderGU,"") ->  | G172: =IFERROR(IF(K171>0,F171*AktivitätsFaktor+IF(GewichtsZiel="Verwalten",0,IF(GewichtsZiel="REDUZIEREN",-500,IF(GewichtsZiel="Erhöhen",500))),""),"") ->  | H172: =IFERROR(F172*(AktivitätsFaktor),"") ->  | I172: =IFERROR(IF(GewichtsZiel="Erhöhen",G172-H172,H172-G172),"") ->  | K172: =IFERROR(IF(Standard,J172/KalorienProGramm,J172/KalorienProGramm/2.2),"") ->  | L172: =IFERROR(ZielGewichtsVerlust-K172,"") ->  | M172: =IFERROR(IF(B171<>"",L172/(ZielGewichtsVerlust),""),"") -> 
E173: =IFERROR(IF($D173<>"",E172+(I172/KalorienProGramm)*IF(GewichtsZiel="INCREASE",1,-1),""),"") ->  | F173: =IFERROR(LaufenderGU,"") ->  | G173: =IFERROR(IF(K172>0,F172*AktivitätsFaktor+IF(GewichtsZiel="Verwalten",0,IF(GewichtsZiel="REDUZIEREN",-500,IF(GewichtsZiel="Erhöhen",500))),""),"") ->  | H173: =IFERROR(F173*(AktivitätsFaktor),"") ->  | I173: =IFERROR(IF(GewichtsZiel="Erhöhen",G173-H173,H173-G173),"") ->  | K173: =IFERROR(IF(Standard,J173/KalorienProGramm,J173/KalorienProGramm/2.2),"") ->  | L173: =IFERROR(ZielGewichtsVerlust-K173,"") ->  | M173: =IFERROR(IF(B172<>"",L173/(ZielGewichtsVerlust),""),"") -> 
E174: =IFERROR(IF($D174<>"",E173+(I173/KalorienProGramm)*IF(GewichtsZiel="INCREASE",1,-1),""),"") ->  | F174: =IFERROR(LaufenderGU,"") ->  | G174: =IFERROR(IF(K173>0,F173*AktivitätsFaktor+IF(GewichtsZiel="Verwalten",0,IF(GewichtsZiel="REDUZIEREN",-500,IF(GewichtsZiel="Erhöhen",500))),""),"") ->  | H174: =IFERROR(F174*(AktivitätsFaktor),"") ->  | I174: =IFERROR(IF(GewichtsZiel="Erhöhen",G174-H174,H174-G174),"") ->  | K174: =IFERROR(IF(Standard,J174/KalorienProGramm,J174/KalorienProGramm/2.2),"") ->  | L174: =IFERROR(ZielGewichtsVerlust-K174,"") ->  | M174: =IFERROR(IF(B173<>"",L174/(ZielGewichtsVerlust),""),"") -> 
E175: =IFERROR(IF($D175<>"",E174+(I174/KalorienProGramm)*IF(GewichtsZiel="INCREASE",1,-1),""),"") ->  | F175: =IFERROR(LaufenderGU,"") ->  | G175: =IFERROR(IF(K174>0,F174*AktivitätsFaktor+IF(GewichtsZiel="Verwalten",0,IF(GewichtsZiel="REDUZIEREN",-500,IF(GewichtsZiel="Erhöhen",500))),""),"") ->  | H175: =IFERROR(F175*(AktivitätsFaktor),"") ->  | I175: =IFERROR(IF(GewichtsZiel="Erhöhen",G175-H175,H175-G175),"") ->  | K175: =IFERROR(IF(Standard,J175/KalorienProGramm,J175/KalorienProGramm/2.2),"") ->  | L175: =IFERROR(ZielGewichtsVerlust-K175,"") ->  | M175: =IFERROR(IF(B174<>"",L175/(ZielGewichtsVerlust),""),"") -> 
E176: =IFERROR(IF($D176<>"",E175+(I175/KalorienProGramm)*IF(GewichtsZiel="INCREASE",1,-1),""),"") ->  | F176: =IFERROR(LaufenderGU,"") ->  | G176: =IFERROR(IF(K175>0,F175*AktivitätsFaktor+IF(GewichtsZiel="Verwalten",0,IF(GewichtsZiel="REDUZIEREN",-500,IF(GewichtsZiel="Erhöhen",500))),""),"") ->  | H176: =IFERROR(F176*(AktivitätsFaktor),"") ->  | I176: =IFERROR(IF(GewichtsZiel="Erhöhen",G176-H176,H176-G176),"") ->  | K176: =IFERROR(IF(Standard,J176/KalorienProGramm,J176/KalorienProGramm/2.2),"") ->  | L176: =IFERROR(ZielGewichtsVerlust-K176,"") ->  | M176: =IFERROR(IF(B175<>"",L176/(ZielGewichtsVerlust),""),"") -> 
E177: =IFERROR(IF($D177<>"",E176+(I176/KalorienProGramm)*IF(GewichtsZiel="INCREASE",1,-1),""),"") ->  | F177: =IFERROR(LaufenderGU,"") ->  | G177: =IFERROR(IF(K176>0,F176*AktivitätsFaktor+IF(GewichtsZiel="Verwalten",0,IF(GewichtsZiel="REDUZIEREN",-500,IF(GewichtsZiel="Erhöhen",500))),""),"") ->  | H177: =IFERROR(F177*(AktivitätsFaktor),"") ->  | I177: =IFERROR(IF(GewichtsZiel="Erhöhen",G177-H177,H177-G177),"") ->  | K177: =IFERROR(IF(Standard,J177/KalorienProGramm,J177/KalorienProGramm/2.2),"") ->  | L177: =IFERROR(ZielGewichtsVerlust-K177,"") ->  | M177: =IFERROR(IF(B176<>"",L177/(ZielGewichtsVerlust),""),"") -> 
E178: =IFERROR(IF($D178<>"",E177+(I177/KalorienProGramm)*IF(GewichtsZiel="INCREASE",1,-1),""),"") ->  | F178: =IFERROR(LaufenderGU,"") ->  | G178: =IFERROR(IF(K177>0,F177*AktivitätsFaktor+IF(GewichtsZiel="Verwalten",0,IF(GewichtsZiel="REDUZIEREN",-500,IF(GewichtsZiel="Erhöhen",500))),""),"") ->  | H178: =IFERROR(F178*(AktivitätsFaktor),"") ->  | I178: =IFERROR(IF(GewichtsZiel="Erhöhen",G178-H178,H178-G178),"") ->  | K178: =IFERROR(IF(Standard,J178/KalorienProGramm,J178/KalorienProGramm/2.2),"") ->  | L178: =IFERROR(ZielGewichtsVerlust-K178,"") ->  | M178: =IFERROR(IF(B177<>"",L178/(ZielGewichtsVerlust),""),"") -> 
E179: =IFERROR(IF($D179<>"",E178+(I178/KalorienProGramm)*IF(GewichtsZiel="INCREASE",1,-1),""),"") ->  | F179: =IFERROR(LaufenderGU,"") ->  | G179: =IFERROR(IF(K178>0,F178*AktivitätsFaktor+IF(GewichtsZiel="Verwalten",0,IF(GewichtsZiel="REDUZIEREN",-500,IF(GewichtsZiel="Erhöhen",500))),""),"") ->  | H179: =IFERROR(F179*(AktivitätsFaktor),"") ->  | I179: =IFERROR(IF(GewichtsZiel="Erhöhen",G179-H179,H179-G179),"") ->  | K179: =IFERROR(IF(Standard,J179/KalorienProGramm,J179/KalorienProGramm/2.2),"") ->  | L179: =IFERROR(ZielGewichtsVerlust-K179,"") ->  | M179: =IFERROR(IF(B178<>"",L179/(ZielGewichtsVerlust),""),"") -> 
E180: =IFERROR(IF($D180<>"",E179+(I179/KalorienProGramm)*IF(GewichtsZiel="INCREASE",1,-1),""),"") ->  | F180: =IFERROR(LaufenderGU,"") ->  | G180: =IFERROR(IF(K179>0,F179*AktivitätsFaktor+IF(GewichtsZiel="Verwalten",0,IF(GewichtsZiel="REDUZIEREN",-500,IF(GewichtsZiel="Erhöhen",500))),""),"") ->  | H180: =IFERROR(F180*(AktivitätsFaktor),"") ->  | I180: =IFERROR(IF(GewichtsZiel="Erhöhen",G180-H180,H180-G180),"") ->  | K180: =IFERROR(IF(Standard,J180/KalorienProGramm,J180/KalorienProGramm/2.2),"") ->  | L180: =IFERROR(ZielGewichtsVerlust-K180,"") ->  | M180: =IFERROR(IF(B179<>"",L180/(ZielGewichtsVerlust),""),"") -> 
E181: =IFERROR(IF($D181<>"",E180+(I180/KalorienProGramm)*IF(GewichtsZiel="INCREASE",1,-1),""),"") ->  | F181: =IFERROR(LaufenderGU,"") ->  | G181: =IFERROR(IF(K180>0,F180*AktivitätsFaktor+IF(GewichtsZiel="Verwalten",0,IF(GewichtsZiel="REDUZIEREN",-500,IF(GewichtsZiel="Erhöhen",500))),""),"") ->  | H181: =IFERROR(F181*(AktivitätsFaktor),"") ->  | I181: =IFERROR(IF(GewichtsZiel="Erhöhen",G181-H181,H181-G181),"") ->  | K181: =IFERROR(IF(Standard,J181/KalorienProGramm,J181/KalorienProGramm/2.2),"") ->  | L181: =IFERROR(ZielGewichtsVerlust-K181,"") ->  | M181: =IFERROR(IF(B180<>"",L181/(ZielGewichtsVerlust),""),"") -> 
E182: =IFERROR(IF($D182<>"",E181+(I181/KalorienProGramm)*IF(GewichtsZiel="INCREASE",1,-1),""),"") ->  | F182: =IFERROR(LaufenderGU,"") ->  | G182: =IFERROR(IF(K181>0,F181*AktivitätsFaktor+IF(GewichtsZiel="Verwalten",0,IF(GewichtsZiel="REDUZIEREN",-500,IF(GewichtsZiel="Erhöhen",500))),""),"") ->  | H182: =IFERROR(F182*(AktivitätsFaktor),"") ->  | I182: =IFERROR(IF(GewichtsZiel="Erhöhen",G182-H182,H182-G182),"") ->  | K182: =IFERROR(IF(Standard,J182/KalorienProGramm,J182/KalorienProGramm/2.2),"") ->  | L182: =IFERROR(ZielGewichtsVerlust-K182,"") ->  | M182: =IFERROR(IF(B181<>"",L182/(ZielGewichtsVerlust),""),"") -> 
E183: =IFERROR(IF($D183<>"",E182+(I182/KalorienProGramm)*IF(GewichtsZiel="INCREASE",1,-1),""),"") ->  | F183: =IFERROR(LaufenderGU,"") ->  | G183: =IFERROR(IF(K182>0,F182*AktivitätsFaktor+IF(GewichtsZiel="Verwalten",0,IF(GewichtsZiel="REDUZIEREN",-500,IF(GewichtsZiel="Erhöhen",500))),""),"") ->  | H183: =IFERROR(F183*(AktivitätsFaktor),"") ->  | I183: =IFERROR(IF(GewichtsZiel="Erhöhen",G183-H183,H183-G183),"") ->  | K183: =IFERROR(IF(Standard,J183/KalorienProGramm,J183/KalorienProGramm/2.2),"") ->  | L183: =IFERROR(ZielGewichtsVerlust-K183,"") ->  | M183: =IFERROR(IF(B182<>"",L183/(ZielGewichtsVerlust),""),"") -> 
E184: =IFERROR(IF($D184<>"",E183+(I183/KalorienProGramm)*IF(GewichtsZiel="INCREASE",1,-1),""),"") ->  | F184: =IFERROR(LaufenderGU,"") ->  | G184: =IFERROR(IF(K183>0,F183*AktivitätsFaktor+IF(GewichtsZiel="Verwalten",0,IF(GewichtsZiel="REDUZIEREN",-500,IF(GewichtsZiel="Erhöhen",500))),""),"") ->  | H184: =IFERROR(F184*(AktivitätsFaktor),"") ->  | I184: =IFERROR(IF(GewichtsZiel="Erhöhen",G184-H184,H184-G184),"") ->  | K184: =IFERROR(IF(Standard,J184/KalorienProGramm,J184/KalorienProGramm/2.2),"") ->  | L184: =IFERROR(ZielGewichtsVerlust-K184,"") ->  | M184: =IFERROR(IF(B183<>"",L184/(ZielGewichtsVerlust),""),"") -> 
E185: =IFERROR(IF($D185<>"",E184+(I184/KalorienProGramm)*IF(GewichtsZiel="INCREASE",1,-1),""),"") ->  | F185: =IFERROR(LaufenderGU,"") ->  | G185: =IFERROR(IF(K184>0,F184*AktivitätsFaktor+IF(GewichtsZiel="Verwalten",0,IF(GewichtsZiel="REDUZIEREN",-500,IF(GewichtsZiel="Erhöhen",500))),""),"") ->  | H185: =IFERROR(F185*(AktivitätsFaktor),"") ->  | I185: =IFERROR(IF(GewichtsZiel="Erhöhen",G185-H185,H185-G185),"") ->  | K185: =IFERROR(IF(Standard,J185/KalorienProGramm,J185/KalorienProGramm/2.2),"") ->  | L185: =IFERROR(ZielGewichtsVerlust-K185,"") ->  | M185: =IFERROR(IF(B184<>"",L185/(ZielGewichtsVerlust),""),"") -> 
E186: =IFERROR(IF($D186<>"",E185+(I185/KalorienProGramm)*IF(GewichtsZiel="INCREASE",1,-1),""),"") ->  | F186: =IFERROR(LaufenderGU,"") ->  | G186: =IFERROR(IF(K185>0,F185*AktivitätsFaktor+IF(GewichtsZiel="Verwalten",0,IF(GewichtsZiel="REDUZIEREN",-500,IF(GewichtsZiel="Erhöhen",500))),""),"") ->  | H186: =IFERROR(F186*(AktivitätsFaktor),"") ->  | I186: =IFERROR(IF(GewichtsZiel="Erhöhen",G186-H186,H186-G186),"") ->  | K186: =IFERROR(IF(Standard,J186/KalorienProGramm,J186/KalorienProGramm/2.2),"") ->  | L186: =IFERROR(ZielGewichtsVerlust-K186,"") ->  | M186: =IFERROR(IF(B185<>"",L186/(ZielGewichtsVerlust),""),"") -> 
E187: =IFERROR(IF($D187<>"",E186+(I186/KalorienProGramm)*IF(GewichtsZiel="INCREASE",1,-1),""),"") ->  | F187: =IFERROR(LaufenderGU,"") ->  | G187: =IFERROR(IF(K186>0,F186*AktivitätsFaktor+IF(GewichtsZiel="Verwalten",0,IF(GewichtsZiel="REDUZIEREN",-500,IF(GewichtsZiel="Erhöhen",500))),""),"") ->  | H187: =IFERROR(F187*(AktivitätsFaktor),"") ->  | I187: =IFERROR(IF(GewichtsZiel="Erhöhen",G187-H187,H187-G187),"") ->  | K187: =IFERROR(IF(Standard,J187/KalorienProGramm,J187/KalorienProGramm/2.2),"") ->  | L187: =IFERROR(ZielGewichtsVerlust-K187,"") ->  | M187: =IFERROR(IF(B186<>"",L187/(ZielGewichtsVerlust),""),"") -> 
E188: =IFERROR(IF($D188<>"",E187+(I187/KalorienProGramm)*IF(GewichtsZiel="INCREASE",1,-1),""),"") ->  | F188: =IFERROR(LaufenderGU,"") ->  | G188: =IFERROR(IF(K187>0,F187*AktivitätsFaktor+IF(GewichtsZiel="Verwalten",0,IF(GewichtsZiel="REDUZIEREN",-500,IF(GewichtsZiel="Erhöhen",500))),""),"") ->  | H188: =IFERROR(F188*(AktivitätsFaktor),"") ->  | I188: =IFERROR(IF(GewichtsZiel="Erhöhen",G188-H188,H188-G188),"") ->  | K188: =IFERROR(IF(Standard,J188/KalorienProGramm,J188/KalorienProGramm/2.2),"") ->  | L188: =IFERROR(ZielGewichtsVerlust-K188,"") ->  | M188: =IFERROR(IF(B187<>"",L188/(ZielGewichtsVerlust),""),"") -> 
E189: =IFERROR(IF($D189<>"",E188+(I188/KalorienProGramm)*IF(GewichtsZiel="INCREASE",1,-1),""),"") ->  | F189: =IFERROR(LaufenderGU,"") ->  | G189: =IFERROR(IF(K188>0,F188*AktivitätsFaktor+IF(GewichtsZiel="Verwalten",0,IF(GewichtsZiel="REDUZIEREN",-500,IF(GewichtsZiel="Erhöhen",500))),""),"") ->  | H189: =IFERROR(F189*(AktivitätsFaktor),"") ->  | I189: =IFERROR(IF(GewichtsZiel="Erhöhen",G189-H189,H189-G189),"") ->  | K189: =IFERROR(IF(Standard,J189/KalorienProGramm,J189/KalorienProGramm/2.2),"") ->  | L189: =IFERROR(ZielGewichtsVerlust-K189,"") ->  | M189: =IFERROR(IF(B188<>"",L189/(ZielGewichtsVerlust),""),"") -> 
E190: =IFERROR(IF($D190<>"",E189+(I189/KalorienProGramm)*IF(GewichtsZiel="INCREASE",1,-1),""),"") ->  | F190: =IFERROR(LaufenderGU,"") ->  | G190: =IFERROR(IF(K189>0,F189*AktivitätsFaktor+IF(GewichtsZiel="Verwalten",0,IF(GewichtsZiel="REDUZIEREN",-500,IF(GewichtsZiel="Erhöhen",500))),""),"") ->  | H190: =IFERROR(F190*(AktivitätsFaktor),"") ->  | I190: =IFERROR(IF(GewichtsZiel="Erhöhen",G190-H190,H190-G190),"") ->  | K190: =IFERROR(IF(Standard,J190/KalorienProGramm,J190/KalorienProGramm/2.2),"") ->  | L190: =IFERROR(ZielGewichtsVerlust-K190,"") ->  | M190: =IFERROR(IF(B189<>"",L190/(ZielGewichtsVerlust),""),"") -> 
E191: =IFERROR(IF($D191<>"",E190+(I190/KalorienProGramm)*IF(GewichtsZiel="INCREASE",1,-1),""),"") ->  | F191: =IFERROR(LaufenderGU,"") ->  | G191: =IFERROR(IF(K190>0,F190*AktivitätsFaktor+IF(GewichtsZiel="Verwalten",0,IF(GewichtsZiel="REDUZIEREN",-500,IF(GewichtsZiel="Erhöhen",500))),""),"") ->  | H191: =IFERROR(F191*(AktivitätsFaktor),"") ->  | I191: =IFERROR(IF(GewichtsZiel="Erhöhen",G191-H191,H191-G191),"") ->  | K191: =IFERROR(IF(Standard,J191/KalorienProGramm,J191/KalorienProGramm/2.2),"") ->  | L191: =IFERROR(ZielGewichtsVerlust-K191,"") ->  | M191: =IFERROR(IF(B190<>"",L191/(ZielGewichtsVerlust),""),"") -> 
E192: =IFERROR(IF($D192<>"",E191+(I191/KalorienProGramm)*IF(GewichtsZiel="INCREASE",1,-1),""),"") ->  | F192: =IFERROR(LaufenderGU,"") ->  | G192: =IFERROR(IF(K191>0,F191*AktivitätsFaktor+IF(GewichtsZiel="Verwalten",0,IF(GewichtsZiel="REDUZIEREN",-500,IF(GewichtsZiel="Erhöhen",500))),""),"") ->  | H192: =IFERROR(F192*(AktivitätsFaktor),"") ->  | I192: =IFERROR(IF(GewichtsZiel="Erhöhen",G192-H192,H192-G192),"") ->  | K192: =IFERROR(IF(Standard,J192/KalorienProGramm,J192/KalorienProGramm/2.2),"") ->  | L192: =IFERROR(ZielGewichtsVerlust-K192,"") ->  | M192: =IFERROR(IF(B191<>"",L192/(ZielGewichtsVerlust),""),"") -> 
E193: =IFERROR(IF($D193<>"",E192+(I192/KalorienProGramm)*IF(GewichtsZiel="INCREASE",1,-1),""),"") ->  | F193: =IFERROR(LaufenderGU,"") ->  | G193: =IFERROR(IF(K192>0,F192*AktivitätsFaktor+IF(GewichtsZiel="Verwalten",0,IF(GewichtsZiel="REDUZIEREN",-500,IF(GewichtsZiel="Erhöhen",500))),""),"") ->  | H193: =IFERROR(F193*(AktivitätsFaktor),"") ->  | I193: =IFERROR(IF(GewichtsZiel="Erhöhen",G193-H193,H193-G193),"") ->  | K193: =IFERROR(IF(Standard,J193/KalorienProGramm,J193/KalorienProGramm/2.2),"") ->  | L193: =IFERROR(ZielGewichtsVerlust-K193,"") ->  | M193: =IFERROR(IF(B192<>"",L193/(ZielGewichtsVerlust),""),"") -> 
E194: =IFERROR(IF($D194<>"",E193+(I193/KalorienProGramm)*IF(GewichtsZiel="INCREASE",1,-1),""),"") ->  | F194: =IFERROR(LaufenderGU,"") ->  | G194: =IFERROR(IF(K193>0,F193*AktivitätsFaktor+IF(GewichtsZiel="Verwalten",0,IF(GewichtsZiel="REDUZIEREN",-500,IF(GewichtsZiel="Erhöhen",500))),""),"") ->  | H194: =IFERROR(F194*(AktivitätsFaktor),"") ->  | I194: =IFERROR(IF(GewichtsZiel="Erhöhen",G194-H194,H194-G194),"") ->  | K194: =IFERROR(IF(Standard,J194/KalorienProGramm,J194/KalorienProGramm/2.2),"") ->  | L194: =IFERROR(ZielGewichtsVerlust-K194,"") ->  | M194: =IFERROR(IF(B193<>"",L194/(ZielGewichtsVerlust),""),"") -> 
E195: =IFERROR(IF($D195<>"",E194+(I194/KalorienProGramm)*IF(GewichtsZiel="INCREASE",1,-1),""),"") ->  | F195: =IFERROR(LaufenderGU,"") ->  | G195: =IFERROR(IF(K194>0,F194*AktivitätsFaktor+IF(GewichtsZiel="Verwalten",0,IF(GewichtsZiel="REDUZIEREN",-500,IF(GewichtsZiel="Erhöhen",500))),""),"") ->  | H195: =IFERROR(F195*(AktivitätsFaktor),"") ->  | I195: =IFERROR(IF(GewichtsZiel="Erhöhen",G195-H195,H195-G195),"") ->  | K195: =IFERROR(IF(Standard,J195/KalorienProGramm,J195/KalorienProGramm/2.2),"") ->  | L195: =IFERROR(ZielGewichtsVerlust-K195,"") ->  | M195: =IFERROR(IF(B194<>"",L195/(ZielGewichtsVerlust),""),"") -> 
E196: =IFERROR(IF($D196<>"",E195+(I195/KalorienProGramm)*IF(GewichtsZiel="INCREASE",1,-1),""),"") ->  | F196: =IFERROR(LaufenderGU,"") ->  | G196: =IFERROR(IF(K195>0,F195*AktivitätsFaktor+IF(GewichtsZiel="Verwalten",0,IF(GewichtsZiel="REDUZIEREN",-500,IF(GewichtsZiel="Erhöhen",500))),""),"") ->  | H196: =IFERROR(F196*(AktivitätsFaktor),"") ->  | I196: =IFERROR(IF(GewichtsZiel="Erhöhen",G196-H196,H196-G196),"") ->  | K196: =IFERROR(IF(Standard,J196/KalorienProGramm,J196/KalorienProGramm/2.2),"") ->  | L196: =IFERROR(ZielGewichtsVerlust-K196,"") ->  | M196: =IFERROR(IF(B195<>"",L196/(ZielGewichtsVerlust),""),"") -> 
E197: =IFERROR(IF($D197<>"",E196+(I196/KalorienProGramm)*IF(GewichtsZiel="INCREASE",1,-1),""),"") ->  | F197: =IFERROR(LaufenderGU,"") ->  | G197: =IFERROR(IF(K196>0,F196*AktivitätsFaktor+IF(GewichtsZiel="Verwalten",0,IF(GewichtsZiel="REDUZIEREN",-500,IF(GewichtsZiel="Erhöhen",500))),""),"") ->  | H197: =IFERROR(F197*(AktivitätsFaktor),"") ->  | I197: =IFERROR(IF(GewichtsZiel="Erhöhen",G197-H197,H197-G197),"") ->  | K197: =IFERROR(IF(Standard,J197/KalorienProGramm,J197/KalorienProGramm/2.2),"") ->  | L197: =IFERROR(ZielGewichtsVerlust-K197,"") ->  | M197: =IFERROR(IF(B196<>"",L197/(ZielGewichtsVerlust),""),"") -> 
E198: =IFERROR(IF($D198<>"",E197+(I197/KalorienProGramm)*IF(GewichtsZiel="INCREASE",1,-1),""),"") ->  | F198: =IFERROR(LaufenderGU,"") ->  | G198: =IFERROR(IF(K197>0,F197*AktivitätsFaktor+IF(GewichtsZiel="Verwalten",0,IF(GewichtsZiel="REDUZIEREN",-500,IF(GewichtsZiel="Erhöhen",500))),""),"") ->  | H198: =IFERROR(F198*(AktivitätsFaktor),"") ->  | I198: =IFERROR(IF(GewichtsZiel="Erhöhen",G198-H198,H198-G198),"") ->  | K198: =IFERROR(IF(Standard,J198/KalorienProGramm,J198/KalorienProGramm/2.2),"") ->  | L198: =IFERROR(ZielGewichtsVerlust-K198,"") ->  | M198: =IFERROR(IF(B197<>"",L198/(ZielGewichtsVerlust),""),"") -> 
E199: =IFERROR(IF($D199<>"",E198+(I198/KalorienProGramm)*IF(GewichtsZiel="INCREASE",1,-1),""),"") ->  | F199: =IFERROR(LaufenderGU,"") ->  | G199: =IFERROR(IF(K198>0,F198*AktivitätsFaktor+IF(GewichtsZiel="Verwalten",0,IF(GewichtsZiel="REDUZIEREN",-500,IF(GewichtsZiel="Erhöhen",500))),""),"") ->  | H199: =IFERROR(F199*(AktivitätsFaktor),"") ->  | I199: =IFERROR(IF(GewichtsZiel="Erhöhen",G199-H199,H199-G199),"") ->  | K199: =IFERROR(IF(Standard,J199/KalorienProGramm,J199/KalorienProGramm/2.2),"") ->  | L199: =IFERROR(ZielGewichtsVerlust-K199,"") ->  | M199: =IFERROR(IF(B198<>"",L199/(ZielGewichtsVerlust),""),"") -> 
E200: =IFERROR(IF($D200<>"",E199+(I199/KalorienProGramm)*IF(GewichtsZiel="INCREASE",1,-1),""),"") ->  | F200: =IFERROR(LaufenderGU,"") ->  | G200: =IFERROR(IF(K199>0,F199*AktivitätsFaktor+IF(GewichtsZiel="Verwalten",0,IF(GewichtsZiel="REDUZIEREN",-500,IF(GewichtsZiel="Erhöhen",500))),""),"") ->  | H200: =IFERROR(F200*(AktivitätsFaktor),"") ->  | I200: =IFERROR(IF(GewichtsZiel="Erhöhen",G200-H200,H200-G200),"") ->  | K200: =IFERROR(IF(Standard,J200/KalorienProGramm,J200/KalorienProGramm/2.2),"") ->  | L200: =IFERROR(ZielGewichtsVerlust-K200,"") ->  | M200: =IFERROR(IF(B199<>"",L200/(ZielGewichtsVerlust),""),"") -> 
E201: =IFERROR(IF($D201<>"",E200+(I200/KalorienProGramm)*IF(GewichtsZiel="INCREASE",1,-1),""),"") ->  | F201: =IFERROR(LaufenderGU,"") ->  | G201: =IFERROR(IF(K200>0,F200*AktivitätsFaktor+IF(GewichtsZiel="Verwalten",0,IF(GewichtsZiel="REDUZIEREN",-500,IF(GewichtsZiel="Erhöhen",500))),""),"") ->  | H201: =IFERROR(F201*(AktivitätsFaktor),"") ->  | I201: =IFERROR(IF(GewichtsZiel="Erhöhen",G201-H201,H201-G201),"") ->  | K201: =IFERROR(IF(Standard,J201/KalorienProGramm,J201/KalorienProGramm/2.2),"") ->  | L201: =IFERROR(ZielGewichtsVerlust-K201,"") ->  | M201: =IFERROR(IF(B200<>"",L201/(ZielGewichtsVerlust),""),"") -> 
E202: =IFERROR(IF($D202<>"",E201+(I201/KalorienProGramm)*IF(GewichtsZiel="INCREASE",1,-1),""),"") ->  | F202: =IFERROR(LaufenderGU,"") ->  | G202: =IFERROR(IF(K201>0,F201*AktivitätsFaktor+IF(GewichtsZiel="Verwalten",0,IF(GewichtsZiel="REDUZIEREN",-500,IF(GewichtsZiel="Erhöhen",500))),""),"") ->  | H202: =IFERROR(F202*(AktivitätsFaktor),"") ->  | I202: =IFERROR(IF(GewichtsZiel="Erhöhen",G202-H202,H202-G202),"") ->  | K202: =IFERROR(IF(Standard,J202/KalorienProGramm,J202/KalorienProGramm/2.2),"") ->  | L202: =IFERROR(ZielGewichtsVerlust-K202,"") ->  | M202: =IFERROR(IF(B201<>"",L202/(ZielGewichtsVerlust),""),"") -> 
... 798 more rows

Sheet Bewegungsart nachschlagen (hidden)
B1: Bewegungsart Nachschlagen
B2: Dieses Blatt sollte nicht angezeigt werden.
B3: ÜBUNGSTYP | C3: BESCHREIBUNG | D3: FAKTOR
B4: SITZEND | C4: WENIG BIS GAR KEINE ÜBUNGEN | D4: 1.2
B5: LEICHTE AKTIVITÄT | C5: ÜBUNGEN 1–2 TAGE/WOCHE | D5: 1.375
B6: MODERATE AKTIVITÄT | C6: ÜBUNGEN 3–5 TAGE/WOCHE | D6: 1.55
B7: SEHR AKTIV | C7: ÜBUNGEN 6–7 TAGE/WOCHE | D7: 1.725
B8: EXTRA-AKTIV | C8: ÜBUNGEN 6–7 TAGE/WOCHE + PHYSISCHER JOB/2XTRAINING | D8: 1.9
